Workbook

Sheet Kitchen
A1: Range | S1: Enter % | T1: Total Cost Ex Vat | U1: RRP Ex Vat | V1: Cash Margin | W1: Margin %
A2: Cabinet Colour | R2: My Furniture Discount | S2: 0.4 | T2: =SUM(T12:T468) -> 75 | U2: =D9/1.2 -> 75 | V2: =U2-T2 -> 0 | W2: =V2/U2 -> 0
A3: Drawer Box | B3: Customer Name | R3: Add Retail Discount | S3: 0
A4: Rigid | B4: Order Ref
A5: Home Delivery | B5: Other Comments | R5: Additional Margin
R6: Lights | S6: 0.3
E7: =VLOOKUP('Data Validation Lists'!B1,'Data Validation Lists'!A2:D378,4,FALSE) -> Stocked | R7: Other | S7: 0.3
B8: Qty | C8: RRP | D8: Total RRP | E8: Part Code | H8: Drw Boxes
B9: 1 | D9: =SUM(D13:D468) -> 90 | G9: Rigid | H9: Std | I9: Pan | J9: Low
A11: Base Units
A13: 150 HL Pull Out Base VS SUB | C13: =IF($E13="Not Available","",VLOOKUP(E13,'Prices Furniture'!A:F,5,FALSE)*(1-$S$3)) -> 408 | D13: =IF(B13="","",B13*C13) ->  | E13: =VLOOKUP(A13,Codes!$B:$AP,'Data Validation Lists'!$B$1+2,FALSE) -> @LK-EMD-BP15TY | G13: =IF(AND(B13>0,'Data Validation Lists'!$I$1=1),B13,"") ->  | R13: Furniture | T13: =IF(B13="","",SUM(D13/1.2)*(1-$S$2)/(1-$S$3)) -> 
A14: 300 HL Pull Out Base VS SUB | C14: =IF($E14="Not Available","",VLOOKUP(E14,'Prices Furniture'!A:F,5,FALSE)*(1-$S$3)) -> 634 | D14: =IF(B14="","",B14*C14) ->  | E14: =VLOOKUP(A14,Codes!$B:$AP,'Data Validation Lists'!$B$1+2,FALSE) -> @LK-EMD-BP3TY | G14: =IF(AND(B14>0,'Data Validation Lists'!$I$1=1),B14,"") ->  | R14: Furniture
G15: =IF(AND(B15>0,'Data Validation Lists'!$I$1=1),B15,"") ->  | R15: Furniture
A16: 150 HL Base Unit | C16: =IF($E16="Not Available","",VLOOKUP(E16,'Prices Furniture'!A:F,5,FALSE)*(1-$S$3)) -> 228 | D16: =IF(B16="","",B16*C16) ->  | E16: =VLOOKUP(A16,Codes!$B:$AP,'Data Validation Lists'!$B$1+2,FALSE) -> @LK-EMD-BH15 | G16: =IF(AND(B16>0,'Data Validation Lists'!$I$1=1),B16,"") ->  | R16: Furniture
A17: 300 HL Base Unit | C17: =IF($E17="Not Available","",VLOOKUP(E17,'Prices Furniture'!A:F,5,FALSE)*(1-$S$3)) -> 239 | E17: =VLOOKUP(A17,Codes!$B:$AP,'Data Validation Lists'!$B$1+2,FALSE) -> @LK-EMD-BH30 | G17: =IF(AND(B17>0,'Data Validation Lists'!$I$1=1),B17,"") ->  | R17: Furniture
A18: 400 HL Base Unit | C18: =IF($E18="Not Available","",VLOOKUP(E18,'Prices Furniture'!A:F,5,FALSE)*(1-$S$3)) -> 249 | E18: =VLOOKUP(A18,Codes!$B:$AP,'Data Validation Lists'!$B$1+2,FALSE) -> @LK-EMD-BH40 | G18: =IF(AND(B18>0,'Data Validation Lists'!$I$1=1),B18,"") ->  | R18: Furniture
A19: 450 HL Base Unit | C19: =IF($E19="Not Available","",VLOOKUP(E19,'Prices Furniture'!A:F,5,FALSE)*(1-$S$3)) -> 272 | E19: =VLOOKUP(A19,Codes!$B:$AP,'Data Validation Lists'!$B$1+2,FALSE) -> @LK-EMD-BH45 | G19: =IF(AND(B19>0,'Data Validation Lists'!$I$1=1),B19,"") ->  | R19: Furniture
A20: 500 HL Base Unit | C20: =IF($E20="Not Available","",VLOOKUP(E20,'Prices Furniture'!A:F,5,FALSE)*(1-$S$3)) -> 283 | E20: =VLOOKUP(A20,Codes!$B:$AP,'Data Validation Lists'!$B$1+2,FALSE) -> @LK-EMD-BH50 | G20: =IF(AND(B20>0,'Data Validation Lists'!$I$1=1),B20,"") ->  | R20: Furniture
A21: 500 HL Sink Base Unit (Inc Liner) | C21: =IF($E21="Not Available","",VLOOKUP(E21,'Prices Furniture'!A:F,5,FALSE)*(1-$S$3)) -> 313 | E21: =VLOOKUP(A21,Codes!$B:$AP,'Data Validation Lists'!$B$1+2,FALSE) -> @LK-EMD-BH50S | G21: =IF(AND(B21>0,'Data Validation Lists'!$I$1=1),B21,"") ->  | R21: Furniture
A22: 600 HL Base Unit | C22: =IF($E22="Not Available","",VLOOKUP(E22,'Prices Furniture'!A:F,5,FALSE)*(1-$S$3)) -> 319 | E22: =VLOOKUP(A22,Codes!$B:$AP,'Data Validation Lists'!$B$1+2,FALSE) -> @LK-EMD-BH60 | G22: =IF(AND(B22>0,'Data Validation Lists'!$I$1=1),B22,"") ->  | R22: Furniture
A23: 600 HL Sink Base Unit (Inc Liner) | C23: =IF($E23="Not Available","",VLOOKUP(E23,'Prices Furniture'!A:F,5,FALSE)*(1-$S$3)) -> 365 | E23: =VLOOKUP(A23,Codes!$B:$AP,'Data Validation Lists'!$B$1+2,FALSE) -> @LK-EMD-BH60S | G23: =IF(AND(B23>0,'Data Validation Lists'!$I$1=1),B23,"") ->  | R23: Furniture
A24: 700 HL Base Unit | C24: =IF($E24="Not Available","",VLOOKUP(E24,'Prices Furniture'!A:F,5,FALSE)*(1-$S$3)) -> 388 | E24: =VLOOKUP(A24,Codes!$B:$AP,'Data Validation Lists'!$B$1+2,FALSE) -> @LK-EMD-BH70 | G24: =IF(AND(B24>0,'Data Validation Lists'!$I$1=1),B24,"") ->  | R24: Furniture
A25: 800 HL Base Unit | C25: =IF($E25="Not Available","",VLOOKUP(E25,'Prices Furniture'!A:F,5,FALSE)*(1-$S$3)) -> 394 | D25: =IF(B25="","",B25*C25) ->  | E25: =VLOOKUP(A25,Codes!$B:$AP,'Data Validation Lists'!$B$1+2,FALSE) -> @LK-EMD-BH80 | G25: =IF(AND(B25>0,'Data Validation Lists'!$I$1=1),B25,"") ->  | R25: Furniture
A26: 800 HL Sink Base Unit (Inc Liner) | C26: =IF($E26="Not Available","",VLOOKUP(E26,'Prices Furniture'!A:F,5,FALSE)*(1-$S$3)) -> 440 | E26: =VLOOKUP(A26,Codes!$B:$AP,'Data Validation Lists'!$B$1+2,FALSE) -> @LK-EMD-BH80S | G26: =IF(AND(B26>0,'Data Validation Lists'!$I$1=1),B26,"") ->  | R26: Furniture
A27: 900 HL Base Unit | C27: =IF($E27="Not Available","",VLOOKUP(E27,'Prices Furniture'!A:F,5,FALSE)*(1-$S$3)) -> 418 | E27: =VLOOKUP(A27,Codes!$B:$AP,'Data Validation Lists'!$B$1+2,FALSE) -> @LK-EMD-BH90 | G27: =IF(AND(B27>0,'Data Validation Lists'!$I$1=1),B27,"") ->  | R27: Furniture
A28: 900 HL Sink Base Unit (Inc Liner) | C28: =IF($E28="Not Available","",VLOOKUP(E28,'Prices Furniture'!A:F,5,FALSE)*(1-$S$3)) -> 464 | E28: =VLOOKUP(A28,Codes!$B:$AP,'Data Validation Lists'!$B$1+2,FALSE) -> @LK-EMD-BH90S | G28: =IF(AND(B28>0,'Data Validation Lists'!$I$1=1),B28,"") ->  | R28: Furniture
A29: 1000 HL Base Unit | C29: =IF($E29="Not Available","",VLOOKUP(E29,'Prices Furniture'!A:F,5,FALSE)*(1-$S$3)) -> 439 | E29: =VLOOKUP(A29,Codes!$B:$AP,'Data Validation Lists'!$B$1+2,FALSE) -> @LK-EMD-BH100 | G29: =IF(AND(B29>0,'Data Validation Lists'!$I$1=1),B29,"") ->  | R29: Furniture
A30: 1000 HL Sink Base Unit (Inc Liner) | C30: =IF($E30="Not Available","",VLOOKUP(E30,'Prices Furniture'!A:F,5,FALSE)*(1-$S$3)) -> 485 | E30: =VLOOKUP(A30,Codes!$B:$AP,'Data Validation Lists'!$B$1+2,FALSE) -> @LK-EMD-BH10S | G30: =IF(AND(B30>0,'Data Validation Lists'!$I$1=1),B30,"") ->  | R30: Furniture
R31: Furniture
A32: 300 HL Base Unit & Bin | C32: =IF($E32="Not Available","",VLOOKUP(E32,'Prices Furniture'!A:F,5,FALSE)*(1-$S$3)) -> 607 | D32: =IF(B32="","",B32*C32) ->  | E32: =VLOOKUP(A32,Codes!$B:$AP,'Data Validation Lists'!$B$1+2,FALSE) -> @LK-EMD-BH3B | G32: =IF(AND(B32>0,'Data Validation Lists'!$I$1=1),B32,"") ->  | R32: Furniture
A33: 400 HL Base Unit & Bin | C33: =IF($E33="Not Available","",VLOOKUP(E33,'Prices Furniture'!A:F,5,FALSE)*(1-$S$3)) -> 682 | E33: =VLOOKUP(A33,Codes!$B:$AP,'Data Validation Lists'!$B$1+2,FALSE) -> @LK-EMD-BH4B | G33: =IF(AND(B33>0,'Data Validation Lists'!$I$1=1),B33,"") ->  | R33: Furniture
A34: 450 HL Base Unit & Bin | C34: =IF($E34="Not Available","",VLOOKUP(E34,'Prices Furniture'!A:F,5,FALSE)*(1-$S$3)) -> 710 | E34: =VLOOKUP(A34,Codes!$B:$AP,'Data Validation Lists'!$B$1+2,FALSE) -> @LK-EMD-BH45B | G34: =IF(AND(B34>0,'Data Validation Lists'!$I$1=1),B34,"") ->  | R34: Furniture
A35: 500 HL Base Unit & Bin | C35: =IF($E35="Not Available","",VLOOKUP(E35,'Prices Furniture'!A:F,5,FALSE)*(1-$S$3)) -> 727 | E35: =VLOOKUP(A35,Codes!$B:$AP,'Data Validation Lists'!$B$1+2,FALSE) -> @LK-EMD-BH5B | G35: =IF(AND(B35>0,'Data Validation Lists'!$I$1=1),B35,"") ->  | R35: Furniture
A36: 600 HL Base Unit & Bin (2 Bins) | C36: =IF($E36="Not Available","",VLOOKUP(E36,'Prices Furniture'!A:F,5,FALSE)*(1-$S$3)) -> 800 | E36: =VLOOKUP(A36,Codes!$B:$AP,'Data Validation Lists'!$B$1+2,FALSE) -> @LK-EMD-BH6B2 | G36: =IF(AND(B36>0,'Data Validation Lists'!$I$1=1),B36,"") ->  | R36: Furniture
A38: 800 HL Cnr Base (300 Door) | C38: =IF($E38="Not Available","",VLOOKUP(E38,'Prices Furniture'!A:F,5,FALSE)*(1-$S$3)) -> 374 | D38: =IF(B38="","",B38*C38) ->  | E38: =VLOOKUP(A38,Codes!$B:$AP,'Data Validation Lists'!$B$1+2,FALSE) -> @LK-EMD-BC83 | G38: =IF(AND(B38>0,'Data Validation Lists'!$I$1=1),B38,"") ->  | R38: Furniture | T38: =IF(B38="","",SUM(D38/1.2)*(1-$S$2)/(1-$S$3)) -> 
A39: 800 HL Cnr Base Unit (400 Door) | C39: =IF($E39="Not Available","",VLOOKUP(E39,'Prices Furniture'!A:F,5,FALSE)*(1-$S$3)) -> 380 | E39: =VLOOKUP(A39,Codes!$B:$AP,'Data Validation Lists'!$B$1+2,FALSE) -> @LK-EMD-BC84 | G39: =IF(AND(B39>0,'Data Validation Lists'!$I$1=1),B39,"") ->  | R39: Furniture
A40: 800 HL Cnr Base (450 Door) | C40: =IF($E40="Not Available","",VLOOKUP(E40,'Prices Furniture'!A:F,5,FALSE)*(1-$S$3)) -> 392 | E40: =VLOOKUP(A40,Codes!$B:$AP,'Data Validation Lists'!$B$1+2,FALSE) -> @LK-EMD-BC845 | G40: =IF(AND(B40>0,'Data Validation Lists'!$I$1=1),B40,"") ->  | R40: Furniture
A41: 900 HL Cnr Base (450 Door) | C41: =IF($E41="Not Available","",VLOOKUP(E41,'Prices Furniture'!A:F,5,FALSE)*(1-$S$3)) -> 392 | E41: =VLOOKUP(A41,Codes!$B:$AP,'Data Validation Lists'!$B$1+2,FALSE) -> @LK-EMD-BC945 | G41: =IF(AND(B41>0,'Data Validation Lists'!$I$1=1),B41,"") ->  | R41: Furniture
A42: 1000 HL Cnr Base (450 Door) | C42: =IF($E42="Not Available","",VLOOKUP(E42,'Prices Furniture'!A:F,5,FALSE)*(1-$S$3)) -> 397 | E42: =VLOOKUP(A42,Codes!$B:$AP,'Data Validation Lists'!$B$1+2,FALSE) -> @LK-EMD-BC145 | G42: =IF(AND(B42>0,'Data Validation Lists'!$I$1=1),B42,"") ->  | R42: Furniture
A43: 1000 HL Cnr Base (500 Door) | C43: =IF($E43="Not Available","",VLOOKUP(E43,'Prices Furniture'!A:F,5,FALSE)*(1-$S$3)) -> 405 | E43: =VLOOKUP(A43,Codes!$B:$AP,'Data Validation Lists'!$B$1+2,FALSE) -> @LK-EMD-BC15 | G43: =IF(AND(B43>0,'Data Validation Lists'!$I$1=1),B43,"") ->  | R43: Furniture
A44: 1000 HL Cnr Base (600 Door) | C44: =IF($E44="Not Available","",VLOOKUP(E44,'Prices Furniture'!A:F,5,FALSE)*(1-$S$3)) -> 421 | E44: =VLOOKUP(A44,Codes!$B:$AP,'Data Validation Lists'!$B$1+2,FALSE) -> @LK-EMD-BC16 | G44: =IF(AND(B44>0,'Data Validation Lists'!$I$1=1),B44,"") ->  | R44: Furniture
A45: 1000 Cnr Base CORNERSTONE MAXX LH - 500 door | C45: =IF($E45="Not Available","",VLOOKUP(E45,'Prices Furniture'!A:F,5,FALSE)*(1-$S$3)) -> 1270 | E45: =VLOOKUP(A45,Codes!$B:$AP,'Data Validation Lists'!$B$1+2,FALSE) -> @LK-EMD-BCL15L | F45: Note: This unit is handed by the Wirework | G45: =IF(AND(B45>0,'Data Validation Lists'!$I$1=1),B45,"") ->  | R45: Furniture
A46: 1000 Cnr Base CORNERSTONE MAXX RH - 500 door | C46: =IF($E46="Not Available","",VLOOKUP(E46,'Prices Furniture'!A:F,5,FALSE)*(1-$S$3)) -> 1270 | E46: =VLOOKUP(A46,Codes!$B:$AP,'Data Validation Lists'!$B$1+2,FALSE) -> @LK-EMD-BCL15R | F46: Note: This unit is handed by the Wirework | G46: =IF(AND(B46>0,'Data Validation Lists'!$I$1=1),B46,"") ->  | R46: Furniture
A47: 1000 Cnr Base CORNERSTONE MAXX LH - 600 door | C47: =IF($E47="Not Available","",VLOOKUP(E47,'Prices Furniture'!A:F,5,FALSE)*(1-$S$3)) -> 1349 | E47: =VLOOKUP(A47,Codes!$B:$AP,'Data Validation Lists'!$B$1+2,FALSE) -> @LK-EMD-BCL16L | F47: Note: This unit is handed by the Wirework | G47: =IF(AND(B47>0,'Data Validation Lists'!$I$1=1),B47,"") ->  | R47: Furniture
A48: 1000 Cnr Base CORNERSTONE MAXX RH - 600 door | C48: =IF($E48="Not Available","",VLOOKUP(E48,'Prices Furniture'!A:F,5,FALSE)*(1-$S$3)) -> 1349 | E48: =VLOOKUP(A48,Codes!$B:$AP,'Data Validation Lists'!$B$1+2,FALSE) -> @LK-EMD-BCL16R | F48: Note: This unit is handed by the Wirework | G48: =IF(AND(B48>0,'Data Validation Lists'!$I$1=1),B48,"") ->  | R48: Furniture
A49: 900 Corner Base VS COR FLEX - 450 door | C49: =IF($E49="Not Available","",VLOOKUP(E49,'Prices Furniture'!A:F,5,FALSE)*(1-$S$3)) -> 1402 | E49: =VLOOKUP(A49,Codes!$B:$AP,'Data Validation Lists'!$B$1+2,FALSE) -> @LK-EMD-BCO945 | G49: =IF(AND(B49>0,'Data Validation Lists'!$I$1=1),B49,"") ->  | R49: Furniture
A50: 1000 Corner Base VS COR FLEX - 450 door | C50: =IF($E50="Not Available","",VLOOKUP(E50,'Prices Furniture'!A:F,5,FALSE)*(1-$S$3)) -> 1407 | E50: =VLOOKUP(A50,Codes!$B:$AP,'Data Validation Lists'!$B$1+2,FALSE) -> @LK-EMD-BCO145 | G50: =IF(AND(B50>0,'Data Validation Lists'!$I$1=1),B50,"") ->  | R50: Furniture
A51: 1000 Corner Base VS COR FLEX - 500 door | C51: =IF($E51="Not Available","",VLOOKUP(E51,'Prices Furniture'!A:F,5,FALSE)*(1-$S$3)) -> 1415 | E51: =VLOOKUP(A51,Codes!$B:$AP,'Data Validation Lists'!$B$1+2,FALSE) -> @LK-EMD-BCO15 | G51: =IF(AND(B51>0,'Data Validation Lists'!$I$1=1),B51,"") ->  | R51: Furniture
A52: 1000 Corner Base VS COR FLEX - 600 door | C52: =IF($E52="Not Available","",VLOOKUP(E52,'Prices Furniture'!A:F,5,FALSE)*(1-$S$3)) -> 1431 | E52: =VLOOKUP(A52,Codes!$B:$AP,'Data Validation Lists'!$B$1+2,FALSE) -> @LK-EMD-BCO16 | G52: =IF(AND(B52>0,'Data Validation Lists'!$I$1=1),B52,"") ->  | R52: Furniture
A53: 950 HL Cnr L Base | C53: =IF($E53="Not Available","",VLOOKUP(E53,'Prices Furniture'!A:F,5,FALSE)*(1-$S$3)) -> 618 | E53: =VLOOKUP(A53,Codes!$B:$AP,'Data Validation Lists'!$B$1+2,FALSE) -> @LK-EMD-BCL9 | G53: =IF(AND(B53>0,'Data Validation Lists'!$I$1=1),B53,"") ->  | R53: Furniture
R54: Furniture
A55: 600 Belfast Sink Unit (495mm High) | C55: =IF($E55="Not Available","",VLOOKUP(E55,'Prices Furniture'!A:F,5,FALSE)*(1-$S$3)) -> 285 | D55: =IF(B55="","",B55*C55) ->  | E55: =VLOOKUP(A55,Codes!$B:$AP,'Data Validation Lists'!$B$1+2,FALSE) -> @LK-EMD-BSU6495 | G55: =IF(AND(B55>0,'Data Validation Lists'!$I$1=1),B55,"") ->  | R55: Furniture
A56: 600 Belfast Sink Unit (450mm High) | C56: =IF($E56="Not Available","",VLOOKUP(E56,'Prices Furniture'!A:F,5,FALSE)*(1-$S$3)) -> 283 | D56: =IF(B56="","",B56*C56) ->  | E56: =VLOOKUP(A56,Codes!$B:$AP,'Data Validation Lists'!$B$1+2,FALSE) -> @LK-EMD-BSU6450 | G56: =IF(AND(B56>0,'Data Validation Lists'!$I$1=1),B56,"") ->  | R56: Furniture
R57: Furniture
A58: 300 HL Pan Drawer Unit with 2 Internal Drawers | C58: =IF($E58="Not Available","",VLOOKUP(E58,'Prices Furniture'!A:F,5,FALSE)*(1-$S$3)) -> 628 | D58: =IF(B58="","",B58*C58) ->  | E58: =VLOOKUP(A58,Codes!$B:$AP,'Data Validation Lists'!$B$1+2,FALSE) -> @LK-EMD-BHD3 | G58: =IF(AND(B58>0,'Data Validation Lists'!$I$1=1),B58,"") ->  | H58: =IF(AND(B58>0,'Data Validation Lists'!$I$10>1),(B58*2),"") ->  | I58: =IF(AND($B58>0,'Data Validation Lists'!$I$10>1),SUM($B58*1),"") ->  | R58: Furniture | T58: =IF(B58="","",SUM(D58/1.2)*(1-$S$2)/(1-$S$3)) -> 
A59: 400 HL Pan Drawer Unit with 2 Internal Drawers | C59: =IF($E59="Not Available","",VLOOKUP(E59,'Prices Furniture'!A:F,5,FALSE)*(1-$S$3)) -> 677 | D59: =IF(B59="","",B59*C59) ->  | E59: =VLOOKUP(A59,Codes!$B:$AP,'Data Validation Lists'!$B$1+2,FALSE) -> @LK-EMD-BHD4 | G59: =IF(AND(B59>0,'Data Validation Lists'!$I$1=1),B59,"") ->  | H59: =IF(AND(B59>0,'Data Validation Lists'!$I$10>1),(B59*2),"") ->  | I59: =IF(AND($B59>0,'Data Validation Lists'!$I$10>1),SUM($B59*1),"") ->  | R59: Furniture
A60: 500 HL Pan Drawer Unit with 2 Internal Drawers | C60: =IF($E60="Not Available","",VLOOKUP(E60,'Prices Furniture'!A:F,5,FALSE)*(1-$S$3)) -> 740 | E60: =VLOOKUP(A60,Codes!$B:$AP,'Data Validation Lists'!$B$1+2,FALSE) -> @LK-EMD-BHD5 | G60: =IF(AND(B60>0,'Data Validation Lists'!$I$1=1),B60,"") ->  | H60: =IF(AND(B60>0,'Data Validation Lists'!$I$10>1),(B60*2),"") ->  | I60: =IF(AND($B60>0,'Data Validation Lists'!$I$10>1),SUM($B60*1),"") ->  | R60: Furniture
A61: 600 HL Pan Drawer Unit with 2 Internal Drawers | C61: =IF($E61="Not Available","",VLOOKUP(E61,'Prices Furniture'!A:F,5,FALSE)*(1-$S$3)) -> 796 | E61: =VLOOKUP(A61,Codes!$B:$AP,'Data Validation Lists'!$B$1+2,FALSE) -> @LK-EMD-BHD6 | G61: =IF(AND(B61>0,'Data Validation Lists'!$I$1=1),B61,"") ->  | H61: =IF(AND(B61>0,'Data Validation Lists'!$I$10>1),(B61*2),"") ->  | I61: =IF(AND($B61>0,'Data Validation Lists'!$I$10>1),SUM($B61*1),"") ->  | R61: Furniture
R62: Furniture
A63: 500 4 Drw Base Unit | C63: =IF($E63="Not Available","",VLOOKUP(E63,'Prices Furniture'!A:F,5,FALSE)*(1-$S$3)) -> 846 | D63: =IF(B63="","",B63*C63) ->  | E63: =VLOOKUP(A63,Codes!$B:$AP,'Data Validation Lists'!$B$1+2,FALSE) -> @LK-EMD-BD54 | G63: =IF(AND(B63>0,'Data Validation Lists'!$I$1=1),B63,"") ->  | H63: =IF(AND($B63>0,'Data Validation Lists'!$I$10>1),SUM($B63*3),"") ->  | I63: =IF(AND($B63>0,'Data Validation Lists'!$I$10>1),SUM($B63*1),"") ->  | R63: Furniture
R64: Furniture
A65: 500 3 Drw Base Unit | C65: =IF($E65="Not Available","",VLOOKUP(E65,'Prices Furniture'!A:F,5,FALSE)*(1-$S$3)) -> 714 | D65: =IF(B65="","",B65*C65) ->  | E65: =VLOOKUP(A65,Codes!$B:$AP,'Data Validation Lists'!$B$1+2,FALSE) -> @LK-EMD-BD53 | G65: =IF(AND(B65>0,'Data Validation Lists'!$I$1=1),B65,"") ->  | H65: =IF(AND($B65>0,'Data Validation Lists'!$I$10>1),SUM($B65*1),"") ->  | I65: =IF(AND($B65>0,'Data Validation Lists'!$I$10>1),SUM($B65*2),"") ->  | R65: Furniture
A66: 600 3 Drw Base Unit | C66: =IF($E66="Not Available","",VLOOKUP(E66,'Prices Furniture'!A:F,5,FALSE)*(1-$S$3)) -> 806 | E66: =VLOOKUP(A66,Codes!$B:$AP,'Data Validation Lists'!$B$1+2,FALSE) -> @LK-EMD-BD63 | G66: =IF(AND(B66>0,'Data Validation Lists'!$I$1=1),B66,"") ->  | H66: =IF(AND($B66>0,'Data Validation Lists'!$I$10>1),SUM($B66*1),"") ->  | I66: =IF(AND($B66>0,'Data Validation Lists'!$I$10>1),SUM($B66*2),"") ->  | R66: Furniture
A67: 800 3 Drw Base Unit | C67: =IF($E67="Not Available","",VLOOKUP(E67,'Prices Furniture'!A:F,5,FALSE)*(1-$S$3)) -> 813 | E67: =VLOOKUP(A67,Codes!$B:$AP,'Data Validation Lists'!$B$1+2,FALSE) -> @LK-EMD-BD83 | G67: =IF(AND(B67>0,'Data Validation Lists'!$I$1=1),B67,"") ->  | H67: =IF(AND($B67>0,'Data Validation Lists'!$I$10>1),SUM($B67*1),"") ->  | I67: =IF(AND($B67>0,'Data Validation Lists'!$I$10>1),SUM($B67*2),"") ->  | R67: Furniture
A68: 900 3 Drw Base Unit | C68: =IF($E68="Not Available","",VLOOKUP(E68,'Prices Furniture'!A:F,5,FALSE)*(1-$S$3)) -> 828 | E68: =VLOOKUP(A68,Codes!$B:$AP,'Data Validation Lists'!$B$1+2,FALSE) -> @LK-EMD-BD93 | G68: =IF(AND(B68>0,'Data Validation Lists'!$I$1=1),B68,"") ->  | H68: =IF(AND($B68>0,'Data Validation Lists'!$I$10>1),SUM($B68*1),"") ->  | I68: =IF(AND($B68>0,'Data Validation Lists'!$I$10>1),SUM($B68*2),"") ->  | R68: Furniture
A69: 1000 3 Drw Base Unit | C69: =IF($E69="Not Available","",VLOOKUP(E69,'Prices Furniture'!A:F,5,FALSE)*(1-$S$3)) -> 845 | E69: =VLOOKUP(A69,Codes!$B:$AP,'Data Validation Lists'!$B$1+2,FALSE) -> @LK-EMD-BD13 | G69: =IF(AND(B69>0,'Data Validation Lists'!$I$1=1),B69,"") ->  | H69: =IF(AND($B69>0,'Data Validation Lists'!$I$10>1),SUM($B69*1),"") ->  | I69: =IF(AND($B69>0,'Data Validation Lists'!$I$10>1),SUM($B69*2),"") ->  | R69: Furniture
R70: Furniture
A71: 600 2 Pan Drw Unit | C71: =IF($E71="Not Available","",VLOOKUP(E71,'Prices Furniture'!A:F,5,FALSE)*(1-$S$3)) -> 683 | D71: =IF(B71="","",B71*C71) ->  | E71: =VLOOKUP(A71,Codes!$B:$AP,'Data Validation Lists'!$B$1+2,FALSE) -> @LK-EMD-BD62 | G71: =IF(AND(B71>0,'Data Validation Lists'!$I$1=1),B71,"") ->  | I71: =IF(AND($B71>0,'Data Validation Lists'!$I$10>1),SUM($B71*2),"") ->  | R71: Furniture
A72: 900 2 Pan Drw Unit | C72: =IF($E72="Not Available","",VLOOKUP(E72,'Prices Furniture'!A:F,5,FALSE)*(1-$S$3)) -> 700 | D72: =IF(B72="","",B72*C72) ->  | E72: =VLOOKUP(A72,Codes!$B:$AP,'Data Validation Lists'!$B$1+2,FALSE) -> @LK-EMD-BD92 | G72: =IF(AND(B72>0,'Data Validation Lists'!$I$1=1),B72,"") ->  | I72: =IF(AND($B72>0,'Data Validation Lists'!$I$10>1),SUM($B72*2),"") ->  | R72: Furniture
R73: Furniture
A74: 600 2 Pan Drw Unit + 1 Internal | C74: =IF($E74="Not Available","",VLOOKUP(E74,'Prices Furniture'!A:F,5,FALSE)*(1-$S$3)) -> 859 | D74: =IF(B74="","",B74*C74) ->  | E74: =VLOOKUP(A74,Codes!$B:$AP,'Data Validation Lists'!$B$1+2,FALSE) -> @LK-EMD-BD62I | G74: =IF(AND(B74>0,'Data Validation Lists'!$I$1=1),B74,"") ->  | H74: =IF(AND($B74>0,'Data Validation Lists'!$I$10>1),SUM($B74*1),"") ->  | I74: =IF(AND($B74>0,'Data Validation Lists'!$I$10>1),SUM($B74*2),"") ->  | R74: Furniture
A75: 900 2 Pan Drw Unit + 1 Internal | C75: =IF($E75="Not Available","",VLOOKUP(E75,'Prices Furniture'!A:F,5,FALSE)*(1-$S$3)) -> 901 | D75: =IF(B75="","",B75*C75) ->  | E75: =VLOOKUP(A75,Codes!$B:$AP,'Data Validation Lists'!$B$1+2,FALSE) -> @LK-EMD-BD92I | G75: =IF(AND(B75>0,'Data Validation Lists'!$I$1=1),B75,"") ->  | H75: =IF(AND($B75>0,'Data Validation Lists'!$I$10>1),SUM($B75*1),"") ->  | I75: =IF(AND($B75>0,'Data Validation Lists'!$I$10>1),SUM($B75*2),"") ->  | R75: Furniture
R76: Furniture
A77: 600 Low Single Drawer unit 360 high | C77: =IF($E77="Not Available","",VLOOKUP(E77,'Prices Furniture'!A:F,5,FALSE)*(1-$S$3)) -> 384 | D77: =IF(B77="","",B77*C77) ->  | E77: =VLOOKUP(A77,Codes!$B:$AP,'Data Validation Lists'!$B$1+2,FALSE) -> @LK-EMD-BD635L | G77: =IF(AND(B77>0,'Data Validation Lists'!$I$1=1),B77,"") ->  | J77: =IF(AND($B77>0,'Data Validation Lists'!$I$10>1),SUM($B77*1),"") ->  | R77: Furniture | T77: =IF(B77="","",SUM(D77/1.2)*(1-$S$2)/(1-$S$3)) -> 
R78: Furniture
A79: Wall Units (720mm High) | R79: Furniture
R80: Furniture
A81: 300 Wall Unit (720mm High) | C81: =IF($E81="Not Available","",VLOOKUP(E81,'Prices Furniture'!A:F,5,FALSE)*(1-$S$3)) -> 221 | D81: =IF(B81="","",B81*C81) ->  | E81: =VLOOKUP(A81,Codes!$B:$AP,'Data Validation Lists'!$B$1+2,FALSE) -> @LK-EMD-W30 | G81: =IF(AND(B81>0,'Data Validation Lists'!$I$1=1),B81,"") ->  | R81: Furniture
A82: 350 Wall Unit (720mm High) | C82: =IF($E82="Not Available","",VLOOKUP(E82,'Prices Furniture'!A:F,5,FALSE)*(1-$S$3)) -> 227 | E82: =VLOOKUP(A82,Codes!$B:$AP,'Data Validation Lists'!$B$1+2,FALSE) -> @LK-EMD-W35 | G82: =IF(AND(B82>0,'Data Validation Lists'!$I$1=1),B82,"") ->  | R82: Furniture
A83: 400 Wall Unit (720mm High) | C83: =IF($E83="Not Available","",VLOOKUP(E83,'Prices Furniture'!A:F,5,FALSE)*(1-$S$3)) -> 235 | E83: =VLOOKUP(A83,Codes!$B:$AP,'Data Validation Lists'!$B$1+2,FALSE) -> @LK-EMD-W40 | G83: =IF(AND(B83>0,'Data Validation Lists'!$I$1=1),B83,"") ->  | R83: Furniture
A84: 450 Wall Unit (720mm High) | C84: =IF($E84="Not Available","",VLOOKUP(E84,'Prices Furniture'!A:F,5,FALSE)*(1-$S$3)) -> 252 | E84: =VLOOKUP(A84,Codes!$B:$AP,'Data Validation Lists'!$B$1+2,FALSE) -> @LK-EMD-W45 | G84: =IF(AND(B84>0,'Data Validation Lists'!$I$1=1),B84,"") ->  | R84: Furniture
A85: 500 Wall Unit (720mm High) | C85: =IF($E85="Not Available","",VLOOKUP(E85,'Prices Furniture'!A:F,5,FALSE)*(1-$S$3)) -> 266 | E85: =VLOOKUP(A85,Codes!$B:$AP,'Data Validation Lists'!$B$1+2,FALSE) -> @LK-EMD-W50 | G85: =IF(AND(B85>0,'Data Validation Lists'!$I$1=1),B85,"") ->  | R85: Furniture
A86: 600 Wall Unit (720mm High) | C86: =IF($E86="Not Available","",VLOOKUP(E86,'Prices Furniture'!A:F,5,FALSE)*(1-$S$3)) -> 290 | E86: =VLOOKUP(A86,Codes!$B:$AP,'Data Validation Lists'!$B$1+2,FALSE) -> @LK-EMD-W60 | G86: =IF(AND(B86>0,'Data Validation Lists'!$I$1=1),B86,"") ->  | R86: Furniture
A87: 700 Wall Unit (720mm High) | C87: =IF($E87="Not Available","",VLOOKUP(E87,'Prices Furniture'!A:F,5,FALSE)*(1-$S$3)) -> 383 | E87: =VLOOKUP(A87,Codes!$B:$AP,'Data Validation Lists'!$B$1+2,FALSE) -> @LK-EMD-W70 | G87: =IF(AND(B87>0,'Data Validation Lists'!$I$1=1),B87,"") ->  | R87: Furniture
A88: 800 Wall Unit (720mm High) | C88: =IF($E88="Not Available","",VLOOKUP(E88,'Prices Furniture'!A:F,5,FALSE)*(1-$S$3)) -> 389 | E88: =VLOOKUP(A88,Codes!$B:$AP,'Data Validation Lists'!$B$1+2,FALSE) -> @LK-EMD-W80 | G88: =IF(AND(B88>0,'Data Validation Lists'!$I$1=1),B88,"") ->  | R88: Furniture
A89: 900 Wall Unit (720mm High) | C89: =IF($E89="Not Available","",VLOOKUP(E89,'Prices Furniture'!A:F,5,FALSE)*(1-$S$3)) -> 409 | D89: =IF(B89="","",B89*C89) ->  | E89: =VLOOKUP(A89,Codes!$B:$AP,'Data Validation Lists'!$B$1+2,FALSE) -> @LK-EMD-W90 | G89: =IF(AND(B89>0,'Data Validation Lists'!$I$1=1),B89,"") ->  | R89: Furniture
A90: 1000 Wall Unit (720mm High) | C90: =IF($E90="Not Available","",VLOOKUP(E90,'Prices Furniture'!A:F,5,FALSE)*(1-$S$3)) -> 434 | D90: =IF(B90="","",B90*C90) ->  | E90: =VLOOKUP(A90,Codes!$B:$AP,'Data Validation Lists'!$B$1+2,FALSE) -> @LK-EMD-W100 | G90: =IF(AND(B90>0,'Data Validation Lists'!$I$1=1),B90,"") ->  | R90: Furniture
R91: Furniture
A92: 600 Cnr Wall Unit (720mm High) | C92: =IF($E92="Not Available","",VLOOKUP(E92,'Prices Furniture'!A:F,5,FALSE)*(1-$S$3)) -> 309 | D92: =IF(B92="","",B92*C92) ->  | E92: =VLOOKUP(A92,Codes!$B:$AP,'Data Validation Lists'!$B$1+2,FALSE) -> @LK-EMD-WC6 | G92: =IF(AND(B92>0,'Data Validation Lists'!$I$1=1),B92,"") ->  | R92: Furniture
A93: 900 Cnr Wall Unit (720mm High) | C93: =IF($E93="Not Available","",VLOOKUP(E93,'Prices Furniture'!A:F,5,FALSE)*(1-$S$3)) -> 371 | D93: =IF(B93="","",B93*C93) ->  | E93: =VLOOKUP(A93,Codes!$B:$AP,'Data Validation Lists'!$B$1+2,FALSE) -> @LK-EMD-WC9 | G93: =IF(AND(B93>0,'Data Validation Lists'!$I$1=1),B93,"") ->  | R93: Furniture
A94: 650 L Cnr Wall Unit (720mm High) | C94: =IF($E94="Not Available","",VLOOKUP(E94,'Prices Furniture'!A:F,5,FALSE)*(1-$S$3)) -> 553 | D94: =IF(B94="","",B94*C94) ->  | E94: =VLOOKUP(A94,Codes!$B:$AP,'Data Validation Lists'!$B$1+2,FALSE) -> @LK-EMD-WCL65 | G94: =IF(AND(B94>0,'Data Validation Lists'!$I$1=1),B94,"") ->  | R94: Furniture
R95: Furniture
A96: 600 Wall Microwave Unit | C96: =IF($E96="Not Available","",VLOOKUP(E96,'Prices Furniture'!A:F,5,FALSE)*(1-$S$3)) -> 361 | D96: =IF(B96="","",B96*C96) ->  | E96: =VLOOKUP(A96,Codes!$B:$AP,'Data Validation Lists'!$B$1+2,FALSE) -> @LK-EMD-WM60 | G96: =IF(AND(B96>0,'Data Validation Lists'!$I$1=1),B96,"") ->  | R96: Furniture
A97: 600 Boiler Housing | C97: =IF($E97="Not Available","",VLOOKUP(E97,'Prices Furniture'!A:F,5,FALSE)*(1-$S$3)) -> 282 | D97: =IF(B97="","",B97*C97) ->  | E97: =VLOOKUP(A97,Codes!$B:$AP,'Data Validation Lists'!$B$1+2,FALSE) -> @LK-EMD-WBHU | R97: Furniture
R98: Furniture
A99: 600 Bifold Unit | C99: =IF($E99="Not Available","",VLOOKUP(E99,'Prices Furniture'!A:F,5,FALSE)*(1-$S$3)) -> 663 | D99: =IF(B99="","",B99*C99) ->  | E99: =VLOOKUP(A99,Codes!$B:$AP,'Data Validation Lists'!$B$1+2,FALSE) -> @LK-EMD-WBI60 | G99: =IF(AND(B99>0,'Data Validation Lists'!$I$1=1),B99,"") ->  | R99: Furniture
A100: 900 Bifold Unit | C100: =IF($E100="Not Available","",VLOOKUP(E100,'Prices Furniture'!A:F,5,FALSE)*(1-$S$3)) -> 695 | D100: =IF(B100="","",B100*C100) ->  | E100: =VLOOKUP(A100,Codes!$B:$AP,'Data Validation Lists'!$B$1+2,FALSE) -> @LK-EMD-WBI90 | G100: =IF(AND(B100>0,'Data Validation Lists'!$I$1=1),B100,"") ->  | R100: Furniture
R101: Furniture
A102: 600 285 Bridging Unit | C102: =IF($E102="Not Available","",VLOOKUP(E102,'Prices Furniture'!A:F,5,FALSE)*(1-$S$3)) -> 237 | D102: =IF(B102="","",B102*C102) ->  | E102: =VLOOKUP(A102,Codes!$B:$AP,'Data Validation Lists'!$B$1+2,FALSE) -> @LK-EMD-WB62 | G102: =IF(AND(B102>0,'Data Validation Lists'!$I$1=1),B102,"") ->  | R102: Furniture
A103: 800 285 Bridging Unit | C103: =IF($E103="Not Available","",VLOOKUP(E103,'Prices Furniture'!A:F,5,FALSE)*(1-$S$3)) -> 295 | D103: =IF(B103="","",B103*C103) ->  | E103: =VLOOKUP(A103,Codes!$B:$AP,'Data Validation Lists'!$B$1+2,FALSE) -> @LK-EMD-WB82 | G103: =IF(AND(B103>0,'Data Validation Lists'!$I$1=1),B103,"") ->  | R103: Furniture
A104: 900 285 Bridging Unit | C104: =IF($E104="Not Available","",VLOOKUP(E104,'Prices Furniture'!A:F,5,FALSE)*(1-$S$3)) -> 312 | D104: =IF(B104="","",B104*C104) ->  | E104: =VLOOKUP(A104,Codes!$B:$AP,'Data Validation Lists'!$B$1+2,FALSE) -> @LK-EMD-WB92 | G104: =IF(AND(B104>0,'Data Validation Lists'!$I$1=1),B104,"") ->  | R104: Furniture
A105: 1000 285 Bridging Unit | C105: =IF($E105="Not Available","",VLOOKUP(E105,'Prices Furniture'!A:F,5,FALSE)*(1-$S$3)) -> 338 | D105: =IF(B105="","",B105*C105) ->  | E105: =VLOOKUP(A105,Codes!$B:$AP,'Data Validation Lists'!$B$1+2,FALSE) -> @LK-EMD-WB12 | G105: =IF(AND(B105>0,'Data Validation Lists'!$I$1=1),B105,"") ->  | R105: Furniture
R106: Furniture
A107: 600 355mm Bridging Unit | C107: =IF($E107="Not Available","",VLOOKUP(E107,'Prices Furniture'!A:F,5,FALSE)*(1-$S$3)) -> 295 | D107: =IF(B107="","",B107*C107) ->  | E107: =VLOOKUP(A107,Codes!$B:$AP,'Data Validation Lists'!$B$1+2,FALSE) -> @LK-EMD-WB63 | G107: =IF(AND(B107>0,'Data Validation Lists'!$I$1=1),B107,"") ->  | R107: Furniture
A108: 900 355mm Bridging Unit | C108: =IF($E108="Not Available","",VLOOKUP(E108,'Prices Furniture'!A:F,5,FALSE)*(1-$S$3)) -> 344 | D108: =IF(B108="","",B108*C108) ->  | E108: =VLOOKUP(A108,Codes!$B:$AP,'Data Validation Lists'!$B$1+2,FALSE) -> @LK-EMD-WB93 | G108: =IF(AND(B108>0,'Data Validation Lists'!$I$1=1),B108,"") ->  | R108: Furniture
A109: Over Counter Corner Appliance Housings (1248mm High) | R109: Furniture | T109: =IF(B109="","",SUM(D109/1.2)*(1-$S$2)/(1-$S$3)) -> 
R110: Furniture
A111: 600 Corner Single Oven Housing | C111: =IF($E111="Not Available","",VLOOKUP(E111,'Prices Furniture'!A:F,5,FALSE)*(1-$S$3)) -> 654 | D111: =IF(B111="","",B111*C111) ->  | E111: =VLOOKUP(A111,Codes!$B:$AP,'Data Validation Lists'!$B$1+2,FALSE) -> @LK-EMD-CH-SO | R111: Furniture
A112: 600 Corner Compact App/Micro Housing | C112: =IF($E112="Not Available","",VLOOKUP(E112,'Prices Furniture'!A:F,5,FALSE)*(1-$S$3)) -> 700 | D112: =IF(B112="","",B112*C112) ->  | E112: =VLOOKUP(A112,Codes!$B:$AP,'Data Validation Lists'!$B$1+2,FALSE) -> @LK-EMD-CH-MW | H112: =IF(AND($B112>0,'Data Validation Lists'!$I$10>1),SUM($B112*1),"") ->  | R112: Furniture
A113: 600 Corner Storage Unit | C113: =IF($E113="Not Available","",VLOOKUP(E113,'Prices Furniture'!A:F,5,FALSE)*(1-$S$3)) -> 880 | D113: =IF(B113="","",B113*C113) ->  | E113: =VLOOKUP(A113,Codes!$B:$AP,'Data Validation Lists'!$B$1+2,FALSE) -> @LK-EMD-CH-ST | H113: =IF(AND($B113>0,'Data Validation Lists'!$I$10>1),SUM($B113*1),"") ->  | R113: Furniture
R114: Furniture
A115: Appliance Housings (1968mm High) | R115: Furniture | T115: =IF(B115="","",SUM(D115/1.2)*(1-$S$2)/(1-$S$3)) -> 
R116: Furniture
A117: 600 50/50 FF Housing Unit | C117: =IF($E117="Not Available","",VLOOKUP(E117,'Prices Furniture'!A:F,5,FALSE)*(1-$S$3)) -> 735 | D117: =IF(B117="","",B117*C117) ->  | E117: =VLOOKUP(A117,Codes!$B:$AP,'Data Validation Lists'!$B$1+2,FALSE) -> @LK-EMD-AH-F55 | R117: Furniture
A118: 600 70/30 FF Housing Unit | C118: =IF($E118="Not Available","",VLOOKUP(E118,'Prices Furniture'!A:F,5,FALSE)*(1-$S$3)) -> 711 | D118: =IF(B118="","",B118*C118) ->  | E118: =VLOOKUP(A118,Codes!$B:$AP,'Data Validation Lists'!$B$1+2,FALSE) -> @LK-EMD-AH-F73 | R118: Furniture
R119: Furniture
A120: 600 Dble Oven Housing | C120: =IF($E120="Not Available","",VLOOKUP(E120,'Prices Furniture'!A:F,5,FALSE)*(1-$S$3)) -> 731 | D120: =IF(B120="","",B120*C120) ->  | E120: =VLOOKUP(A120,Codes!$B:$AP,'Data Validation Lists'!$B$1+2,FALSE) -> @LK-EMD-AH-DO | R120: Furniture
A121: 600 Dble Oven & 2 Drws | C121: =IF($E121="Not Available","",VLOOKUP(E121,'Prices Furniture'!A:F,5,FALSE)*(1-$S$3)) -> 1058 | D121: =IF(B121="","",B121*C121) ->  | E121: =VLOOKUP(A121,Codes!$B:$AP,'Data Validation Lists'!$B$1+2,FALSE) -> @LK-EMD-AH-DO2D | I121: =IF(AND($B121>0,'Data Validation Lists'!$I$10>1),SUM($B121*2),"") ->  | R121: Furniture
A122: 600 Double Oven & MW unit | C122: =IF($E122="Not Available","",VLOOKUP(E122,'Prices Furniture'!A:F,5,FALSE)*(1-$S$3)) -> 927 | D122: =IF(B122="","",B122*C122) ->  | E122: =VLOOKUP(A122,Codes!$B:$AP,'Data Validation Lists'!$B$1+2,FALSE) -> @LK-EMD-AH-DMW | I122: =IF(AND($B122>0,'Data Validation Lists'!$I$10>1),SUM($B122*1),"") ->  | R122: Furniture
R123: Furniture
A124: 600 Single Oven Housing | C124: =IF($E124="Not Available","",VLOOKUP(E124,'Prices Furniture'!A:F,5,FALSE)*(1-$S$3)) -> 750 | D124: =IF(B124="","",B124*C124) ->  | E124: =VLOOKUP(A124,Codes!$B:$AP,'Data Validation Lists'!$B$1+2,FALSE) -> @LK-EMD-AH-SO | H124: =IF(AND($B124>0,'Data Validation Lists'!$I$10>1),SUM($B124*1),"") ->  | R124: Furniture
A125: 600 Single Oven + 1 Drw Unit | C125: =IF($E125="Not Available","",VLOOKUP(E125,'Prices Furniture'!A:F,5,FALSE)*(1-$S$3)) -> 896 | E125: =VLOOKUP(A125,Codes!$B:$AP,'Data Validation Lists'!$B$1+2,FALSE) -> @LK-EMD-AH-SO1D | H125: =IF(AND($B125>0,'Data Validation Lists'!$I$10>1),SUM($B125*1),"") ->  | R125: Furniture
A126: 600 Single Oven + 2 Drws Unit | C126: =IF($E126="Not Available","",VLOOKUP(E126,'Prices Furniture'!A:F,5,FALSE)*(1-$S$3)) -> 1112 | E126: =VLOOKUP(A126,Codes!$B:$AP,'Data Validation Lists'!$B$1+2,FALSE) -> @LK-EMD-AH-SO2D | I126: =IF(AND($B126>0,'Data Validation Lists'!$I$10>1),SUM($B126*2),"") ->  | R126: Furniture
A127: 600 Single Oven + 3 Drws Unit | C127: =IF($E127="Not Available","",VLOOKUP(E127,'Prices Furniture'!A:F,5,FALSE)*(1-$S$3)) -> 1261 | E127: =VLOOKUP(A127,Codes!$B:$AP,'Data Validation Lists'!$B$1+2,FALSE) -> @LK-EMD-AH-SO3D | H127: =IF(AND($B127>0,'Data Validation Lists'!$I$10>1),SUM($B127*1),"") ->  | I127: =IF(AND($B127>0,'Data Validation Lists'!$I$10>1),SUM($B127*2),"") ->  | R127: Furniture
A128: 600 Sgle Oven & MW 2 Door unit | C128: =IF($E128="Not Available","",VLOOKUP(E128,'Prices Furniture'!A:F,5,FALSE)*(1-$S$3)) -> 786 | E128: =VLOOKUP(A128,Codes!$B:$AP,'Data Validation Lists'!$B$1+2,FALSE) -> @LK-EMD-AH-SMW | R128: Furniture
A129: 600 Single Oven & MW 2 Drw unit | C129: =IF($E129="Not Available","",VLOOKUP(E129,'Prices Furniture'!A:F,5,FALSE)*(1-$S$3)) -> 1074 | D129: =IF(B129="","",B129*C129) ->  | E129: =VLOOKUP(A129,Codes!$B:$AP,'Data Validation Lists'!$B$1+2,FALSE) -> @LK-EMD-AH-SM2D | H129: =IF(AND($B129>0,'Data Validation Lists'!$I$10>1),SUM($B129*1),"") ->  | I129: =IF(AND($B129>0,'Data Validation Lists'!$I$10>1),SUM($B129*1),"") ->  | R129: Furniture | T129: =IF(B129="","",SUM(D129/1.2)*(1-$S$2)/(1-$S$3)) -> 
A130: 600 Twin Single Oven Housing | C130: =IF($E130="Not Available","",VLOOKUP(E130,'Prices Furniture'!A:F,5,FALSE)*(1-$S$3)) -> 876 | E130: =VLOOKUP(A130,Codes!$B:$AP,'Data Validation Lists'!$B$1+2,FALSE) -> @LK-EMD-AH-SOT | I130: =IF(AND($B130>0,'Data Validation Lists'!$I$10>1),SUM($B130*1),"") ->  | R130: Furniture
R131: Furniture
A132: 600 Compact / Microwave Housing | C132: =IF($E132="Not Available","",VLOOKUP(E132,'Prices Furniture'!A:F,5,FALSE)*(1-$S$3)) -> 823 | D132: =IF(B132="","",B132*C132) ->  | E132: =VLOOKUP(A132,Codes!$B:$AP,'Data Validation Lists'!$B$1+2,FALSE) -> @LK-EMD-AH-CO | R132: Furniture
R133: Furniture
A134: 600 BU Oven Housing | C134: =IF($E134="Not Available","",VLOOKUP(E134,'Prices Furniture'!A:F,5,FALSE)*(1-$S$3)) -> 199 | D134: =IF(B134="","",B134*C134) ->  | E134: =VLOOKUP(A134,Codes!$B:$AP,'Data Validation Lists'!$B$1+2,FALSE) -> @LK-EMD-BOH6 | G134: =IF(AND(B134>0,'Data Validation Lists'!$I$1=1),B134,"") ->  | R134: Furniture
A135: 600 BU Oven Housing with drawer -18mm | C135: =IF($E135="Not Available","",VLOOKUP(E135,'Prices Furniture'!A:F,5,FALSE)*(1-$S$3)) -> 312 | D135: =IF(B135="","",B135*C135) ->  | E135: =VLOOKUP(A135,Codes!$B:$AP,'Data Validation Lists'!$B$1+2,FALSE) -> @LK-EMD-BOHD6 | G135: =IF(AND(B135>0,'Data Validation Lists'!$I$1=1),B135,"") ->  | R135: Furniture
R136: Furniture
A137: Appliance Doors | R137: Furniture
R138: Furniture
A139: 600 Integrated Extractor Door | C139: =IF($E139="Not Available","",VLOOKUP(E139,'Prices Furniture'!A:F,5,FALSE)*(1-$S$3)) -> 95 | D139: =IF(B139="","",B139*C139) ->  | E139: =VLOOKUP(A139,Codes!$B:$AP,'Data Validation Lists'!$B$1+2,FALSE) -> @LK-EMD-AD60ICH | R139: Furniture
A140: 600 Fridge/Dishwasher Fascia | C140: =IF($E140="Not Available","",VLOOKUP(E140,'Prices Furniture'!A:F,5,FALSE)*(1-$S$3)) -> 131 | D140: =IF(B140="","",B140*C140) ->  | E140: =VLOOKUP(A140,Codes!$B:$AP,'Data Validation Lists'!$B$1+2,FALSE) -> @LK-EMD-AD60FD | R140: Furniture
A141: 450 Integrated Dishwasher Fascia | C141: =IF($E141="Not Available","",VLOOKUP(E141,'Prices Furniture'!A:F,5,FALSE)*(1-$S$3)) -> 107 | D141: =IF(B141="","",B141*C141) ->  | E141: =VLOOKUP(A141,Codes!$B:$AP,'Data Validation Lists'!$B$1+2,FALSE) -> @LK-EMD-AD45I | R141: Furniture
A142: 600 Semi Int Dishwasher Fascia | C142: =IF($E142="Not Available","",VLOOKUP(E142,'Prices Furniture'!A:F,5,FALSE)*(1-$S$3)) -> 129 | D142: =IF(B142="","",B142*C142) ->  | E142: =VLOOKUP(A142,Codes!$B:$AP,'Data Validation Lists'!$B$1+2,FALSE) -> @LK-EMD-AD60S | R142: Furniture
A143: 900 Boiler Door | C143: =IF($E143="Not Available","",VLOOKUP(E143,'Prices Furniture'!A:F,5,FALSE)*(1-$S$3)) -> 133 | D143: =IF(B143="","",B143*C143) ->  | E143: =VLOOKUP(A143,Codes!$B:$AP,'Data Validation Lists'!$B$1+2,FALSE) -> @LK-EMD-BLD9 | R143: Furniture
R144: Furniture
A145: Larders (1968mm High) | R145: Furniture
R146: Furniture
A147: 300 Larder Unit | C147: =IF($E147="Not Available","",VLOOKUP(E147,'Prices Furniture'!A:F,5,FALSE)*(1-$S$3)) -> 663 | D147: =IF(B147="","",B147*C147) ->  | E147: =VLOOKUP(A147,Codes!$B:$AP,'Data Validation Lists'!$B$1+2,FALSE) -> @LK-EMD-L3 | R147: Furniture
A149: 500 Larder Unit | C149: =IF($E149="Not Available","",VLOOKUP(E149,'Prices Furniture'!A:F,5,FALSE)*(1-$S$3)) -> 723 | E149: =VLOOKUP(A149,Codes!$B:$AP,'Data Validation Lists'!$B$1+2,FALSE) -> @LK-EMD-L5 | R149: Furniture
A150: 600 Larder Unit | C150: =IF($E150="Not Available","",VLOOKUP(E150,'Prices Furniture'!A:F,5,FALSE)*(1-$S$3)) -> 794 | E150: =VLOOKUP(A150,Codes!$B:$AP,'Data Validation Lists'!$B$1+2,FALSE) -> @LK-EMD-L6 | R150: Furniture | T150: =IF(B150="","",SUM(D150/1.2)*(1-$S$2)/(1-$S$3)) -> 
A152: 300 Larder & TAL LARDER Pull Out | C152: =IF($E152="Not Available","",VLOOKUP(E152,'Prices Furniture'!A:F,5,FALSE)*(1-$S$3)) -> 1445 | D152: =IF(B152="","",B152*C152) ->  | E152: =VLOOKUP(A152,Codes!$B:$AP,'Data Validation Lists'!$B$1+2,FALSE) -> @LK-EMD-LP3 | R152: Furniture
A154: 300 Larder Tower | C154: =IF($E154="Not Available","",VLOOKUP(E154,'Prices Furniture'!A:F,5,FALSE)*(1-$S$3)) -> 1764 | E154: =VLOOKUP(A154,Codes!$B:$AP,'Data Validation Lists'!$B$1+2,FALSE) -> @LK-EMD-LT3 | R154: Furniture
A155: 500 Larder Tower | C155: =IF($E155="Not Available","",VLOOKUP(E155,'Prices Furniture'!A:F,5,FALSE)*(1-$S$3)) -> 1892 | E155: =VLOOKUP(A155,Codes!$B:$AP,'Data Validation Lists'!$B$1+2,FALSE) -> @LK-EMD-LT5 | R155: Furniture
A156: 600 Larder Tower | C156: =IF($E156="Not Available","",VLOOKUP(E156,'Prices Furniture'!A:F,5,FALSE)*(1-$S$3)) -> 2029 | E156: =VLOOKUP(A156,Codes!$B:$AP,'Data Validation Lists'!$B$1+2,FALSE) -> @LK-EMD-LT6 | R156: Furniture
A158: 500 Larder & TAL GATE PRO Pull Out | C158: =IF($E158="Not Available","",VLOOKUP(E158,'Prices Furniture'!A:F,5,FALSE)*(1-$S$3)) -> 1915 | D158: =IF(B158="","",B158*C158) ->  | E158: =VLOOKUP(A158,Codes!$B:$AP,'Data Validation Lists'!$B$1+2,FALSE) -> @LK-EMD-LP5T | R158: Furniture | T158: =IF(B158="","",SUM(D158/1.2)*(1-$S$2)/(1-$S$3)) -> 
A159: 600 Larder & TAL GATE PRO Pull Out | C159: =IF($E159="Not Available","",VLOOKUP(E159,'Prices Furniture'!A:F,5,FALSE)*(1-$S$3)) -> 1980 | E159: =VLOOKUP(A159,Codes!$B:$AP,'Data Validation Lists'!$B$1+2,FALSE) -> @LK-EMD-LP6T | R159: Furniture
A160: 500 Larder & TAL GATE Pull Out | C160: =IF($E160="Not Available","",VLOOKUP(E160,'Prices Furniture'!A:F,5,FALSE)*(1-$S$3)) -> 1657 | E160: =VLOOKUP(A160,Codes!$B:$AP,'Data Validation Lists'!$B$1+2,FALSE) -> @LK-EMD-LP5TS | R160: Furniture
A161: 600 Larder & TAL GATE Pull Out | C161: =IF($E161="Not Available","",VLOOKUP(E161,'Prices Furniture'!A:F,5,FALSE)*(1-$S$3)) -> 1781 | E161: =VLOOKUP(A161,Codes!$B:$AP,'Data Validation Lists'!$B$1+2,FALSE) -> @LK-EMD-LP6TS | R161: Furniture
R162: Furniture
A163: Angled Corner Larder | C163: =IF($E163="Not Available","",VLOOKUP(E163,'Prices Furniture'!A:F,5,FALSE)*(1-$S$3)) -> 2084 | D163: =IF(B163="","",B163*C163) ->  | E163: =VLOOKUP(A163,Codes!$B:$AP,'Data Validation Lists'!$B$1+2,FALSE) -> @LK-EMD-LAC | R163: Furniture
R164: Furniture
A165: 1000mm Larder 4 Doors | C165: =IF($E165="Not Available","",VLOOKUP(E165,'Prices Furniture'!A:F,5,FALSE)*(1-$S$3)) -> 1124 | D165: =IF(B165="","",B165*C165) ->  | E165: =VLOOKUP(A165,Codes!$B:$AP,'Data Validation Lists'!$B$1+2,FALSE) -> @LK-EMD-LPN14D | R165: Furniture
A166: 1000mm Larder 2 Doors 3 Drawers | C166: =IF($E166="Not Available","",VLOOKUP(E166,'Prices Furniture'!A:F,5,FALSE)*(1-$S$3)) -> 1523 | E166: =VLOOKUP(A166,Codes!$B:$AP,'Data Validation Lists'!$B$1+2,FALSE) -> @LK-EMD-LPN12D3DW | H166: =IF(AND($B166>0,'Data Validation Lists'!$I$10>1),SUM($B166*1),"") ->  | I166: =IF(AND($B166>0,'Data Validation Lists'!$I$10>1),SUM($B166*2),"") ->  | R166: Furniture
A167: 1000mm Larder 2 Doors 2 Drawers | C167: =IF($E167="Not Available","",VLOOKUP(E167,'Prices Furniture'!A:F,5,FALSE)*(1-$S$3)) -> 1392 | E167: =VLOOKUP(A167,Codes!$B:$AP,'Data Validation Lists'!$B$1+2,FALSE) -> @LK-EMD-LPN12D2DW | I167: =IF(AND($B167>0,'Data Validation Lists'!$I$10>1),SUM($B167*2),"") ->  | R167: Furniture
A169: 1000mm Blind Corner larder 500 door | C169: =IF($E169="Not Available","",VLOOKUP(E169,'Prices Furniture'!A:F,5,FALSE)*(1-$S$3)) -> 944 | D169: =IF(B169="","",B169*C169) ->  | E169: =VLOOKUP(A169,Codes!$B:$AP,'Data Validation Lists'!$B$1+2,FALSE) -> @LK-EMD-LBC15 | R169: Furniture | T169: =IF(B169="","",SUM(D169/1.2)*(1-$S$2)/(1-$S$3)) -> 
A171: 1000mm Blind Corner larder 600 door | C171: =IF($E171="Not Available","",VLOOKUP(E171,'Prices Furniture'!A:F,5,FALSE)*(1-$S$3)) -> 970 | E171: =VLOOKUP(A171,Codes!$B:$AP,'Data Validation Lists'!$B$1+2,FALSE) -> @LK-EMD-LBC16 | R171: Furniture
A173: 1000 Corner Larder VS CORNERSTONE MAXX LH 500 Door | C173: =IF($E173="Not Available","",VLOOKUP(E173,'Prices Furniture'!A:F,5,FALSE)*(1-$S$3)) -> 2782 | E173: =VLOOKUP(A173,Codes!$B:$AP,'Data Validation Lists'!$B$1+2,FALSE) -> @LK-EMD-LBCLM15L | F173: Note: This unit is handed by the Wirework | R173: Furniture
A174: 1000 Corner Larder VS CORNERSTONE MAXX RH 500 Door | C174: =IF($E174="Not Available","",VLOOKUP(E174,'Prices Furniture'!A:F,5,FALSE)*(1-$S$3)) -> 2782 | E174: =VLOOKUP(A174,Codes!$B:$AP,'Data Validation Lists'!$B$1+2,FALSE) -> @LK-EMD-LBCLM15R | F174: Note: This unit is handed by the Wirework | R174: Furniture
A175: 1000 Corner Larder VS CORNERSTONE MAXX LH 600 Door | C175: =IF($E175="Not Available","",VLOOKUP(E175,'Prices Furniture'!A:F,5,FALSE)*(1-$S$3)) -> 2934 | E175: =VLOOKUP(A175,Codes!$B:$AP,'Data Validation Lists'!$B$1+2,FALSE) -> @LK-EMD-LBCLM16L | F175: Note: This unit is handed by the Wirework | R175: Furniture
A176: 1000 Corner Larder VS CORNERSTONE MAXX RH 600 Door | C176: =IF($E176="Not Available","",VLOOKUP(E176,'Prices Furniture'!A:F,5,FALSE)*(1-$S$3)) -> 2934 | E176: =VLOOKUP(A176,Codes!$B:$AP,'Data Validation Lists'!$B$1+2,FALSE) -> @LK-EMD-LBCLM16R | F176: Note: This unit is handed by the Wirework | R176: Furniture
R177: Furniture
R178: Furniture
A179: Lifestyle Larders (1968mm High) | R179: Furniture
R180: Furniture
R181: Furniture
A182: 600 Easy Access Larder | C182: =IF($E182="Not Available","",VLOOKUP(E182,'Prices Furniture'!A:F,5,FALSE)*(1-$S$3)) -> 836 | D182: =IF(B182="","",B182*C182) ->  | E182: =VLOOKUP(A182,Codes!$B:$AP,'Data Validation Lists'!$B$1+2,FALSE) -> @LK-EMD-LL6EA | R182: Furniture
A183: 600 Cleaning & Utility Larder | C183: =IF($E183="Not Available","",VLOOKUP(E183,'Prices Furniture'!A:F,5,FALSE)*(1-$S$3)) -> 786 | E183: =VLOOKUP(A183,Codes!$B:$AP,'Data Validation Lists'!$B$1+2,FALSE) -> @LK-EMD-LL6CU | R183: Furniture
A184: 1000 Cleaning & Utility Larder | C184: =IF($E184="Not Available","",VLOOKUP(E184,'Prices Furniture'!A:F,5,FALSE)*(1-$S$3)) -> 1235 | E184: =VLOOKUP(A184,Codes!$B:$AP,'Data Validation Lists'!$B$1+2,FALSE) -> @LK-EMD-LL10CU | R184: Furniture
A185: 1000 Cleaning & Utility Ex Shelves Larder | C185: =IF($E185="Not Available","",VLOOKUP(E185,'Prices Furniture'!A:F,5,FALSE)*(1-$S$3)) -> 1334 | E185: =VLOOKUP(A185,Codes!$B:$AP,'Data Validation Lists'!$B$1+2,FALSE) -> @LK-EMD-LL10CUS | R185: Furniture
A186: 1000 Combi Larder | C186: =IF($E186="Not Available","",VLOOKUP(E186,'Prices Furniture'!A:F,5,FALSE)*(1-$S$3)) -> 1245 | E186: =VLOOKUP(A186,Codes!$B:$AP,'Data Validation Lists'!$B$1+2,FALSE) -> @LK-EMD-LL10CB | R186: Furniture
R187: Furniture
A188: 800mm Laundry Stacker Larder | C188: =IF($E188="Not Available","",VLOOKUP(E188,'Prices Furniture'!A:F,5,FALSE)*(1-$S$3)) -> 1364 | D188: =IF(B188="","",B188*C188) ->  | E188: =VLOOKUP(A188,Codes!$B:$AP,'Data Validation Lists'!$B$1+2,FALSE) -> @LK-EMD-LL8LS | R188: Furniture | T188: =IF(B188="","",SUM(D188/1.2)*(1-$S$2)/(1-$S$3)) -> 
R189: Furniture
A190: Lifestyle Cube for Combi 447d Anthracite Linen | C190: =IF($E190="Not Available","",VLOOKUP(E190,'Prices Furniture'!A:F,5,FALSE)*(1-$S$3)) -> 121 | D190: =IF(B190="","",B190*C190) ->  | E190: =VLOOKUP(A190,Codes!$B:$AP,'Data Validation Lists'!$B$1+2,FALSE) -> LK-A-ALN-LSCUBE4 | R190: Furniture
A191: Lifestyle Cube for Combi 447d Grey Linen | C191: =IF($E191="Not Available","",VLOOKUP(E191,'Prices Furniture'!A:F,5,FALSE)*(1-$S$3)) -> 121 | E191: =VLOOKUP(A191,Codes!$B:$AP,'Data Validation Lists'!$B$1+2,FALSE) -> LK-A-GLN-LSCUBE4 | R191: Furniture
A192: Lifestyle Cube for Combi 447d Oak | C192: =IF($E192="Not Available","",VLOOKUP(E192,'Prices Furniture'!A:F,5,FALSE)*(1-$S$3)) -> 121 | E192: =VLOOKUP(A192,Codes!$B:$AP,'Data Validation Lists'!$B$1+2,FALSE) -> LK-A-LISW-LSCUBE4 | R192: Furniture
A193: Lifestyle Cube for Combi 447d Stone Grey | C193: =IF($E193="Not Available","",VLOOKUP(E193,'Prices Furniture'!A:F,5,FALSE)*(1-$S$3)) -> 121 | E193: =VLOOKUP(A193,Codes!$B:$AP,'Data Validation Lists'!$B$1+2,FALSE) -> LK-A-STG-LSCUBE4 | R193: Furniture | T193: =IF(B193="","",SUM(D193/1.2)*(1-$S$2)/(1-$S$3)) -> 
A194: Lifestyle Cube for Combi 447d Matt White | C194: =IF($E194="Not Available","",VLOOKUP(E194,'Prices Furniture'!A:F,5,FALSE)*(1-$S$3)) -> 121 | D194: =IF(B194="","",B194*C194) ->  | E194: =VLOOKUP(A194,Codes!$B:$AP,'Data Validation Lists'!$B$1+2,FALSE) -> LK-A-WHT-LSCUBE4 | R194: Furniture | T194: =IF(B194="","",SUM(D194/1.2)*(1-$S$2)/(1-$S$3)) -> 
A195: Lifestyle Cube for Combi 447d Walnut | C195: =IF($E195="Not Available","",VLOOKUP(E195,'Prices Furniture'!A:F,5,FALSE)*(1-$S$3)) -> 121 | D195: =IF(B195="","",B195*C195) ->  | E195: =VLOOKUP(A195,Codes!$B:$AP,'Data Validation Lists'!$B$1+2,FALSE) -> LK-A-WAL-LSCUBE4 | R195: Furniture | T195: =IF(B195="","",SUM(D195/1.2)*(1-$S$2)/(1-$S$3)) -> 
R196: Furniture
A197: Lifestyle Cube for Combi 547d Anthracite Linen | C197: =IF($E197="Not Available","",VLOOKUP(E197,'Prices Furniture'!A:F,5,FALSE)*(1-$S$3)) -> 140 | E197: =VLOOKUP(A197,Codes!$B:$AP,'Data Validation Lists'!$B$1+2,FALSE) -> LK-A-ALN-LSCUBE5 | R197: Furniture
A198: Lifestyle Cube for Combi 547d Grey Linen | C198: =IF($E198="Not Available","",VLOOKUP(E198,'Prices Furniture'!A:F,5,FALSE)*(1-$S$3)) -> 140 | E198: =VLOOKUP(A198,Codes!$B:$AP,'Data Validation Lists'!$B$1+2,FALSE) -> LK-A-GLN-LSCUBE5 | R198: Furniture
A199: Lifestyle Cube for Combi 547d Oak | C199: =IF($E199="Not Available","",VLOOKUP(E199,'Prices Furniture'!A:F,5,FALSE)*(1-$S$3)) -> 140 | E199: =VLOOKUP(A199,Codes!$B:$AP,'Data Validation Lists'!$B$1+2,FALSE) -> LK-A-LISW-LSCUBE5 | R199: Furniture
A200: Lifestyle Cube for Combi 547d Stone Grey | C200: =IF($E200="Not Available","",VLOOKUP(E200,'Prices Furniture'!A:F,5,FALSE)*(1-$S$3)) -> 140 | E200: =VLOOKUP(A200,Codes!$B:$AP,'Data Validation Lists'!$B$1+2,FALSE) -> LK-A-STG-LSCUBE5 | R200: Furniture
A201: Lifestyle Cube for Combi 547d Matt White | C201: =IF($E201="Not Available","",VLOOKUP(E201,'Prices Furniture'!A:F,5,FALSE)*(1-$S$3)) -> 140 | D201: =IF(B201="","",B201*C201) ->  | E201: =VLOOKUP(A201,Codes!$B:$AP,'Data Validation Lists'!$B$1+2,FALSE) -> LK-A-WHT-LSCUBE5 | R201: Furniture | T201: =IF(B201="","",SUM(D201/1.2)*(1-$S$2)/(1-$S$3)) -> 
A202: Lifestyle Cube for Combi 547d Walnut | C202: =IF($E202="Not Available","",VLOOKUP(E202,'Prices Furniture'!A:F,5,FALSE)*(1-$S$3)) -> 140 | E202: =VLOOKUP(A202,Codes!$B:$AP,'Data Validation Lists'!$B$1+2,FALSE) -> LK-A-WAL-LSCUBE5 | R202: Furniture
R203: Furniture
A204: Extra Tall Over Counter Corner Appliance Housings (1428mm High) | R204: Furniture | T204: =IF(B204="","",SUM(D204/1.2)*(1-$S$2)/(1-$S$3)) -> 
R205: Furniture
A206: 600 Tall Corner Single Oven Housing | C206: =IF($E206="Not Available","",VLOOKUP(E206,'Prices Furniture'!A:F,5,FALSE)*(1-$S$3)) -> 846 | D206: =IF(B206="","",B206*C206) ->  | E206: =VLOOKUP(A206,Codes!$B:$AP,'Data Validation Lists'!$B$1+2,FALSE) -> @LK-EMD-TCH-SO | H206: =IF(AND($B206>0,'Data Validation Lists'!$I$10>1),SUM($B206*1),"") ->  | R206: Furniture
A207: 600 Tall Corner Compact/Micro Housing | C207: =IF($E207="Not Available","",VLOOKUP(E207,'Prices Furniture'!A:F,5,FALSE)*(1-$S$3)) -> 759 | D207: =IF(B207="","",B207*C207) ->  | E207: =VLOOKUP(A207,Codes!$B:$AP,'Data Validation Lists'!$B$1+2,FALSE) -> @LK-EMD-TCH-MW | R207: Furniture
A208: 600 Tall Corner Storage Unit | C208: =IF($E208="Not Available","",VLOOKUP(E208,'Prices Furniture'!A:F,5,FALSE)*(1-$S$3)) -> 918 | D208: =IF(B208="","",B208*C208) ->  | E208: =VLOOKUP(A208,Codes!$B:$AP,'Data Validation Lists'!$B$1+2,FALSE) -> @LK-EMD-TCH-ST | H208: =IF(AND($B208>0,'Data Validation Lists'!$I$10>1),SUM($B208*1),"") ->  | R208: Furniture
R209: Furniture
R210: Furniture | T210: =IF(B210="","",SUM(D210/1.2)*(1-$S$2)/(1-$S$3)) -> 
... 255 more rows

Sheet Summary
A2: YOUR LOGO HERE
B3: Summary Quote
A6: Your Company Name | B6: =TODAY() -> 2026-01-19
A7: Your Address
A8: Your Address
A9: Your Address
A11: Your Telephone
A12: Your Email
A13: Customer Name:
A14: Customer Address:
A18: Tel. Home:
A19: Tel. Mobile:
A20: Email:
A21: Range | B21: Sales Person
A22: LochAnna Kitchens | B22: NAME
A23: =VLOOKUP('Data Validation Lists'!B1,'Data Validation Lists'!A2:B280,2,FALSE) -> PG1 Euro Matt Dove Grey
A25: Description | B25: Sub Total
A26: Furniture | B26: =SUMIF(Kitchen!R:R,Summary!A26,Kitchen!D:D) -> 0
A27: Lighting | B27: =SUMIF(Kitchen!R:R,Summary!A27,Kitchen!D:D) -> 0
A28: Other Items | B28: =SUMIF(Kitchen!R:R,Summary!A28,Kitchen!D:D) -> 0
A29: Worktops
A30: Delivery | B30: =Kitchen!D468 -> 90
A31: Installation
B34: Total (inc VAT)
B35: =SUM(B26:B32) -> 90
A40: This quote is indicative and subject to change. Upon acceptance of this quote a survey will be carried out and any changes required may result in a change to the final costs. The price quoted includes VAT (unless otherwise stated). VAT will be charged at the rate applying at the time of delivery.
A46: To accept this quotation, sign here and return: __________________________________________________________________

Sheet Data Validation Lists (hidden)
B1: 1 | H1: Rigid | I1: 1 | Q1: Woodgrain Painted MTM Panel | R1: 1 | S1: 2 | T1: 3 | U1: 4 | V1: 5 | W1: 6 | X1: 7 | Y1: 8 | Z1: 9 | AA1: 10 | AB1: 11 | AC1: 12 | AD1: 13
A2: 1 | B2: PG1 Euro Matt Dove Grey | D2: Stocked | E2: EMD | H2: 1 | I2: Yes | R2: 150 | S2: 300 | T2: 400 | U2: 450 | V2: 500 | W2: 550 | X2: 600 | Y2: 700 | Z2: 800 | AA2: 900 | AB2: 1000 | AC2: 1100 | AD2: 1200
A3: 2 | B3: PG1 Euro Matt Dust Grey | D3: Stocked | E3: EMY | H3: 2 | I3: No | P3: 1 | Q3: 100 | R3: 14 | S3: 23 | T3: 29 | U3: 32 | V3: 35 | W3: 38 | X3: 41 | Y3: 47 | Z3: 53 | AA3: 59 | AB3: 65 | AC3: 71 | AD3: 77
A4: 3 | B4: PG1 Euro Matt Mussel | D4: Stocked | E4: EMM | P4: 2 | Q4: 200 | R4: 21 | S4: 33 | T4: 40 | U4: 44 | V4: 48 | W4: 52 | X4: 56 | Y4: 64 | Z4: 72 | AA4: 80 | AB4: 88 | AC4: 96 | AD4: 104
A5: 4 | B5: PG1 Euro Matt Sea Blue | D5: Stocked | E5: EMS | H5: Butler's Pantry Drawer Upgrade | I5: 2 | P5: 3 | Q5: 300 | R5: 28 | S5: 42 | T5: 52 | U5: 57 | V5: 62 | W5: 67 | X5: 72 | Y5: 82 | Z5: 92 | AA5: 101 | AB5: 111 | AC5: 121 | AD5: 131
A6: 5 | B6: PG1 Opaco Dove Grey | D6: Stocked | E6: OPD | H6: 1 | I6: Select your Butler's Pantry drawer upgrade | P6: 4 | Q6: 400 | R6: 35 | S6: 52 | T6: 64 | U6: 70 | V6: 76 | W6: 82 | X6: 87 | Y6: 99 | Z6: 111 | AA6: 123 | AB6: 134 | AC6: 146 | AD6: 158
A7: 6 | B7: PG1 Opaco Dust Grey | D7: Stocked | E7: OPY | H7: 2 | I7: Legrabox | J7: 1 x @LK-DB-LRC6 and 2 x @LK-DB-LRC6PD | K7: 380 | P7: 5 | Q7: 500 | R7: 42 | S7: 62 | T7: 76 | U7: 83 | V7: 89 | W7: 96 | X7: 103 | Y7: 117 | Z7: 130 | AA7: 144 | AB7: 158 | AC7: 171 | AD7: 185
A8: 7 | B8: PG1 Opaco Fjord | D8: Stocked | E8: OPF | H8: 3 | I8: Oak Internal | J8: 2 x @LK-IDB-OAK6 and 2 x @LK-IDB-OAK6PD | K8: 813 | P8: 6 | Q8: 600 | R8: 49 | S8: 72 | T8: 87 | U8: 95 | V8: 103 | W8: 111 | X8: 119 | Y8: 134 | Z8: 150 | AA8: 165 | AB8: 181 | AC8: 196 | AD8: 212
A9: 8 | B9: PG1 Opaco Mussel | D9: Stocked | E9: OPM | P9: 7 | Q9: 800 | R9: 62 | S9: 92 | T9: 111 | U9: 121 | V9: 130 | W9: 140 | X9: 150 | Y9: 169 | Z9: 189 | AA9: 208 | AB9: 227 | AC9: 247 | AD9: 266
A10: 9 | B10: PG1 Opaco Reed Green | D10: 4 Week Lead Time | E10: OPR | H10: D Box Upgrade | I10: 1 | P10: 8 | Q10: 900 | R10: 69 | S10: 101 | T10: 123 | U10: 133 | V10: 144 | W10: 155 | X10: 165 | Y10: 187 | Z10: 208 | AA10: 229 | AB10: 250 | AC10: 272 | AD10: 293
A11: 10 | B11: PG1 Opaco Sea Blue | D11: Stocked | E11: OPS | H11: 1 | I11: Excel | P11: 9 | Q11: 1000 | R11: 76 | S11: 111 | T11: 134 | U11: 146 | V11: 158 | W11: 169 | X11: 181 | Y11: 204 | Z11: 227 | AA11: 250 | AB11: NA | AC11: NA | AD11: NA
A12: 11 | B12: PG2 Grained Cashmere | D12: Stocked | E12: CSW | H12: 2 | P12: 10 | Q12: 1100 | R12: 83 | S12: 121 | T12: 146 | U12: 159 | V12: 171 | W12: 184 | X12: 196 | Y12: 222 | Z12: 247 | AA12: 272 | AB12: NA | AC12: NA | AD12: NA
A13: 12 | B13: PG2 Grained Dove Grey | D13: Stocked | E13: DGW | H13: 3 | P13: 11 | Q13: 1250 | R13: 94 | S13: 136 | T13: 164 | U13: 178 | V13: 192 | W13: 206 | X13: 220 | Y13: 248 | Z13: 276 | AA13: 304 | AB13: NA | AC13: NA | AD13: NA
A14: 13 | B14: PG2 Grained Dust Grey | D14: Stocked | E14: DYW | P14: 12 | Q14: 1500 | R14: 111 | S14: 160 | T14: 193 | U14: 210 | V14: 226 | W14: 242 | X14: 259 | Y14: 291 | Z14: 324 | AA14: NA | AB14: NA | AC14: NA | AD14: NA
A15: 14 | B15: PG2 Grained Ivory | D15: Stocked | E15: ISW | P15: 13 | Q15: 1600 | R15: 118 | S15: 170 | T15: 205 | U15: 222 | V15: 240 | W15: 257 | X15: 274 | Y15: 309 | Z15: 344 | AA15: NA | AB15: NA | AC15: NA | AD15: NA
A16: 15 | B16: PG2 Grained Mussel | D16: Stocked | E16: MSW | H16: Home Delivery | I16: 1 | P16: 14 | Q16: 1700 | R16: 125 | S16: 180 | T16: 217 | U16: 235 | V16: 253 | W16: 272 | X16: 290 | Y16: 326 | Z16: 363 | AA16: NA | AB16: NA | AC16: NA | AD16: NA
A17: 16 | B17: PG2 Grained Sea Blue | D17: Stocked | E17: NVW | H17: 1 | I17: Yes | P17: 15 | Q17: 2000 | R17: 155 | S17: 222 | T17: 267 | U17: 290 | V17: 312 | W17: 334 | X17: 357 | Y17: 402 | Z17: 447 | AA17: NA | AB17: NA | AC17: NA | AD17: NA
H18: 2 | I18: No | P18: 16 | Q18: 2200 | R18: 170 | S18: 243 | T18: 292 | U18: 317 | V18: 341 | W18: 365 | X18: 390 | Y18: 439 | Z18: 488 | AA18: NA | AB18: NA | AC18: NA | AD18: NA
P19: 17 | Q19: 2300 | R19: 177 | S19: 254 | T19: 305 | U19: 330 | V19: 356 | W19: 381 | X19: 406 | Y19: 457 | Z19: 508 | AA19: NA | AB19: NA | AC19: NA | AD19: NA
P20: 18 | Q20: 2500 | R20: 192 | S20: 275 | T20: 330 | U20: 357 | V20: 385 | W20: 412 | X20: 439 | Y20: 494 | Z20: 604 | AA20: NA | AB20: NA | AC20: NA | AD20: NA
H21: Cab Colour | I21: 1
I22: Light Oak | Q22: Strato Painted MTM Panel | R22: 1 | S22: 2 | T22: 3 | U22: 4 | V22: 5 | W22: 6 | X22: 7 | Y22: 8 | Z22: 9 | AA22: 10 | AB22: 11 | AC22: 12 | AD22: 13
I23: Grey Linen | R23: 150 | S23: 300 | T23: 400 | U23: 450 | V23: 500 | W23: 550 | X23: 600 | Y23: 700 | Z23: 800 | AA23: 900 | AB23: 1000 | AC23: 1100 | AD23: 1200
P24: 1 | Q24: 100 | R24: 13 | S24: 23 | T24: 29 | U24: 32 | V24: 35 | W24: 38 | X24: 42 | Y24: 48 | Z24: 54 | AA24: 60 | AB24: 67 | AC24: 73 | AD24: 79
P25: 2 | Q25: 200 | R25: 21 | S25: 34 | T25: 43 | U25: 48 | V25: 52 | W25: 57 | X25: 61 | Y25: 70 | Z25: 79 | AA25: 88 | AB25: 97 | AC25: 106 | AD25: 115
P26: 3 | Q26: 300 | R26: 29 | S26: 46 | T26: 58 | U26: 63 | V26: 69 | W26: 75 | X26: 81 | Y26: 92 | Z26: 104 | AA26: 115 | AB26: 127 | AC26: 139 | AD26: 150
P27: 4 | Q27: 400 | R27: 36 | S27: 58 | T27: 72 | U27: 79 | V27: 86 | W27: 93 | X27: 100 | Y27: 115 | Z27: 129 | AA27: 143 | AB27: 157 | AC27: 172 | AD27: 186
P28: 5 | Q28: 500 | R28: 44 | S28: 69 | T28: 86 | U28: 95 | V28: 103 | W28: 111 | X28: 120 | Y28: 137 | Z28: 154 | AA28: 171 | AB28: 188 | AC28: 204 | AD28: 221
P29: 6 | Q29: 600 | R29: 51 | S29: 81 | T29: 100 | U29: 110 | V29: 120 | W29: 130 | X29: 139 | Y29: 159 | Z29: 179 | AA29: 198 | AB29: 218 | AC29: 237 | AD29: 257
P30: 7 | Q30: 800 | R30: 67 | S30: 104 | T30: 129 | U30: 141 | V30: 154 | W30: 166 | X30: 179 | Y30: 204 | Z30: 228 | AA30: 253 | AB30: 278 | AC30: 303 | AD30: 328
P31: 8 | Q31: 900 | R31: 74 | S31: 115 | T31: 143 | U31: 157 | V31: 171 | W31: 184 | X31: 198 | Y31: 226 | Z31: 253 | AA31: 281 | AB31: 309 | AC31: 336 | AD31: 364
P32: 9 | Q32: 1000 | R32: 82 | S32: 127 | T32: 157 | U32: 172 | V32: 188 | W32: 203 | X32: 218 | Y32: 248 | Z32: 278 | AA32: 309 | AB32: NA | AC32: NA | AD32: NA
P33: 10 | Q33: 1100 | R33: 89 | S33: 139 | T33: 172 | U33: 188 | V33: 204 | W33: 221 | X33: 237 | Y33: 270 | Z33: 303 | AA33: 336 | AB33: NA | AC33: NA | AD33: NA
P34: 11 | Q34: 1250 | R34: 97 | S34: 150 | T34: 186 | U34: 204 | V34: 221 | W34: 239 | X34: 257 | Y34: 293 | Z34: 328 | AA34: 364 | AB34: NA | AC34: NA | AD34: NA
P35: 12 | Q35: 1500 | R35: 120 | S35: 185 | T35: 229 | U35: 250 | V35: 272 | W35: 294 | X35: 316 | Y35: 359 | Z35: 403 | AA35: NA | AB35: NA | AC35: NA | AD35: NA
P36: 13 | Q36: 1600 | R36: 127 | S36: 197 | T36: 243 | U36: 266 | V36: 289 | W36: 312 | X36: 335 | Y36: 382 | Z36: 428 | AA36: NA | AB36: NA | AC36: NA | AD36: NA
P37: 14 | Q37: 1700 | R37: 135 | S37: 208 | T37: 257 | U37: 281 | V37: 306 | W37: 330 | X37: 355 | Y37: 404 | Z37: 453 | AA37: NA | AB37: NA | AC37: NA | AD37: NA
P38: 15 | Q38: 2000 | R38: 157 | S38: 243 | T38: 300 | U38: 328 | V38: 357 | W38: 385 | X38: 414 | Y38: 471 | Z38: 527 | AA38: NA | AB38: NA | AC38: NA | AD38: NA
P39: 16 | Q39: 2200 | R39: 173 | S39: 266 | T39: 328 | U39: 359 | V39: 391 | W39: 422 | X39: 453 | Y39: 515 | Z39: 577 | AA39: NA | AB39: NA | AC39: NA | AD39: NA
P40: 17 | Q40: 2300 | R40: 180 | S40: 278 | T40: 343 | U40: 375 | V40: 407 | W40: 440 | X40: 472 | Y40: 537 | Z40: 602 | AA40: NA | AB40: NA | AC40: NA | AD40: NA
P41: 18 | Q41: 2500 | R41: 195 | S41: 301 | T41: 371 | U41: 406 | V41: 441 | W41: 476 | X41: 512 | Y41: 582 | Z41: 652 | AA41: NA | AB41: NA | AC41: NA | AD41: NA
Q43: Strato Stained MTM Panel | R43: 1 | S43: 2 | T43: 3 | U43: 4 | V43: 5 | W43: 6 | X43: 7 | Y43: 8 | Z43: 9 | AA43: 10 | AB43: 11 | AC43: 12 | AD43: 13
R44: 150 | S44: 300 | T44: 400 | U44: 450 | V44: 500 | W44: 550 | X44: 600 | Y44: 700 | Z44: 800 | AA44: 900 | AB44: 1000 | AC44: 1100 | AD44: 1200
P45: 1 | Q45: 100 | R45: 20 | S45: 35 | T45: 44 | U45: 49 | V45: 54 | W45: 59 | X45: 64 | Y45: 73 | Z45: 83 | AA45: 92 | AB45: 102 | AC45: 112 | AD45: 121
P46: 2 | Q46: 200 | R46: 32 | S46: 53 | T46: 66 | U46: 73 | V46: 80 | W46: 87 | X46: 94 | Y46: 107 | Z46: 121 | AA46: 135 | AB46: 149 | AC46: 162 | AD46: 176
P47: 3 | Q47: 300 | R47: 44 | S47: 70 | T47: 88 | U47: 97 | V47: 106 | W47: 115 | X47: 124 | Y47: 142 | Z47: 160 | AA47: 177 | AB47: 195 | AC47: 213 | AD47: 231
P48: 4 | Q48: 400 | R48: 55 | S48: 88 | T48: 110 | U48: 121 | V48: 132 | W48: 143 | X48: 154 | Y48: 176 | Z48: 198 | AA48: 220 | AB48: 242 | AC48: 264 | AD48: 286
P49: 5 | Q49: 500 | R49: 67 | S49: 106 | T49: 132 | U49: 145 | V49: 158 | W49: 171 | X49: 184 | Y49: 210 | Z49: 236 | AA49: 262 | AB49: 288 | AC49: 314 | AD49: 340
P50: 6 | Q50: 600 | R50: 79 | S50: 124 | T50: 154 | U50: 169 | V50: 184 | W50: 199 | X50: 214 | Y50: 244 | Z50: 275 | AA50: 305 | AB50: 335 | AC50: 365 | AD50: 395
H51: Solutions Open Units | P51: 7 | Q51: 800 | R51: 102 | S51: 160 | T51: 198 | U51: 217 | V51: 236 | W51: 255 | X51: 275 | Y51: 313 | Z51: 351 | AA51: 390 | AB51: 428 | AC51: 466 | AD51: 505
P52: 8 | Q52: 900 | R52: 114 | S52: 177 | T52: 220 | U52: 241 | V52: 262 | W52: 283 | X52: 305 | Y52: 347 | Z52: 390 | AA52: 432 | AB52: 474 | AC52: 517 | AD52: 559
H53: 1 | I53: Select Range | J53: =VLOOKUP(Kitchen!#REF!,$I54:$J57,2,FALSE) ->  | K53: =VLOOKUP(Kitchen!#REF!,$I54:$J57,2,FALSE) ->  | L53: =VLOOKUP(Kitchen!#REF!,$I54:$J57,2,FALSE) ->  | P53: 9 | Q53: 1000 | R53: 125 | S53: 195 | T53: 242 | U53: 265 | V53: 288 | W53: 312 | X53: 335 | Y53: 381 | Z53: 428 | AA53: 474 | AB53: NA | AC53: NA | AD53: NA
H54: 2 | I54: Natural Oak Open Unit | J54: HNO | P54: 10 | Q54: 1100 | R54: 137 | S54: 213 | T54: 264 | U54: 289 | V54: 314 | W54: 340 | X54: 365 | Y54: 416 | Z54: 466 | AA54: 517 | AB54: NA | AC54: NA | AD54: NA
H55: 3 | I55: Tobacco Oak Open Unit | J55: HTO | P55: 11 | Q55: 1250 | R55: 149 | S55: 231 | T55: 286 | U55: 313 | V55: 340 | W55: 368 | X55: 395 | Y55: 450 | Z55: 505 | AA55: 559 | AB55: NA | AC55: NA | AD55: NA
H56: 4 | I56: White Oak Open Unit | J56: HWO | P56: 12 | Q56: 1500 | R56: 184 | S56: 284 | T56: 351 | U56: 385 | V56: 418 | W56: 452 | X56: 485 | Y56: 552 | Z56: 620 | AA56: NA | AB56: NA | AC56: NA | AD56: NA
P57: 13 | Q57: 1600 | R57: 195 | S57: 302 | T57: 373 | U57: 409 | V57: 444 | W57: 480 | X57: 516 | Y57: 587 | Z57: 658 | AA57: NA | AB57: NA | AC57: NA | AD57: NA
P58: 14 | Q58: 1700 | R58: 207 | S58: 320 | T58: 395 | U58: 433 | V58: 470 | W58: 508 | X58: 546 | Y58: 621 | Z58: 696 | AA58: NA | AB58: NA | AC58: NA | AD58: NA
H59: 1 | I59: 2 | J59: 3 | K59: 4 | L59: 5 | P59: 15 | Q59: 2000 | R59: 242 | S59: 373 | T59: 461 | U59: 505 | V59: 548 | W59: 592 | X59: 636 | Y59: 724 | Z59: 811 | AA59: NA | AB59: NA | AC59: NA | AD59: NA
G60: Sizes | H60: 286 | I60: 360 | J60: 720 | K60: 900 | L60: 1960 | P60: 16 | Q60: 2200 | R60: 265 | S60: 409 | T60: 505 | U60: 553 | V60: 601 | W60: 648 | X60: 696 | Y60: 792 | Z60: 888 | AA60: NA | AB60: NA | AC60: NA | AD60: NA
F61: 1 | G61: 150 | H61: 255 | I61: 255 | J61: 281 | K61: 309 | L61: 566 | P61: 17 | Q61: 2300 | R61: 277 | S61: 427 | T61: 527 | U61: 577 | V61: 627 | W61: 676 | X61: 726 | Y61: 826 | Z61: 926 | AA61: NA | AB61: NA | AC61: NA | AD61: NA
F62: 2 | G62: 300 | H62: 255 | I62: 255 | J62: 281 | K62: 309 | L62: 566 | P62: 18 | Q62: 2500 | R62: 300 | S62: 462 | T62: 571 | U62: 625 | V62: 679 | W62: 733 | X62: 787 | Y62: 895 | Z62: 1003 | AA62: NA | AB62: NA | AC62: NA | AD62: NA
F63: 3 | G63: 400 | H63: 255 | I63: 255 | J63: 281 | K63: 309 | L63: 566
F64: 4 | G64: 500 | H64: 255 | I64: 255 | J64: 281 | K64: 309 | L64: 566
F65: 5 | G65: 600 | H65: 255 | I65: 255 | J65: 281 | K65: 309 | L65: 618
F66: 6 | G66: 700 | H66: 281 | I66: 281 | J66: 309 | K66: 330 | L66: Not Available
F67: 7 | G67: 800 | H67: 281 | I67: 281 | J67: 309 | K67: 330 | L67: Not Available
F68: 8 | G68: 900 | H68: 281 | I68: 281 | J68: 309 | K68: 330 | L68: Not Available
F69: 9 | G69: 1000 | H69: 281 | I69: 281 | J69: 309 | K69: 330 | L69: Not Available
F70: 10 | G70: 1200 | H70: 309 | I70: 309 | J70: Not Available | K70: Not Available | L70: Not Available
H74: Open Unit 1 | J74: Height | K74: =IFERROR(INDEX($H$59:$L$59,MATCH(I75,$H$60:$L$60,1)),1) -> 1
H75: Chosen Height | I75: =Kitchen!#REF! ->  | J75: Width | K75: =IFERROR(INDEX($F$61:$F$70,MATCH(I76,$G$61:$G$70,1)),1) -> 1
H76: Chosen Width | I76: =Kitchen!#REF! ->  | J76: Price | K76: =IFERROR(VLOOKUP(K75,$F$61:$L$70,MATCH(K74,$F$59:$L$59,0),0),"") -> 255
H78: Open Unit 2 | J78: Height | K78: =IFERROR(INDEX($H$59:$L$59,MATCH(I79,$H$60:$L$60,1)),1) -> 1
H79: Chosen Height | I79: =Kitchen!#REF! ->  | J79: Width | K79: =IFERROR(INDEX($F$61:$F$70,MATCH(I80,$G$61:$G$70,1)),1) -> 1
H80: Chosen Width | I80: =Kitchen!#REF! ->  | J80: Price | K80: =IFERROR(VLOOKUP(K79,$F$61:$L$70,MATCH(K78,$F$59:$L$59,0),0),"") -> 255
H82: Open Unit 3 | J82: Height | K82: =IFERROR(INDEX($H$59:$L$59,MATCH(I83,$H$60:$L$60,1)),1) -> 1
H83: Chosen Height | I83: =Kitchen!#REF! ->  | J83: Width | K83: =IFERROR(INDEX($F$61:$F$70,MATCH(I84,$G$61:$G$70,1)),1) -> 1
H84: Chosen Width | I84: =Kitchen!#REF! ->  | J84: Price | K84: =IFERROR(VLOOKUP(K83,$F$61:$L$70,MATCH(K82,$F$59:$L$59,0),0),"") -> 255
H88: 1 | I88: 2 | J88: 3 | K88: 4
H89: 286 | I89: 720 | J89: 900 | K89: 1960
F90: 1 | G90: 150 | H90: 255 | I90: 281 | J90: 309 | K90: 330
F91: 2 | G91: 300 | H91: 255 | I91: 281 | J91: 309 | K91: 566
H94: Wine Rack 1 | J94: Height | K94: =IFERROR(INDEX($H$88:$K$88,MATCH(I95,$H$89:$K$89,1)),1) -> 1
H95: Chosen Height | I95: =Kitchen!#REF! ->  | J95: Width | K95: =IFERROR(INDEX($F$90:$F$91,MATCH(I96,$G$90:$G$91,1)),1) -> 1
H96: Chosen Width | I96: =Kitchen!#REF! ->  | J96: Price | K96: =IFERROR(VLOOKUP(K95,$F$90:$K$91,MATCH(K94,$F$88:$K$88,0),0),"") -> 255
H98: Wine Rack 2 | J98: Height | K98: =IFERROR(INDEX($H$88:$K$88,MATCH(I99,$H$89:$K$89,1)),1) -> 1
H99: Chosen Height | I99: =Kitchen!#REF! ->  | J99: Width | K99: =IFERROR(INDEX($F$90:$F$91,MATCH(I100,$G$90:$G$91,1)),1) -> 1
H100: Chosen Width | I100: =Kitchen!#REF! ->  | J100: Price | K100: =IFERROR(VLOOKUP(K99,$F$90:$K$91,MATCH(K98,$F$88:$K$88,0),0),"") -> 255
H102: Wine Rack 3 | J102: Height | K102: =IFERROR(INDEX($H$88:$K$88,MATCH(I103,$H$89:$K$89,1)),1) -> 1
H103: Chosen Height | I103: =Kitchen!#REF! ->  | J103: Width | K103: =IFERROR(INDEX($F$90:$F$91,MATCH(I104,$G$90:$G$91,1)),1) -> 1
H104: Chosen Width | I104: =Kitchen!#REF! ->  | J104: Price | K104: =IFERROR(VLOOKUP(K103,$F$90:$K$91,MATCH(K102,$F$88:$K$88,0),0),"") -> 255
H108: Solutions Wine Racks
H110: 1 | I110: Select Range | J110: =VLOOKUP(Kitchen!#REF!,$I111:$J114,2,FALSE) ->  | K110: =VLOOKUP(Kitchen!#REF!,$I111:$J114,2,FALSE) ->  | L110: =VLOOKUP(Kitchen!#REF!,$I111:$J114,2,FALSE) -> 
H111: 2 | I111: Natural Oak Wine Rack | J111: HNO
H112: 3 | I112: Tobacco Oak Wine Rack | J112: HTO
H113: 4 | I113: White Oak Wine Rack | J113: HWO
H116: Eterna Open Units
H118: 1 | I118: Select Range | J118: =VLOOKUP(Kitchen!#REF!,$I119:$J126,2,FALSE) ->  | K118: =VLOOKUP(Kitchen!#REF!,$I119:$J126,2,FALSE) ->  | L118: =VLOOKUP(Kitchen!#REF!,$I119:$J126,2,FALSE) -> 
H119: 2 | I119: Ossido Grigio Open Unit | J119: EOG
H120: 3 | I120: Ossido Marrone Open Unit | J120: EOM
H121: 4 | I121: Patagonia Marble Open Unit | J121: EPM
H122: 5 | I122: Venato Marble Open Unit | J122: EVM
H123: 6 | I123: Nero Marble Open Unit | J123: ENM
H124: 7 | I124: Laguna Grey Aged Oak Open Unit | J124: ELA
H125: 8 | I125: Laguna Dark Oak Open Unit | J125: ELD
H126: 9 | I126: Chalet Light Walnut Open Unit | J126: ELW
H128: Eterna Wine Racks
H129: 1 | I129: Select Range | J129: =VLOOKUP(Kitchen!#REF!,$I130:$J137,2,FALSE) ->  | K129: =VLOOKUP(Kitchen!#REF!,$I130:$J137,2,FALSE) ->  | L129: =VLOOKUP(Kitchen!#REF!,$I130:$J137,2,FALSE) -> 
H130: 2 | I130: Ossido Grigio Wine Rack | J130: EOG
H131: 3 | I131: Ossido Marrone Wine Rack | J131: EOM
H132: 4 | I132: Patagonia Marble Wine Rack | J132: EPM
H133: 5 | I133: Venato Marble Wine Rack | J133: EVM
H134: 6 | I134: Nero Marble Wine Rack | J134: ENM
H135: 7 | I135: Laguna Grey Aged Oak Wine Rack | J135: ELA
H136: 8 | I136: Laguna Dark Oak Wine Rack | J136: ELD
H137: 9 | I137: Chalet Light Walnut Wine Rack | J137: ELW
H141: 1 | I141: 2 | J141: 3 | K141: 4 | L141: 5
G142: Sizes | H142: 286 | I142: 360 | J142: 720 | K142: 900 | L142: 1960
F143: 1 | G143: 150 | H143: 228 | I143: 228 | J143: 254 | K143: 280 | L143: 648
F144: 2 | G144: 300 | H144: 228 | I144: 228 | J144: 254 | K144: 280 | L144: 648
F145: 3 | G145: 400 | H145: 252 | I145: 252 | J145: 268 | K145: 292 | L145: 662
F146: 4 | G146: 500 | H146: 254 | I146: 254 | J146: 287 | K146: 312 | L146: 707
F147: 5 | G147: 600 | H147: 274 | I147: 274 | J147: 305 | K147: 338 | L147: 771
F148: 6 | G148: 700 | H148: 330 | I148: 330 | J148: 369 | K148: 401 | L148: Not Available
F149: 7 | G149: 800 | H149: 344 | I149: 344 | J149: 381 | K149: 419 | L149: Not Available
F150: 8 | G150: 900 | H150: 356 | I150: 356 | J150: 394 | K150: 440 | L150: Not Available
F151: 9 | G151: 1000 | H151: 369 | I151: 369 | J151: 407 | K151: 444 | L151: Not Available
F152: 10 | G152: 1200 | H152: 394 | I152: 394 | J152: Not Available | K152: Not Available | L152: Not Available
H156: Open Unit 1 | J156: Height | K156: =IFERROR(INDEX($H$141:$L$141,MATCH(I157,$H$142:$L$142,1)),1) -> 1
H157: Chosen Height | I157: =Kitchen!#REF! ->  | J157: Width | K157: =IFERROR(INDEX($F$143:$F$152,MATCH(I158,$G$143:$G$152,1)),1) -> 1
H158: Chosen Width | I158: =Kitchen!#REF! ->  | J158: Price | K158: =IFERROR(VLOOKUP(K157,$F$143:$L$152,MATCH(K156,$F$141:$L$141,0),0),"") -> 228
H160: Open Unit 2 | J160: Height | K160: =IFERROR(INDEX($H$141:$L$141,MATCH($I161,$H$142:$L$142,1)),1) -> 1
H161: Chosen Height | I161: =Kitchen!#REF! ->  | J161: Width | K161: =IFERROR(INDEX($F$143:$F$152,MATCH($I162,$G$143:$G$152,1)),1) -> 1
H162: Chosen Width | I162: =Kitchen!#REF! ->  | J162: Price | K162: =IFERROR(VLOOKUP(K161,$F$143:$L$152,MATCH(K160,$F$141:$L$141,0),0),"") -> 228
H164: Open Unit 3 | J164: Height | K164: =IFERROR(INDEX($H$141:$L$141,MATCH($I165,$H$142:$L$142,1)),1) -> 1
H165: Chosen Height | I165: =Kitchen!#REF! ->  | J165: Width | K165: =IFERROR(INDEX($F$143:$F$152,MATCH($I166,$G$143:$G$152,1)),1) -> 1
H166: Chosen Width | I166: =Kitchen!#REF! ->  | J166: Price | K166: =IFERROR(VLOOKUP(K165,$F$143:$L$152,MATCH(K164,$F$141:$L$141,0),0),"") -> 228
H170: 1 | I170: 2 | J170: 3 | K170: 4
H171: 286 | I171: 720 | J171: 900 | K171: 1960
F172: 1 | G172: 150 | H172: 254 | I172: 344 | J172: 381 | K172: 762
F173: 2 | G173: 300 | H173: 330 | I173: 496 | J173: 585 | K173: 1017
H176: Wine Rack 1 | J176: Height | K176: =IFERROR(INDEX($H$170:$K$170,MATCH(I177,$H$171:$K$171,1)),1) -> 1
H177: Chosen Height | I177: =Kitchen!#REF! ->  | J177: Width | K177: =IFERROR(INDEX($F$172:$F$173,MATCH(I178,$G$172:$G$173,1)),1) -> 1
H178: Chosen Width | I178: =Kitchen!#REF! ->  | J178: Price | K178: =IFERROR(VLOOKUP(K177,$F$172:$K$173,MATCH(K176,$F$170:$K$170,0),0),"") -> 254
H180: Wine Rack 2 | J180: Height | K180: =IFERROR(INDEX($H$170:$K$170,MATCH(I181,$H$171:$K$171,1)),1) -> 1
H181: Chosen Height | I181: =Kitchen!#REF! ->  | J181: Width | K181: =IFERROR(INDEX($F$172:$F$173,MATCH(I182,$G$172:$G$173,1)),1) -> 1
H182: Chosen Width | I182: =Kitchen!#REF! ->  | J182: Price | K182: =IFERROR(VLOOKUP(K181,$F$172:$K$173,MATCH(K180,$F$170:$K$170,0),0),"") -> 254
H184: Wine Rack 3 | J184: Height | K184: =IFERROR(INDEX($H$170:$K$170,MATCH(I185,$H$171:$K$171,1)),1) -> 1
H185: Chosen Height | I185: =Kitchen!#REF! ->  | J185: Width | K185: =IFERROR(INDEX($F$172:$F$173,MATCH(I186,$G$172:$G$173,1)),1) -> 1
H186: Chosen Width | I186: =Kitchen!#REF! ->  | J186: Price | K186: =IFERROR(VLOOKUP(K185,$F$172:$K$173,MATCH(K184,$F$170:$K$170,0),0),"") -> 254
H192: Assembled Talls | I192: 1
H193: 1 | I193: Yes
H194: 2 | I194: No
H197: Timber MTM Panels
H199: 1 | I199: Select Range | J199: =VLOOKUP($B$1,A2:E378,5,0) -> EMD
H200: 2 | I200: Woodgrain Painted MTM Panel
H201: 3 | I201: Strato Painted MTM Panel | S201: W
H202: 4 | I202: Strato Stained MTM Panel | S202: 1 | T202: 2 | U202: 3 | V202: 4 | W202: 5 | X202: 6 | Y202: 7 | Z202: 8 | AA202: 9 | AB202: 10 | AC202: 11 | AD202: 12 | AE202: 13
Q203: H | S203: 150 | T203: 300 | U203: 400 | V203: 450 | W203: 500 | X203: 550 | Y203: 600 | Z203: 700 | AA203: 800 | AB203: 900 | AC203: 1000 | AD203: 1100 | AE203: 1200
H204: Panel 1 | I204: =Kitchen!#REF! ->  | J204: Height | K204: =IFERROR(INDEX($Q$204:$Q$221,MATCH(I205,$R$204:$R$221,1)),1) -> 1 | Q204: 1 | R204: 100 | S204: =IF($I$204=$Q$1,R3,IF($I$204=$Q$22,R24,IF($I$204=$Q$43,R45))) -> 
H205: Chosen Height | I205: =Kitchen!#REF! ->  | J205: Width | K205: =IFERROR(INDEX($S$202:$AE$202,MATCH(I206,$S$203:$AE$203,1)),1) -> 1 | Q205: 2 | R205: 200 | S205: =IF($I$204=$Q$1,R4,IF($I$204=$Q$22,R25,IF($I$204=$Q$43,R46))) -> 
H206: Chosen Width | I206: =Kitchen!#REF! ->  | J206: Price | K206: =IFERROR(VLOOKUP(K204,$Q$204:$AE$221,MATCH(K205,$Q$202:$AE$202,0),0),"") ->  | Q206: 3 | R206: 300 | S206: =IF($I$204=$Q$1,R5,IF($I$204=$Q$22,R26,IF($I$204=$Q$43,R47))) -> 
Q207: 4 | R207: 400 | S207: =IF($I$204=$Q$1,R6,IF($I$204=$Q$22,R27,IF($I$204=$Q$43,R48))) -> 
H208: Panel 2 | J208: Height | K208: =IFERROR(INDEX($Q$204:$Q$221,MATCH(I209,$R$204:$R$221,1)),1) -> 1 | Q208: 5 | R208: 500 | S208: =IF($I$204=$Q$1,R7,IF($I$204=$Q$22,R28,IF($I$204=$Q$43,R49))) -> 
H209: Chosen Height | I209: =Kitchen!#REF! ->  | J209: Width | K209: =IFERROR(INDEX($S$202:$AE$202,MATCH(I210,$S$203:$AE$203,1)),1) -> 1 | Q209: 6 | R209: 600 | S209: =IF($I$204=$Q$1,R8,IF($I$204=$Q$22,R29,IF($I$204=$Q$43,R50))) -> 
H210: Chosen Width | I210: =Kitchen!#REF! ->  | J210: Price | K210: =IFERROR(VLOOKUP(K208,$Q$204:$AE$221,MATCH(K209,$Q$202:$AE$202,0),0),"") ->  | Q210: 7 | R210: 800 | S210: =IF($I$204=$Q$1,R9,IF($I$204=$Q$22,R30,IF($I$204=$Q$43,R51))) -> 
Q211: 8 | R211: 900 | S211: =IF($I$204=$Q$1,R10,IF($I$204=$Q$22,R31,IF($I$204=$Q$43,R52))) -> 
H212: Panel 3 | J212: Height | K212: =IFERROR(INDEX($Q$204:$Q$221,MATCH(I213,$R$204:$R$221,1)),1) -> 1 | Q212: 9 | R212: 1000 | S212: =IF($I$204=$Q$1,R11,IF($I$204=$Q$22,R32,IF($I$204=$Q$43,R53))) -> 
H213: Chosen Height | I213: =Kitchen!#REF! ->  | J213: Width | K213: =IFERROR(INDEX($S$202:$AE$202,MATCH(I214,$S$203:$AE$203,1)),1) -> 1 | Q213: 10 | R213: 1100 | S213: =IF($I$204=$Q$1,R12,IF($I$204=$Q$22,R33,IF($I$204=$Q$43,R54))) -> 
H214: Chosen Width | I214: =Kitchen!#REF! ->  | J214: Price | K214: =IFERROR(VLOOKUP(K212,$Q$204:$AE$221,MATCH(K213,$Q$202:$AE$202,0),0),"") ->  | Q214: 11 | R214: 1250 | S214: =IF($I$204=$Q$1,R13,IF($I$204=$Q$22,R34,IF($I$204=$Q$43,R55))) -> 
Q215: 12 | R215: 1500 | S215: =IF($I$204=$Q$1,R14,IF($I$204=$Q$22,R35,IF($I$204=$Q$43,R56))) -> 
H216: Panel 4 | J216: Height | K216: =IFERROR(INDEX($Q$204:$Q$221,MATCH(I217,$R$204:$R$221,1)),1) -> 1 | Q216: 13 | R216: 1600 | S216: =IF($I$204=$Q$1,R15,IF($I$204=$Q$22,R36,IF($I$204=$Q$43,R57))) -> 
H217: Chosen Height | I217: =Kitchen!#REF! ->  | J217: Width | K217: =IFERROR(INDEX($S$202:$AE$202,MATCH(I218,$S$203:$AE$203,1)),1) -> 1 | Q217: 14 | R217: 1700 | S217: =IF($I$204=$Q$1,R16,IF($I$204=$Q$22,R37,IF($I$204=$Q$43,R58))) -> 
H218: Chosen Width | I218: =Kitchen!#REF! ->  | J218: Price | K218: =IFERROR(VLOOKUP(K216,$Q$204:$AE$221,MATCH(K217,$Q$202:$AE$202,0),0),"") ->  | Q218: 15 | R218: 2000 | S218: =IF($I$204=$Q$1,R17,IF($I$204=$Q$22,R38,IF($I$204=$Q$43,R59))) -> 
Q219: 16 | R219: 2200 | S219: =IF($I$204=$Q$1,R18,IF($I$204=$Q$22,R39,IF($I$204=$Q$43,R60))) -> 
H220: Panel 5 | J220: Height | K220: =IFERROR(INDEX($Q$204:$Q$221,MATCH(I221,$R$204:$R$221,1)),1) -> 1 | Q220: 17 | R220: 2300 | S220: =IF($I$204=$Q$1,R19,IF($I$204=$Q$22,R40,IF($I$204=$Q$43,R61))) -> 
H221: Chosen Height | I221: =Kitchen!#REF! ->  | J221: Width | K221: =IFERROR(INDEX($S$202:$AE$202,MATCH(I222,$S$203:$AE$203,1)),1) -> 1 | Q221: 18 | R221: 2500 | S221: =IF($I$204=$Q$1,R20,IF($I$204=$Q$22,R41,IF($I$204=$Q$43,R62))) -> 
H222: Chosen Width | I222: =Kitchen!#REF! ->  | J222: Price | K222: =IFERROR(VLOOKUP(K220,$Q$204:$AE$221,MATCH(K221,$Q$202:$AE$202,0),0),"") -> 

Sheet Codes (hidden)
B1: @LK- | C1: LK-C- | D1: 1 | E1: 2 | F1: 3 | G1: 4 | H1: 5 | I1: 6 | J1: 7 | K1: 8 | L1: 9 | M1: 10 | N1: 11 | O1: 12 | P1: 13 | Q1: 14 | R1: 15 | S1: 16
B2: LK-A- | C2: @LK-A- | D2: Euro Matt Dove Grey | E2: Euro Matt Dust Grey | F2: Euro Matt Mussel | G2: Euro Matt Sea Blue | H2: Opaco Dove Grey | I2: Opaco Dust Grey | J2: Opaco Fjord | K2: Opaco Mussel | L2: Opaco Reed Green | M2: Opaco Sea Blue | N2: Grained Cashmere | O2: Grained Dove Grey | P2: Grained Dust Grey | Q2: Grained Ivory | R2: Grained Mussel | S2: Grained Sea Blue
B3: Product Description | C3: BOM / Prod ID | D3: EMD- | E3: EMY- | F3: EMM- | G3: EMS- | H3: OPD- | I3: OPY- | J3: OPF- | K3: OPM- | L3: OPR- | M3: OPS- | N3: CSW- | O3: DGW- | P3: DYW- | Q3: ISW- | R3: MSW- | S3: NVW-
A4: BP15TY | B4: 150 HL Pull Out Base VS SUB | C4: BP15TY | D4: @LK-EMD-BP15TY | E4: @LK-EMY-BP15TY | F4: @LK-EMM-BP15TY | G4: @LK-EMS-BP15TY | H4: @LK-OPD-BP15TY | I4: @LK-OPY-BP15TY | J4: @LK-OPF-BP15TY | K4: @LK-OPM-BP15TY | L4: @LK-OPR-BP15TY | M4: @LK-OPS-BP15TY | N4: @LK-CSW-BP15TY | O4: @LK-DGW-BP15TY | P4: @LK-DYW-BP15TY | Q4: @LK-ISW-BP15TY | R4: @LK-MSW-BP15TY | S4: @LK-NVW-BP15TY
A5: BP3TY | B5: 300 HL Pull Out Base VS SUB | C5: BP3TY | D5: @LK-EMD-BP3TY | E5: @LK-EMY-BP3TY | F5: @LK-EMM-BP3TY | G5: @LK-EMS-BP3TY | H5: @LK-OPD-BP3TY | I5: @LK-OPY-BP3TY | J5: @LK-OPF-BP3TY | K5: @LK-OPM-BP3TY | L5: @LK-OPR-BP3TY | M5: @LK-OPS-BP3TY | N5: @LK-CSW-BP3TY | O5: @LK-DGW-BP3TY | P5: @LK-DYW-BP3TY | Q5: @LK-ISW-BP3TY | R5: @LK-MSW-BP3TY | S5: @LK-NVW-BP3TY
A6: BH15 | B6: 150 HL Base Unit | C6: BH15 | D6: @LK-EMD-BH15 | E6: @LK-EMY-BH15 | F6: @LK-EMM-BH15 | G6: @LK-EMS-BH15 | H6: @LK-OPD-BH15 | I6: @LK-OPY-BH15 | J6: @LK-OPF-BH15 | K6: @LK-OPM-BH15 | L6: @LK-OPR-BH15 | M6: @LK-OPS-BH15 | N6: @LK-CSW-BH15 | O6: @LK-DGW-BH15 | P6: @LK-DYW-BH15 | Q6: @LK-ISW-BH15 | R6: @LK-MSW-BH15 | S6: @LK-NVW-BH15
A7: BH30 | B7: 300 HL Base Unit | C7: BH30 | D7: @LK-EMD-BH30 | E7: @LK-EMY-BH30 | F7: @LK-EMM-BH30 | G7: @LK-EMS-BH30 | H7: @LK-OPD-BH30 | I7: @LK-OPY-BH30 | J7: @LK-OPF-BH30 | K7: @LK-OPM-BH30 | L7: @LK-OPR-BH30 | M7: @LK-OPS-BH30 | N7: @LK-CSW-BH30 | O7: @LK-DGW-BH30 | P7: @LK-DYW-BH30 | Q7: @LK-ISW-BH30 | R7: @LK-MSW-BH30 | S7: @LK-NVW-BH30
A8: BH3B | B8: 300 HL Base Unit & Bin | C8: BH3B | D8: @LK-EMD-BH3B | E8: @LK-EMY-BH3B | F8: @LK-EMM-BH3B | G8: @LK-EMS-BH3B | H8: @LK-OPD-BH3B | I8: @LK-OPY-BH3B | J8: @LK-OPF-BH3B | K8: @LK-OPM-BH3B | L8: @LK-OPR-BH3B | M8: @LK-OPS-BH3B | N8: @LK-CSW-BH3B | O8: @LK-DGW-BH3B | P8: @LK-DYW-BH3B | Q8: @LK-ISW-BH3B | R8: @LK-MSW-BH3B | S8: @LK-NVW-BH3B
A9: BH35 | B9: 350 HL Base Unit | C9: BH35 | D9: @LK-EMD-BH35 | E9: @LK-EMY-BH35 | F9: @LK-EMM-BH35 | G9: @LK-EMS-BH35 | H9: @LK-OPD-BH35 | I9: @LK-OPY-BH35 | J9: @LK-OPF-BH35 | K9: @LK-OPM-BH35 | L9: @LK-OPR-BH35 | M9: @LK-OPS-BH35 | N9: @LK-CSW-BH35 | O9: @LK-DGW-BH35 | P9: @LK-DYW-BH35 | Q9: @LK-ISW-BH35 | R9: @LK-MSW-BH35 | S9: @LK-NVW-BH35
A10: BH40 | B10: 400 HL Base Unit | C10: BH40 | D10: @LK-EMD-BH40 | E10: @LK-EMY-BH40 | F10: @LK-EMM-BH40 | G10: @LK-EMS-BH40 | H10: @LK-OPD-BH40 | I10: @LK-OPY-BH40 | J10: @LK-OPF-BH40 | K10: @LK-OPM-BH40 | L10: @LK-OPR-BH40 | M10: @LK-OPS-BH40 | N10: @LK-CSW-BH40 | O10: @LK-DGW-BH40 | P10: @LK-DYW-BH40 | Q10: @LK-ISW-BH40 | R10: @LK-MSW-BH40 | S10: @LK-NVW-BH40
A11: BH4B | B11: 400 HL Base Unit & Bin | C11: BH4B | D11: @LK-EMD-BH4B | E11: @LK-EMY-BH4B | F11: @LK-EMM-BH4B | G11: @LK-EMS-BH4B | H11: @LK-OPD-BH4B | I11: @LK-OPY-BH4B | J11: @LK-OPF-BH4B | K11: @LK-OPM-BH4B | L11: @LK-OPR-BH4B | M11: @LK-OPS-BH4B | N11: @LK-CSW-BH4B | O11: @LK-DGW-BH4B | P11: @LK-DYW-BH4B | Q11: @LK-ISW-BH4B | R11: @LK-MSW-BH4B | S11: @LK-NVW-BH4B
A12: BH45 | B12: 450 HL Base Unit | C12: BH45 | D12: @LK-EMD-BH45 | E12: @LK-EMY-BH45 | F12: @LK-EMM-BH45 | G12: @LK-EMS-BH45 | H12: @LK-OPD-BH45 | I12: @LK-OPY-BH45 | J12: @LK-OPF-BH45 | K12: @LK-OPM-BH45 | L12: @LK-OPR-BH45 | M12: @LK-OPS-BH45 | N12: @LK-CSW-BH45 | O12: @LK-DGW-BH45 | P12: @LK-DYW-BH45 | Q12: @LK-ISW-BH45 | R12: @LK-MSW-BH45 | S12: @LK-NVW-BH45
A13: BH45B | B13: 450 HL Base Unit & Bin | C13: BH45B | D13: @LK-EMD-BH45B | E13: @LK-EMY-BH45B | F13: @LK-EMM-BH45B | G13: @LK-EMS-BH45B | H13: @LK-OPD-BH45B | I13: @LK-OPY-BH45B | J13: @LK-OPF-BH45B | K13: @LK-OPM-BH45B | L13: @LK-OPR-BH45B | M13: @LK-OPS-BH45B | N13: @LK-CSW-BH45B | O13: @LK-DGW-BH45B | P13: @LK-DYW-BH45B | Q13: @LK-ISW-BH45B | R13: @LK-MSW-BH45B | S13: @LK-NVW-BH45B
A14: BH50 | B14: 500 HL Base Unit | C14: BH50 | D14: @LK-EMD-BH50 | E14: @LK-EMY-BH50 | F14: @LK-EMM-BH50 | G14: @LK-EMS-BH50 | H14: @LK-OPD-BH50 | I14: @LK-OPY-BH50 | J14: @LK-OPF-BH50 | K14: @LK-OPM-BH50 | L14: @LK-OPR-BH50 | M14: @LK-OPS-BH50 | N14: @LK-CSW-BH50 | O14: @LK-DGW-BH50 | P14: @LK-DYW-BH50 | Q14: @LK-ISW-BH50 | R14: @LK-MSW-BH50 | S14: @LK-NVW-BH50
A15: BH5B | B15: 500 HL Base Unit & Bin | C15: BH5B | D15: @LK-EMD-BH5B | E15: @LK-EMY-BH5B | F15: @LK-EMM-BH5B | G15: @LK-EMS-BH5B | H15: @LK-OPD-BH5B | I15: @LK-OPY-BH5B | J15: @LK-OPF-BH5B | K15: @LK-OPM-BH5B | L15: @LK-OPR-BH5B | M15: @LK-OPS-BH5B | N15: @LK-CSW-BH5B | O15: @LK-DGW-BH5B | P15: @LK-DYW-BH5B | Q15: @LK-ISW-BH5B | R15: @LK-MSW-BH5B | S15: @LK-NVW-BH5B
A16: BH50S | B16: 500 HL Sink Base Unit (Inc Liner) | C16: BH50S | D16: @LK-EMD-BH50S | E16: @LK-EMY-BH50S | F16: @LK-EMM-BH50S | G16: @LK-EMS-BH50S | H16: @LK-OPD-BH50S | I16: @LK-OPY-BH50S | J16: @LK-OPF-BH50S | K16: @LK-OPM-BH50S | L16: @LK-OPR-BH50S | M16: @LK-OPS-BH50S | N16: @LK-CSW-BH50S | O16: @LK-DGW-BH50S | P16: @LK-DYW-BH50S | Q16: @LK-ISW-BH50S | R16: @LK-MSW-BH50S | S16: @LK-NVW-BH50S
A17: BH60 | B17: 600 HL Base Unit | C17: BH60 | D17: @LK-EMD-BH60 | E17: @LK-EMY-BH60 | F17: @LK-EMM-BH60 | G17: @LK-EMS-BH60 | H17: @LK-OPD-BH60 | I17: @LK-OPY-BH60 | J17: @LK-OPF-BH60 | K17: @LK-OPM-BH60 | L17: @LK-OPR-BH60 | M17: @LK-OPS-BH60 | N17: @LK-CSW-BH60 | O17: @LK-DGW-BH60 | P17: @LK-DYW-BH60 | Q17: @LK-ISW-BH60 | R17: @LK-MSW-BH60 | S17: @LK-NVW-BH60
A18: BH6B4 | B18: 600 HL Base Unit & Bin (4 Bins) | C18: BH6B4 | D18: @LK-EMD-BH6B4 | E18: @LK-EMY-BH6B4 | F18: @LK-EMM-BH6B4 | G18: @LK-EMS-BH6B4 | H18: @LK-OPD-BH6B4 | I18: @LK-OPY-BH6B4 | J18: @LK-OPF-BH6B4 | K18: @LK-OPM-BH6B4 | L18: @LK-OPR-BH6B4 | M18: @LK-OPS-BH6B4 | N18: @LK-CSW-BH6B4 | O18: @LK-DGW-BH6B4 | P18: @LK-DYW-BH6B4 | Q18: @LK-ISW-BH6B4 | R18: @LK-MSW-BH6B4 | S18: @LK-NVW-BH6B4
A19: BH6B2 | B19: 600 HL Base Unit & Bin (2 Bins) | C19: BH6B2 | D19: @LK-EMD-BH6B2 | E19: @LK-EMY-BH6B2 | F19: @LK-EMM-BH6B2 | G19: @LK-EMS-BH6B2 | H19: @LK-OPD-BH6B2 | I19: @LK-OPY-BH6B2 | J19: @LK-OPF-BH6B2 | K19: @LK-OPM-BH6B2 | L19: @LK-OPR-BH6B2 | M19: @LK-OPS-BH6B2 | N19: @LK-CSW-BH6B2 | O19: @LK-DGW-BH6B2 | P19: @LK-DYW-BH6B2 | Q19: @LK-ISW-BH6B2 | R19: @LK-MSW-BH6B2 | S19: @LK-NVW-BH6B2
A20: BH60S | B20: 600 HL Sink Base Unit (Inc Liner) | C20: BH60S | D20: @LK-EMD-BH60S | E20: @LK-EMY-BH60S | F20: @LK-EMM-BH60S | G20: @LK-EMS-BH60S | H20: @LK-OPD-BH60S | I20: @LK-OPY-BH60S | J20: @LK-OPF-BH60S | K20: @LK-OPM-BH60S | L20: @LK-OPR-BH60S | M20: @LK-OPS-BH60S | N20: @LK-CSW-BH60S | O20: @LK-DGW-BH60S | P20: @LK-DYW-BH60S | Q20: @LK-ISW-BH60S | R20: @LK-MSW-BH60S | S20: @LK-NVW-BH60S
A21: BH70 | B21: 700 HL Base Unit | C21: BH70 | D21: @LK-EMD-BH70 | E21: @LK-EMY-BH70 | F21: @LK-EMM-BH70 | G21: @LK-EMS-BH70 | H21: @LK-OPD-BH70 | I21: @LK-OPY-BH70 | J21: @LK-OPF-BH70 | K21: @LK-OPM-BH70 | L21: @LK-OPR-BH70 | M21: @LK-OPS-BH70 | N21: @LK-CSW-BH70 | O21: @LK-DGW-BH70 | P21: @LK-DYW-BH70 | Q21: @LK-ISW-BH70 | R21: @LK-MSW-BH70 | S21: @LK-NVW-BH70
A22: BH80 | B22: 800 HL Base Unit | C22: BH80 | D22: @LK-EMD-BH80 | E22: @LK-EMY-BH80 | F22: @LK-EMM-BH80 | G22: @LK-EMS-BH80 | H22: @LK-OPD-BH80 | I22: @LK-OPY-BH80 | J22: @LK-OPF-BH80 | K22: @LK-OPM-BH80 | L22: @LK-OPR-BH80 | M22: @LK-OPS-BH80 | N22: @LK-CSW-BH80 | O22: @LK-DGW-BH80 | P22: @LK-DYW-BH80 | Q22: @LK-ISW-BH80 | R22: @LK-MSW-BH80 | S22: @LK-NVW-BH80
A23: BH80S | B23: 800 HL Sink Base Unit (Inc Liner) | C23: BH80S | D23: @LK-EMD-BH80S | E23: @LK-EMY-BH80S | F23: @LK-EMM-BH80S | G23: @LK-EMS-BH80S | H23: @LK-OPD-BH80S | I23: @LK-OPY-BH80S | J23: @LK-OPF-BH80S | K23: @LK-OPM-BH80S | L23: @LK-OPR-BH80S | M23: @LK-OPS-BH80S | N23: @LK-CSW-BH80S | O23: @LK-DGW-BH80S | P23: @LK-DYW-BH80S | Q23: @LK-ISW-BH80S | R23: @LK-MSW-BH80S | S23: @LK-NVW-BH80S
A24: BH90 | B24: 900 HL Base Unit | C24: BH90 | D24: @LK-EMD-BH90 | E24: @LK-EMY-BH90 | F24: @LK-EMM-BH90 | G24: @LK-EMS-BH90 | H24: @LK-OPD-BH90 | I24: @LK-OPY-BH90 | J24: @LK-OPF-BH90 | K24: @LK-OPM-BH90 | L24: @LK-OPR-BH90 | M24: @LK-OPS-BH90 | N24: @LK-CSW-BH90 | O24: @LK-DGW-BH90 | P24: @LK-DYW-BH90 | Q24: @LK-ISW-BH90 | R24: @LK-MSW-BH90 | S24: @LK-NVW-BH90
A25: BH90S | B25: 900 HL Sink Base Unit (Inc Liner) | C25: BH90S | D25: @LK-EMD-BH90S | E25: @LK-EMY-BH90S | F25: @LK-EMM-BH90S | G25: @LK-EMS-BH90S | H25: @LK-OPD-BH90S | I25: @LK-OPY-BH90S | J25: @LK-OPF-BH90S | K25: @LK-OPM-BH90S | L25: @LK-OPR-BH90S | M25: @LK-OPS-BH90S | N25: @LK-CSW-BH90S | O25: @LK-DGW-BH90S | P25: @LK-DYW-BH90S | Q25: @LK-ISW-BH90S | R25: @LK-MSW-BH90S | S25: @LK-NVW-BH90S
A26: BH100 | B26: 1000 HL Base Unit | C26: BH100 | D26: @LK-EMD-BH100 | E26: @LK-EMY-BH100 | F26: @LK-EMM-BH100 | G26: @LK-EMS-BH100 | H26: @LK-OPD-BH100 | I26: @LK-OPY-BH100 | J26: @LK-OPF-BH100 | K26: @LK-OPM-BH100 | L26: @LK-OPR-BH100 | M26: @LK-OPS-BH100 | N26: @LK-CSW-BH100 | O26: @LK-DGW-BH100 | P26: @LK-DYW-BH100 | Q26: @LK-ISW-BH100 | R26: @LK-MSW-BH100 | S26: @LK-NVW-BH100
A27: BH10S | B27: 1000 HL Sink Base Unit (Inc Liner) | C27: BH10S | D27: @LK-EMD-BH10S | E27: @LK-EMY-BH10S | F27: @LK-EMM-BH10S | G27: @LK-EMS-BH10S | H27: @LK-OPD-BH10S | I27: @LK-OPY-BH10S | J27: @LK-OPF-BH10S | K27: @LK-OPM-BH10S | L27: @LK-OPR-BH10S | M27: @LK-OPS-BH10S | N27: @LK-CSW-BH10S | O27: @LK-DGW-BH10S | P27: @LK-DYW-BH10S | Q27: @LK-ISW-BH10S | R27: @LK-MSW-BH10S | S27: @LK-NVW-BH10S
A28: BC83 | B28: 800 HL Cnr Base (300 Door) | C28: BC83 | D28: @LK-EMD-BC83 | E28: @LK-EMY-BC83 | F28: @LK-EMM-BC83 | G28: @LK-EMS-BC83 | H28: @LK-OPD-BC83 | I28: @LK-OPY-BC83 | J28: @LK-OPF-BC83 | K28: @LK-OPM-BC83 | L28: @LK-OPR-BC83 | M28: @LK-OPS-BC83 | N28: @LK-CSW-BC83 | O28: @LK-DGW-BC83 | P28: @LK-DYW-BC83 | Q28: @LK-ISW-BC83 | R28: @LK-MSW-BC83 | S28: @LK-NVW-BC83
A29: BC84 | B29: 800 HL Cnr Base Unit (400 Door) | C29: BC84 | D29: @LK-EMD-BC84 | E29: @LK-EMY-BC84 | F29: @LK-EMM-BC84 | G29: @LK-EMS-BC84 | H29: @LK-OPD-BC84 | I29: @LK-OPY-BC84 | J29: @LK-OPF-BC84 | K29: @LK-OPM-BC84 | L29: @LK-OPR-BC84 | M29: @LK-OPS-BC84 | N29: @LK-CSW-BC84 | O29: @LK-DGW-BC84 | P29: @LK-DYW-BC84 | Q29: @LK-ISW-BC84 | R29: @LK-MSW-BC84 | S29: @LK-NVW-BC84
A30: BC845 | B30: 800 HL Cnr Base (450 Door) | C30: BC845 | D30: @LK-EMD-BC845 | E30: @LK-EMY-BC845 | F30: @LK-EMM-BC845 | G30: @LK-EMS-BC845 | H30: @LK-OPD-BC845 | I30: @LK-OPY-BC845 | J30: @LK-OPF-BC845 | K30: @LK-OPM-BC845 | L30: @LK-OPR-BC845 | M30: @LK-OPS-BC845 | N30: @LK-CSW-BC845 | O30: @LK-DGW-BC845 | P30: @LK-DYW-BC845 | Q30: @LK-ISW-BC845 | R30: @LK-MSW-BC845 | S30: @LK-NVW-BC845
A31: BC945 | B31: 900 HL Cnr Base (450 Door) | C31: BC945 | D31: @LK-EMD-BC945 | E31: @LK-EMY-BC945 | F31: @LK-EMM-BC945 | G31: @LK-EMS-BC945 | H31: @LK-OPD-BC945 | I31: @LK-OPY-BC945 | J31: @LK-OPF-BC945 | K31: @LK-OPM-BC945 | L31: @LK-OPR-BC945 | M31: @LK-OPS-BC945 | N31: @LK-CSW-BC945 | O31: @LK-DGW-BC945 | P31: @LK-DYW-BC945 | Q31: @LK-ISW-BC945 | R31: @LK-MSW-BC945 | S31: @LK-NVW-BC945
A32: BC145 | B32: 1000 HL Cnr Base (450 Door) | C32: BC145 | D32: @LK-EMD-BC145 | E32: @LK-EMY-BC145 | F32: @LK-EMM-BC145 | G32: @LK-EMS-BC145 | H32: @LK-OPD-BC145 | I32: @LK-OPY-BC145 | J32: @LK-OPF-BC145 | K32: @LK-OPM-BC145 | L32: @LK-OPR-BC145 | M32: @LK-OPS-BC145 | N32: @LK-CSW-BC145 | O32: @LK-DGW-BC145 | P32: @LK-DYW-BC145 | Q32: @LK-ISW-BC145 | R32: @LK-MSW-BC145 | S32: @LK-NVW-BC145
A33: BC15 | B33: 1000 HL Cnr Base (500 Door) | C33: BC15 | D33: @LK-EMD-BC15 | E33: @LK-EMY-BC15 | F33: @LK-EMM-BC15 | G33: @LK-EMS-BC15 | H33: @LK-OPD-BC15 | I33: @LK-OPY-BC15 | J33: @LK-OPF-BC15 | K33: @LK-OPM-BC15 | L33: @LK-OPR-BC15 | M33: @LK-OPS-BC15 | N33: @LK-CSW-BC15 | O33: @LK-DGW-BC15 | P33: @LK-DYW-BC15 | Q33: @LK-ISW-BC15 | R33: @LK-MSW-BC15 | S33: @LK-NVW-BC15
A34: BC16 | B34: 1000 HL Cnr Base (600 Door) | C34: BC16 | D34: @LK-EMD-BC16 | E34: @LK-EMY-BC16 | F34: @LK-EMM-BC16 | G34: @LK-EMS-BC16 | H34: @LK-OPD-BC16 | I34: @LK-OPY-BC16 | J34: @LK-OPF-BC16 | K34: @LK-OPM-BC16 | L34: @LK-OPR-BC16 | M34: @LK-OPS-BC16 | N34: @LK-CSW-BC16 | O34: @LK-DGW-BC16 | P34: @LK-DYW-BC16 | Q34: @LK-ISW-BC16 | R34: @LK-MSW-BC16 | S34: @LK-NVW-BC16
A35: BCL15L | B35: 1000 Cnr Base CORNERSTONE MAXX LH - 500 door | C35: BCL15L | D35: @LK-EMD-BCL15L | E35: @LK-EMY-BCL15L | F35: @LK-EMM-BCL15L | G35: @LK-EMS-BCL15L | H35: @LK-OPD-BCL15L | I35: @LK-OPY-BCL15L | J35: @LK-OPF-BCL15L | K35: @LK-OPM-BCL15L | L35: @LK-OPR-BCL15L | M35: @LK-OPS-BCL15L | N35: @LK-CSW-BCL15L | O35: @LK-DGW-BCL15L | P35: @LK-DYW-BCL15L | Q35: @LK-ISW-BCL15L | R35: @LK-MSW-BCL15L | S35: @LK-NVW-BCL15L
A36: BCL15R | B36: 1000 Cnr Base CORNERSTONE MAXX RH - 500 door | C36: BCL15R | D36: @LK-EMD-BCL15R | E36: @LK-EMY-BCL15R | F36: @LK-EMM-BCL15R | G36: @LK-EMS-BCL15R | H36: @LK-OPD-BCL15R | I36: @LK-OPY-BCL15R | J36: @LK-OPF-BCL15R | K36: @LK-OPM-BCL15R | L36: @LK-OPR-BCL15R | M36: @LK-OPS-BCL15R | N36: @LK-CSW-BCL15R | O36: @LK-DGW-BCL15R | P36: @LK-DYW-BCL15R | Q36: @LK-ISW-BCL15R | R36: @LK-MSW-BCL15R | S36: @LK-NVW-BCL15R
A37: BCL16L | B37: 1000 Cnr Base CORNERSTONE MAXX LH - 600 door | C37: BCL16L | D37: @LK-EMD-BCL16L | E37: @LK-EMY-BCL16L | F37: @LK-EMM-BCL16L | G37: @LK-EMS-BCL16L | H37: @LK-OPD-BCL16L | I37: @LK-OPY-BCL16L | J37: @LK-OPF-BCL16L | K37: @LK-OPM-BCL16L | L37: @LK-OPR-BCL16L | M37: @LK-OPS-BCL16L | N37: @LK-CSW-BCL16L | O37: @LK-DGW-BCL16L | P37: @LK-DYW-BCL16L | Q37: @LK-ISW-BCL16L | R37: @LK-MSW-BCL16L | S37: @LK-NVW-BCL16L
A38: BCL16R | B38: 1000 Cnr Base CORNERSTONE MAXX RH - 600 door | C38: BCL16R | D38: @LK-EMD-BCL16R | E38: @LK-EMY-BCL16R | F38: @LK-EMM-BCL16R | G38: @LK-EMS-BCL16R | H38: @LK-OPD-BCL16R | I38: @LK-OPY-BCL16R | J38: @LK-OPF-BCL16R | K38: @LK-OPM-BCL16R | L38: @LK-OPR-BCL16R | M38: @LK-OPS-BCL16R | N38: @LK-CSW-BCL16R | O38: @LK-DGW-BCL16R | P38: @LK-DYW-BCL16R | Q38: @LK-ISW-BCL16R | R38: @LK-MSW-BCL16R | S38: @LK-NVW-BCL16R
A39: BCO945 | B39: 900 Corner Base VS COR FLEX - 450 door | C39: BCO945 | D39: @LK-EMD-BCO945 | E39: @LK-EMY-BCO945 | F39: @LK-EMM-BCO945 | G39: @LK-EMS-BCO945 | H39: @LK-OPD-BCO945 | I39: @LK-OPY-BCO945 | J39: @LK-OPF-BCO945 | K39: @LK-OPM-BCO945 | L39: @LK-OPR-BCO945 | M39: @LK-OPS-BCO945 | N39: @LK-CSW-BCO945 | O39: @LK-DGW-BCO945 | P39: @LK-DYW-BCO945 | Q39: @LK-ISW-BCO945 | R39: @LK-MSW-BCO945 | S39: @LK-NVW-BCO945
A40: BCO145 | B40: 1000 Corner Base VS COR FLEX - 450 door | C40: BCO145 | D40: @LK-EMD-BCO145 | E40: @LK-EMY-BCO145 | F40: @LK-EMM-BCO145 | G40: @LK-EMS-BCO145 | H40: @LK-OPD-BCO145 | I40: @LK-OPY-BCO145 | J40: @LK-OPF-BCO145 | K40: @LK-OPM-BCO145 | L40: @LK-OPR-BCO145 | M40: @LK-OPS-BCO145 | N40: @LK-CSW-BCO145 | O40: @LK-DGW-BCO145 | P40: @LK-DYW-BCO145 | Q40: @LK-ISW-BCO145 | R40: @LK-MSW-BCO145 | S40: @LK-NVW-BCO145
A41: BCO15 | B41: 1000 Corner Base VS COR FLEX - 500 door | C41: BCO15 | D41: @LK-EMD-BCO15 | E41: @LK-EMY-BCO15 | F41: @LK-EMM-BCO15 | G41: @LK-EMS-BCO15 | H41: @LK-OPD-BCO15 | I41: @LK-OPY-BCO15 | J41: @LK-OPF-BCO15 | K41: @LK-OPM-BCO15 | L41: @LK-OPR-BCO15 | M41: @LK-OPS-BCO15 | N41: @LK-CSW-BCO15 | O41: @LK-DGW-BCO15 | P41: @LK-DYW-BCO15 | Q41: @LK-ISW-BCO15 | R41: @LK-MSW-BCO15 | S41: @LK-NVW-BCO15
A42: BCO16 | B42: 1000 Corner Base VS COR FLEX - 600 door | C42: BCO16 | D42: @LK-EMD-BCO16 | E42: @LK-EMY-BCO16 | F42: @LK-EMM-BCO16 | G42: @LK-EMS-BCO16 | H42: @LK-OPD-BCO16 | I42: @LK-OPY-BCO16 | J42: @LK-OPF-BCO16 | K42: @LK-OPM-BCO16 | L42: @LK-OPR-BCO16 | M42: @LK-OPS-BCO16 | N42: @LK-CSW-BCO16 | O42: @LK-DGW-BCO16 | P42: @LK-DYW-BCO16 | Q42: @LK-ISW-BCO16 | R42: @LK-MSW-BCO16 | S42: @LK-NVW-BCO16
A43: BCL9 | B43: 950 HL Cnr L Base | C43: BCL9 | D43: @LK-EMD-BCL9 | E43: @LK-EMY-BCL9 | F43: @LK-EMM-BCL9 | G43: @LK-EMS-BCL9 | H43: @LK-OPD-BCL9 | I43: @LK-OPY-BCL9 | J43: @LK-OPF-BCL9 | K43: @LK-OPM-BCL9 | L43: @LK-OPR-BCL9 | M43: @LK-OPS-BCL9 | N43: @LK-CSW-BCL9 | O43: @LK-DGW-BCL9 | P43: @LK-DYW-BCL9 | Q43: @LK-ISW-BCL9 | R43: @LK-MSW-BCL9 | S43: @LK-NVW-BCL9
A44: BHCV | B44: Curved Base Unit | C44: BHCV | D44: Not Available | E44: Not Available | F44: Not Available | G44: Not Available | H44: Not Available | I44: Not Available | J44: Not Available | K44: Not Available | L44: Not Available | M44: Not Available | N44: @LK-CSW-BHCV | O44: @LK-DGW-BHCV | P44: @LK-DYW-BHCV | Q44: @LK-ISW-BHCV | R44: @LK-MSW-BHCV | S44: @LK-NVW-BHCV
A45: BSU6495 | B45: 600 Belfast Sink Unit (495mm High) | C45: BSU6495 | D45: @LK-EMD-BSU6495 | E45: @LK-EMY-BSU6495 | F45: @LK-EMM-BSU6495 | G45: @LK-EMS-BSU6495 | H45: @LK-OPD-BSU6495 | I45: @LK-OPY-BSU6495 | J45: @LK-OPF-BSU6495 | K45: @LK-OPM-BSU6495 | L45: @LK-OPR-BSU6495 | M45: @LK-OPS-BSU6495 | N45: @LK-CSW-BSU6495 | O45: @LK-DGW-BSU6495 | P45: @LK-DYW-BSU6495 | Q45: @LK-ISW-BSU6495 | R45: @LK-MSW-BSU6495 | S45: @LK-NVW-BSU6495
A46: BSU6450 | B46: 600 Belfast Sink Unit (450mm High) | C46: BSU6450 | D46: @LK-EMD-BSU6450 | E46: @LK-EMY-BSU6450 | F46: @LK-EMM-BSU6450 | G46: @LK-EMS-BSU6450 | H46: @LK-OPD-BSU6450 | I46: @LK-OPY-BSU6450 | J46: @LK-OPF-BSU6450 | K46: @LK-OPM-BSU6450 | L46: @LK-OPR-BSU6450 | M46: @LK-OPS-BSU6450 | N46: @LK-CSW-BSU6450 | O46: @LK-DGW-BSU6450 | P46: @LK-DYW-BSU6450 | Q46: @LK-ISW-BSU6450 | R46: @LK-MSW-BSU6450 | S46: @LK-NVW-BSU6450
A47: BSU8495 | B47: 800 Belfast Sink Unit (495mm High) | C47: BSU8495 | D47: Not Available | E47: Not Available | F47: Not Available | G47: Not Available | H47: Not Available | I47: Not Available | J47: Not Available | K47: Not Available | L47: Not Available | M47: Not Available | N47: Not Available | O47: Not Available | P47: Not Available | Q47: Not Available | R47: Not Available | S47: Not Available
A48: BDL3 | B48: 300 DL Base Unit | C48: BDL3 | D48: Not Available | E48: Not Available | F48: Not Available | G48: Not Available | H48: Not Available | I48: Not Available | J48: Not Available | K48: Not Available | L48: Not Available | M48: Not Available | N48: @LK-CSW-BDL3 | O48: @LK-DGW-BDL3 | P48: @LK-DYW-BDL3 | Q48: @LK-ISW-BDL3 | R48: @LK-MSW-BDL3 | S48: @LK-NVW-BDL3
A49: BDL4 | B49: 400 DL Base Unit | C49: BDL4 | D49: Not Available | E49: Not Available | F49: Not Available | G49: Not Available | H49: Not Available | I49: Not Available | J49: Not Available | K49: Not Available | L49: Not Available | M49: Not Available | N49: @LK-CSW-BDL4 | O49: @LK-DGW-BDL4 | P49: @LK-DYW-BDL4 | Q49: @LK-ISW-BDL4 | R49: @LK-MSW-BDL4 | S49: @LK-NVW-BDL4
A50: BDL5 | B50: 500 DL Base Unit | C50: BDL5 | D50: Not Available | E50: Not Available | F50: Not Available | G50: Not Available | H50: Not Available | I50: Not Available | J50: Not Available | K50: Not Available | L50: Not Available | M50: Not Available | N50: @LK-CSW-BDL5 | O50: @LK-DGW-BDL5 | P50: @LK-DYW-BDL5 | Q50: @LK-ISW-BDL5 | R50: @LK-MSW-BDL5 | S50: @LK-NVW-BDL5
A51: BDL6 | B51: 600 DL Base Unit | C51: BDL6 | D51: Not Available | E51: Not Available | F51: Not Available | G51: Not Available | H51: Not Available | I51: Not Available | J51: Not Available | K51: Not Available | L51: Not Available | M51: Not Available | N51: @LK-CSW-BDL6 | O51: @LK-DGW-BDL6 | P51: @LK-DYW-BDL6 | Q51: @LK-ISW-BDL6 | R51: @LK-MSW-BDL6 | S51: @LK-NVW-BDL6
A52: BDL8 | B52: 800 DL Base Unit | C52: BDL8 | D52: Not Available | E52: Not Available | F52: Not Available | G52: Not Available | H52: Not Available | I52: Not Available | J52: Not Available | K52: Not Available | L52: Not Available | M52: Not Available | N52: @LK-CSW-BDL8 | O52: @LK-DGW-BDL8 | P52: @LK-DYW-BDL8 | Q52: @LK-ISW-BDL8 | R52: @LK-MSW-BDL8 | S52: @LK-NVW-BDL8
A53: BDL10 | B53: 1000 DL Base Unit | C53: BDL10 | D53: Not Available | E53: Not Available | F53: Not Available | G53: Not Available | H53: Not Available | I53: Not Available | J53: Not Available | K53: Not Available | L53: Not Available | M53: Not Available | N53: @LK-CSW-BDL10 | O53: @LK-DGW-BDL10 | P53: @LK-DYW-BDL10 | Q53: @LK-ISW-BDL10 | R53: @LK-MSW-BDL10 | S53: @LK-NVW-BDL10
A54: BDL81DW | B54: 800 DL Base Unit 1 Drawer 2 Doors | C54: BDL81DW | D54: Not Available | E54: Not Available | F54: Not Available | G54: Not Available | H54: Not Available | I54: Not Available | J54: Not Available | K54: Not Available | L54: Not Available | M54: Not Available | N54: @LK-CSW-BDL81DW | O54: @LK-DGW-BDL81DW | P54: @LK-DYW-BDL81DW | Q54: @LK-ISW-BDL81DW | R54: @LK-MSW-BDL81DW | S54: @LK-NVW-BDL81DW
A55: BDL91DW | B55: 900 DL Base Unit 1 Drawer 2 Doors | C55: BDL91DW | D55: Not Available | E55: Not Available | F55: Not Available | G55: Not Available | H55: Not Available | I55: Not Available | J55: Not Available | K55: Not Available | L55: Not Available | M55: Not Available | N55: @LK-CSW-BDL91DW | O55: @LK-DGW-BDL91DW | P55: @LK-DYW-BDL91DW | Q55: @LK-ISW-BDL91DW | R55: @LK-MSW-BDL91DW | S55: @LK-NVW-BDL91DW
A56: BDL101DW | B56: 1000 DL Base Unit 1 Drawer 2 Doors | C56: BDL101DW | D56: Not Available | E56: Not Available | F56: Not Available | G56: Not Available | H56: Not Available | I56: Not Available | J56: Not Available | K56: Not Available | L56: Not Available | M56: Not Available | N56: @LK-CSW-BDL101DW | O56: @LK-DGW-BDL101DW | P56: @LK-DYW-BDL101DW | Q56: @LK-ISW-BDL101DW | R56: @LK-MSW-BDL101DW | S56: @LK-NVW-BDL101DW
A57: BDLC83 | B57: 800 DL Cnr Base (300 Door) | C57: BDLC83 | D57: Not Available | E57: Not Available | F57: Not Available | G57: Not Available | H57: Not Available | I57: Not Available | J57: Not Available | K57: Not Available | L57: Not Available | M57: Not Available | N57: @LK-CSW-BDLC83 | O57: @LK-DGW-BDLC83 | P57: @LK-DYW-BDLC83 | Q57: @LK-ISW-BDLC83 | R57: @LK-MSW-BDLC83 | S57: @LK-NVW-BDLC83
A58: BDLC84 | B58: 800 DL Cnr Base (400 Door) | C58: BDLC84 | D58: Not Available | E58: Not Available | F58: Not Available | G58: Not Available | H58: Not Available | I58: Not Available | J58: Not Available | K58: Not Available | L58: Not Available | M58: Not Available | N58: @LK-CSW-BDLC84 | O58: @LK-DGW-BDLC84 | P58: @LK-DYW-BDLC84 | Q58: @LK-ISW-BDLC84 | R58: @LK-MSW-BDLC84 | S58: @LK-NVW-BDLC84
A59: BDLC85 | B59: 800 DL Cnr Base (500 Door) | C59: BDLC85 | D59: Not Available | E59: Not Available | F59: Not Available | G59: Not Available | H59: Not Available | I59: Not Available | J59: Not Available | K59: Not Available | L59: Not Available | M59: Not Available | N59: @LK-CSW-BDLC85 | O59: @LK-DGW-BDLC85 | P59: @LK-DYW-BDLC85 | Q59: @LK-ISW-BDLC85 | R59: @LK-MSW-BDLC85 | S59: @LK-NVW-BDLC85
A60: BDLC15 | B60: 1000 DL Cnr Base (500 Door) | C60: BDLC15 | D60: Not Available | E60: Not Available | F60: Not Available | G60: Not Available | H60: Not Available | I60: Not Available | J60: Not Available | K60: Not Available | L60: Not Available | M60: Not Available | N60: @LK-CSW-BDLC15 | O60: @LK-DGW-BDLC15 | P60: @LK-DYW-BDLC15 | Q60: @LK-ISW-BDLC15 | R60: @LK-MSW-BDLC15 | S60: @LK-NVW-BDLC15
A61: BDLC16 | B61: 1000 DL Cnr Base (600 Door) | C61: BDLC16 | D61: Not Available | E61: Not Available | F61: Not Available | G61: Not Available | H61: Not Available | I61: Not Available | J61: Not Available | K61: Not Available | L61: Not Available | M61: Not Available | N61: @LK-CSW-BDLC16 | O61: @LK-DGW-BDLC16 | P61: @LK-DYW-BDLC16 | Q61: @LK-ISW-BDLC16 | R61: @LK-MSW-BDLC16 | S61: @LK-NVW-BDLC16
A62: BD54 | B62: 500 4 Drw Base Unit | C62: BD54 | D62: @LK-EMD-BD54 | E62: @LK-EMY-BD54 | F62: @LK-EMM-BD54 | G62: @LK-EMS-BD54 | H62: @LK-OPD-BD54 | I62: @LK-OPY-BD54 | J62: @LK-OPF-BD54 | K62: @LK-OPM-BD54 | L62: @LK-OPR-BD54 | M62: @LK-OPS-BD54 | N62: @LK-CSW-BD54 | O62: @LK-DGW-BD54 | P62: @LK-DYW-BD54 | Q62: @LK-ISW-BD54 | R62: @LK-MSW-BD54 | S62: @LK-NVW-BD54
A63: BD53 | B63: 500 3 Drw Base Unit | C63: BD53 | D63: @LK-EMD-BD53 | E63: @LK-EMY-BD53 | F63: @LK-EMM-BD53 | G63: @LK-EMS-BD53 | H63: @LK-OPD-BD53 | I63: @LK-OPY-BD53 | J63: @LK-OPF-BD53 | K63: @LK-OPM-BD53 | L63: @LK-OPR-BD53 | M63: @LK-OPS-BD53 | N63: @LK-CSW-BD53 | O63: @LK-DGW-BD53 | P63: @LK-DYW-BD53 | Q63: @LK-ISW-BD53 | R63: @LK-MSW-BD53 | S63: @LK-NVW-BD53
A64: BD63 | B64: 600 3 Drw Base Unit | C64: BD63 | D64: @LK-EMD-BD63 | E64: @LK-EMY-BD63 | F64: @LK-EMM-BD63 | G64: @LK-EMS-BD63 | H64: @LK-OPD-BD63 | I64: @LK-OPY-BD63 | J64: @LK-OPF-BD63 | K64: @LK-OPM-BD63 | L64: @LK-OPR-BD63 | M64: @LK-OPS-BD63 | N64: @LK-CSW-BD63 | O64: @LK-DGW-BD63 | P64: @LK-DYW-BD63 | Q64: @LK-ISW-BD63 | R64: @LK-MSW-BD63 | S64: @LK-NVW-BD63
A65: BD83 | B65: 800 3 Drw Base Unit | C65: BD83 | D65: @LK-EMD-BD83 | E65: @LK-EMY-BD83 | F65: @LK-EMM-BD83 | G65: @LK-EMS-BD83 | H65: @LK-OPD-BD83 | I65: @LK-OPY-BD83 | J65: @LK-OPF-BD83 | K65: @LK-OPM-BD83 | L65: @LK-OPR-BD83 | M65: @LK-OPS-BD83 | N65: @LK-CSW-BD83 | O65: @LK-DGW-BD83 | P65: @LK-DYW-BD83 | Q65: @LK-ISW-BD83 | R65: @LK-MSW-BD83 | S65: @LK-NVW-BD83
A66: BD93 | B66: 900 3 Drw Base Unit | C66: BD93 | D66: @LK-EMD-BD93 | E66: @LK-EMY-BD93 | F66: @LK-EMM-BD93 | G66: @LK-EMS-BD93 | H66: @LK-OPD-BD93 | I66: @LK-OPY-BD93 | J66: @LK-OPF-BD93 | K66: @LK-OPM-BD93 | L66: @LK-OPR-BD93 | M66: @LK-OPS-BD93 | N66: @LK-CSW-BD93 | O66: @LK-DGW-BD93 | P66: @LK-DYW-BD93 | Q66: @LK-ISW-BD93 | R66: @LK-MSW-BD93 | S66: @LK-NVW-BD93
A67: BD13 | B67: 1000 3 Drw Base Unit | C67: BD13 | D67: @LK-EMD-BD13 | E67: @LK-EMY-BD13 | F67: @LK-EMM-BD13 | G67: @LK-EMS-BD13 | H67: @LK-OPD-BD13 | I67: @LK-OPY-BD13 | J67: @LK-OPF-BD13 | K67: @LK-OPM-BD13 | L67: @LK-OPR-BD13 | M67: @LK-OPS-BD13 | N67: @LK-CSW-BD13 | O67: @LK-DGW-BD13 | P67: @LK-DYW-BD13 | Q67: @LK-ISW-BD13 | R67: @LK-MSW-BD13 | S67: @LK-NVW-BD13
A68: BD62 | B68: 600 2 Pan Drw Unit | C68: BD62 | D68: @LK-EMD-BD62 | E68: @LK-EMY-BD62 | F68: @LK-EMM-BD62 | G68: @LK-EMS-BD62 | H68: @LK-OPD-BD62 | I68: @LK-OPY-BD62 | J68: @LK-OPF-BD62 | K68: @LK-OPM-BD62 | L68: @LK-OPR-BD62 | M68: @LK-OPS-BD62 | N68: @LK-CSW-BD62 | O68: @LK-DGW-BD62 | P68: @LK-DYW-BD62 | Q68: @LK-ISW-BD62 | R68: @LK-MSW-BD62 | S68: @LK-NVW-BD62
A69: BD82 | B69: 800 2 Pan Drw Unit | C69: BD82 | D69: Not Available | E69: Not Available | F69: Not Available | G69: Not Available | H69: Not Available | I69: Not Available | J69: Not Available | K69: Not Available | L69: Not Available | M69: Not Available | N69: Not Available | O69: Not Available | P69: Not Available | Q69: Not Available | R69: Not Available | S69: Not Available
A70: BD92 | B70: 900 2 Pan Drw Unit | C70: BD92 | D70: @LK-EMD-BD92 | E70: @LK-EMY-BD92 | F70: @LK-EMM-BD92 | G70: @LK-EMS-BD92 | H70: @LK-OPD-BD92 | I70: @LK-OPY-BD92 | J70: @LK-OPF-BD92 | K70: @LK-OPM-BD92 | L70: @LK-OPR-BD92 | M70: @LK-OPS-BD92 | N70: @LK-CSW-BD92 | O70: @LK-DGW-BD92 | P70: @LK-DYW-BD92 | Q70: @LK-ISW-BD92 | R70: @LK-MSW-BD92 | S70: @LK-NVW-BD92
A71: BD12 | B71: 1000 2 Pan Drw Unit | C71: BD12 | D71: Not Available | E71: Not Available | F71: Not Available | G71: Not Available | H71: Not Available | I71: Not Available | J71: Not Available | K71: Not Available | L71: Not Available | M71: Not Available | N71: Not Available | O71: Not Available | P71: Not Available | Q71: Not Available | R71: Not Available | S71: Not Available
A72: BD62I | B72: 600 2 Pan Drw Unit + 1 Internal | C72: BD62I | D72: @LK-EMD-BD62I | E72: @LK-EMY-BD62I | F72: @LK-EMM-BD62I | G72: @LK-EMS-BD62I | H72: @LK-OPD-BD62I | I72: @LK-OPY-BD62I | J72: @LK-OPF-BD62I | K72: @LK-OPM-BD62I | L72: @LK-OPR-BD62I | M72: @LK-OPS-BD62I | N72: @LK-CSW-BD62I | O72: @LK-DGW-BD62I | P72: @LK-DYW-BD62I | Q72: @LK-ISW-BD62I | R72: @LK-MSW-BD62I | S72: @LK-NVW-BD62I
A73: BD82I | B73: 800 2 Pan Drw Unit + 1 Internal | C73: BD82I | D73: Not Available | E73: Not Available | F73: Not Available | G73: Not Available | H73: Not Available | I73: Not Available | J73: Not Available | K73: Not Available | L73: Not Available | M73: Not Available | N73: Not Available | O73: Not Available | P73: Not Available | Q73: Not Available | R73: Not Available | S73: Not Available
A74: BD92I | B74: 900 2 Pan Drw Unit + 1 Internal | C74: BD92I | D74: @LK-EMD-BD92I | E74: @LK-EMY-BD92I | F74: @LK-EMM-BD92I | G74: @LK-EMS-BD92I | H74: @LK-OPD-BD92I | I74: @LK-OPY-BD92I | J74: @LK-OPF-BD92I | K74: @LK-OPM-BD92I | L74: @LK-OPR-BD92I | M74: @LK-OPS-BD92I | N74: @LK-CSW-BD92I | O74: @LK-DGW-BD92I | P74: @LK-DYW-BD92I | Q74: @LK-ISW-BD92I | R74: @LK-MSW-BD92I | S74: @LK-NVW-BD92I
A75: BD12I | B75: 1000 2 Pan Drw Unit + 1 Internal | C75: BD12I | D75: Not Available | E75: Not Available | F75: Not Available | G75: Not Available | H75: Not Available | I75: Not Available | J75: Not Available | K75: Not Available | L75: Not Available | M75: Not Available | N75: Not Available | O75: Not Available | P75: Not Available | Q75: Not Available | R75: Not Available | S75: Not Available
A76: BD635L | B76: 600 Low Single Drawer unit 360 high | C76: BD635L | D76: @LK-EMD-BD635L | E76: @LK-EMY-BD635L | F76: @LK-EMM-BD635L | G76: @LK-EMS-BD635L | H76: @LK-OPD-BD635L | I76: @LK-OPY-BD635L | J76: @LK-OPF-BD635L | K76: @LK-OPM-BD635L | L76: @LK-OPR-BD635L | M76: @LK-OPS-BD635L | N76: @LK-CSW-BD635L | O76: @LK-DGW-BD635L | P76: @LK-DYW-BD635L | Q76: @LK-ISW-BD635L | R76: @LK-MSW-BD635L | S76: @LK-NVW-BD635L
A77: W30 | B77: 300 Wall Unit (720mm High) | C77: W30 | D77: @LK-EMD-W30 | E77: @LK-EMY-W30 | F77: @LK-EMM-W30 | G77: @LK-EMS-W30 | H77: @LK-OPD-W30 | I77: @LK-OPY-W30 | J77: @LK-OPF-W30 | K77: @LK-OPM-W30 | L77: @LK-OPR-W30 | M77: @LK-OPS-W30 | N77: @LK-CSW-W30 | O77: @LK-DGW-W30 | P77: @LK-DYW-W30 | Q77: @LK-ISW-W30 | R77: @LK-MSW-W30 | S77: @LK-NVW-W30
A78: W35 | B78: 350 Wall Unit (720mm High) | C78: W35 | D78: @LK-EMD-W35 | E78: @LK-EMY-W35 | F78: @LK-EMM-W35 | G78: @LK-EMS-W35 | H78: @LK-OPD-W35 | I78: @LK-OPY-W35 | J78: @LK-OPF-W35 | K78: @LK-OPM-W35 | L78: @LK-OPR-W35 | M78: @LK-OPS-W35 | N78: @LK-CSW-W35 | O78: @LK-DGW-W35 | P78: @LK-DYW-W35 | Q78: @LK-ISW-W35 | R78: @LK-MSW-W35 | S78: @LK-NVW-W35
A79: W40 | B79: 400 Wall Unit (720mm High) | C79: W40 | D79: @LK-EMD-W40 | E79: @LK-EMY-W40 | F79: @LK-EMM-W40 | G79: @LK-EMS-W40 | H79: @LK-OPD-W40 | I79: @LK-OPY-W40 | J79: @LK-OPF-W40 | K79: @LK-OPM-W40 | L79: @LK-OPR-W40 | M79: @LK-OPS-W40 | N79: @LK-CSW-W40 | O79: @LK-DGW-W40 | P79: @LK-DYW-W40 | Q79: @LK-ISW-W40 | R79: @LK-MSW-W40 | S79: @LK-NVW-W40
A80: W45 | B80: 450 Wall Unit (720mm High) | C80: W45 | D80: @LK-EMD-W45 | E80: @LK-EMY-W45 | F80: @LK-EMM-W45 | G80: @LK-EMS-W45 | H80: @LK-OPD-W45 | I80: @LK-OPY-W45 | J80: @LK-OPF-W45 | K80: @LK-OPM-W45 | L80: @LK-OPR-W45 | M80: @LK-OPS-W45 | N80: @LK-CSW-W45 | O80: @LK-DGW-W45 | P80: @LK-DYW-W45 | Q80: @LK-ISW-W45 | R80: @LK-MSW-W45 | S80: @LK-NVW-W45
A81: W50 | B81: 500 Wall Unit (720mm High) | C81: W50 | D81: @LK-EMD-W50 | E81: @LK-EMY-W50 | F81: @LK-EMM-W50 | G81: @LK-EMS-W50 | H81: @LK-OPD-W50 | I81: @LK-OPY-W50 | J81: @LK-OPF-W50 | K81: @LK-OPM-W50 | L81: @LK-OPR-W50 | M81: @LK-OPS-W50 | N81: @LK-CSW-W50 | O81: @LK-DGW-W50 | P81: @LK-DYW-W50 | Q81: @LK-ISW-W50 | R81: @LK-MSW-W50 | S81: @LK-NVW-W50
A82: W60 | B82: 600 Wall Unit (720mm High) | C82: W60 | D82: @LK-EMD-W60 | E82: @LK-EMY-W60 | F82: @LK-EMM-W60 | G82: @LK-EMS-W60 | H82: @LK-OPD-W60 | I82: @LK-OPY-W60 | J82: @LK-OPF-W60 | K82: @LK-OPM-W60 | L82: @LK-OPR-W60 | M82: @LK-OPS-W60 | N82: @LK-CSW-W60 | O82: @LK-DGW-W60 | P82: @LK-DYW-W60 | Q82: @LK-ISW-W60 | R82: @LK-MSW-W60 | S82: @LK-NVW-W60
A83: W70 | B83: 700 Wall Unit (720mm High) | C83: W70 | D83: @LK-EMD-W70 | E83: @LK-EMY-W70 | F83: @LK-EMM-W70 | G83: @LK-EMS-W70 | H83: @LK-OPD-W70 | I83: @LK-OPY-W70 | J83: @LK-OPF-W70 | K83: @LK-OPM-W70 | L83: @LK-OPR-W70 | M83: @LK-OPS-W70 | N83: @LK-CSW-W70 | O83: @LK-DGW-W70 | P83: @LK-DYW-W70 | Q83: @LK-ISW-W70 | R83: @LK-MSW-W70 | S83: @LK-NVW-W70
A84: W80 | B84: 800 Wall Unit (720mm High) | C84: W80 | D84: @LK-EMD-W80 | E84: @LK-EMY-W80 | F84: @LK-EMM-W80 | G84: @LK-EMS-W80 | H84: @LK-OPD-W80 | I84: @LK-OPY-W80 | J84: @LK-OPF-W80 | K84: @LK-OPM-W80 | L84: @LK-OPR-W80 | M84: @LK-OPS-W80 | N84: @LK-CSW-W80 | O84: @LK-DGW-W80 | P84: @LK-DYW-W80 | Q84: @LK-ISW-W80 | R84: @LK-MSW-W80 | S84: @LK-NVW-W80
A85: W90 | B85: 900 Wall Unit (720mm High) | C85: W90 | D85: @LK-EMD-W90 | E85: @LK-EMY-W90 | F85: @LK-EMM-W90 | G85: @LK-EMS-W90 | H85: @LK-OPD-W90 | I85: @LK-OPY-W90 | J85: @LK-OPF-W90 | K85: @LK-OPM-W90 | L85: @LK-OPR-W90 | M85: @LK-OPS-W90 | N85: @LK-CSW-W90 | O85: @LK-DGW-W90 | P85: @LK-DYW-W90 | Q85: @LK-ISW-W90 | R85: @LK-MSW-W90 | S85: @LK-NVW-W90
A86: W100 | B86: 1000 Wall Unit (720mm High) | C86: W100 | D86: @LK-EMD-W100 | E86: @LK-EMY-W100 | F86: @LK-EMM-W100 | G86: @LK-EMS-W100 | H86: @LK-OPD-W100 | I86: @LK-OPY-W100 | J86: @LK-OPF-W100 | K86: @LK-OPM-W100 | L86: @LK-OPR-W100 | M86: @LK-OPS-W100 | N86: @LK-CSW-W100 | O86: @LK-DGW-W100 | P86: @LK-DYW-W100 | Q86: @LK-ISW-W100 | R86: @LK-MSW-W100 | S86: @LK-NVW-W100
A87: WC6 | B87: 600 Cnr Wall Unit (720mm High) | C87: WC6 | D87: @LK-EMD-WC6 | E87: @LK-EMY-WC6 | F87: @LK-EMM-WC6 | G87: @LK-EMS-WC6 | H87: @LK-OPD-WC6 | I87: @LK-OPY-WC6 | J87: @LK-OPF-WC6 | K87: @LK-OPM-WC6 | L87: @LK-OPR-WC6 | M87: @LK-OPS-WC6 | N87: @LK-CSW-WC6 | O87: @LK-DGW-WC6 | P87: @LK-DYW-WC6 | Q87: @LK-ISW-WC6 | R87: @LK-MSW-WC6 | S87: @LK-NVW-WC6
A88: WC9 | B88: 900 Cnr Wall Unit (720mm High) | C88: WC9 | D88: @LK-EMD-WC9 | E88: @LK-EMY-WC9 | F88: @LK-EMM-WC9 | G88: @LK-EMS-WC9 | H88: @LK-OPD-WC9 | I88: @LK-OPY-WC9 | J88: @LK-OPF-WC9 | K88: @LK-OPM-WC9 | L88: @LK-OPR-WC9 | M88: @LK-OPS-WC9 | N88: @LK-CSW-WC9 | O88: @LK-DGW-WC9 | P88: @LK-DYW-WC9 | Q88: @LK-ISW-WC9 | R88: @LK-MSW-WC9 | S88: @LK-NVW-WC9
A89: WCL65 | B89: 650 L Cnr Wall Unit (720mm High) | C89: WCL65 | D89: @LK-EMD-WCL65 | E89: @LK-EMY-WCL65 | F89: @LK-EMM-WCL65 | G89: @LK-EMS-WCL65 | H89: @LK-OPD-WCL65 | I89: @LK-OPY-WCL65 | J89: @LK-OPF-WCL65 | K89: @LK-OPM-WCL65 | L89: @LK-OPR-WCL65 | M89: @LK-OPS-WCL65 | N89: @LK-CSW-WCL65 | O89: @LK-DGW-WCL65 | P89: @LK-DYW-WCL65 | Q89: @LK-ISW-WCL65 | R89: @LK-MSW-WCL65 | S89: @LK-NVW-WCL65
A90: WM60 | B90: 600 Wall Microwave Unit | C90: WM60 | D90: @LK-EMD-WM60 | E90: @LK-EMY-WM60 | F90: @LK-EMM-WM60 | G90: @LK-EMS-WM60 | H90: @LK-OPD-WM60 | I90: @LK-OPY-WM60 | J90: @LK-OPF-WM60 | K90: @LK-OPM-WM60 | L90: @LK-OPR-WM60 | M90: @LK-OPS-WM60 | N90: @LK-CSW-WM60 | O90: @LK-DGW-WM60 | P90: @LK-DYW-WM60 | Q90: @LK-ISW-WM60 | R90: @LK-MSW-WM60 | S90: @LK-NVW-WM60
A91: WBHU | B91: 600 Boiler Housing | C91: WBHU | D91: @LK-EMD-WBHU | E91: @LK-EMY-WBHU | F91: @LK-EMM-WBHU | G91: @LK-EMS-WBHU | H91: @LK-OPD-WBHU | I91: @LK-OPY-WBHU | J91: @LK-OPF-WBHU | K91: @LK-OPM-WBHU | L91: @LK-OPR-WBHU | M91: @LK-OPS-WBHU | N91: @LK-CSW-WBHU | O91: @LK-DGW-WBHU | P91: @LK-DYW-WBHU | Q91: @LK-ISW-WBHU | R91: @LK-MSW-WBHU | S91: @LK-NVW-WBHU
A92: WBI60 | B92: 600 Bifold Unit | C92: WBI60 | D92: @LK-EMD-WBI60 | E92: @LK-EMY-WBI60 | F92: @LK-EMM-WBI60 | G92: @LK-EMS-WBI60 | H92: @LK-OPD-WBI60 | I92: @LK-OPY-WBI60 | J92: @LK-OPF-WBI60 | K92: @LK-OPM-WBI60 | L92: @LK-OPR-WBI60 | M92: @LK-OPS-WBI60 | N92: @LK-CSW-WBI60 | O92: @LK-DGW-WBI60 | P92: @LK-DYW-WBI60 | Q92: @LK-ISW-WBI60 | R92: @LK-MSW-WBI60 | S92: @LK-NVW-WBI60
A93: WBI80 | B93: 800 Bifold Unit | C93: WBI80 | D93: Not Available | E93: Not Available | F93: Not Available | G93: Not Available | H93: Not Available | I93: Not Available | J93: Not Available | K93: Not Available | L93: Not Available | M93: Not Available | N93: Not Available | O93: Not Available | P93: Not Available | Q93: Not Available | R93: Not Available | S93: Not Available
A94: WBI90 | B94: 900 Bifold Unit | C94: WBI90 | D94: @LK-EMD-WBI90 | E94: @LK-EMY-WBI90 | F94: @LK-EMM-WBI90 | G94: @LK-EMS-WBI90 | H94: @LK-OPD-WBI90 | I94: @LK-OPY-WBI90 | J94: @LK-OPF-WBI90 | K94: @LK-OPM-WBI90 | L94: @LK-OPR-WBI90 | M94: @LK-OPS-WBI90 | N94: @LK-CSW-WBI90 | O94: @LK-DGW-WBI90 | P94: @LK-DYW-WBI90 | Q94: @LK-ISW-WBI90 | R94: @LK-MSW-WBI90 | S94: @LK-NVW-WBI90
A95: WBI10 | B95: 1000 Bifold Unit | C95: WBI10 | D95: Not Available | E95: Not Available | F95: Not Available | G95: Not Available | H95: Not Available | I95: Not Available | J95: Not Available | K95: Not Available | L95: Not Available | M95: Not Available | N95: Not Available | O95: Not Available | P95: Not Available | Q95: Not Available | R95: Not Available | S95: Not Available
A96: WG5 | B96: 500 Glass Wall Unit | C96: WG5 | D96: Not Available | E96: Not Available | F96: Not Available | G96: Not Available | H96: Not Available | I96: Not Available | J96: Not Available | K96: Not Available | L96: Not Available | M96: Not Available | N96: @LK-CSW-WG5 | O96: @LK-DGW-WG5 | P96: @LK-DYW-WG5 | Q96: @LK-ISW-WG5 | R96: @LK-MSW-WG5 | S96: @LK-NVW-WG5
A97: WDR50 | B97: 500 Dresser Unit | C97: WDR50 | D97: Not Available | E97: Not Available | F97: Not Available | G97: Not Available | H97: Not Available | I97: Not Available | J97: Not Available | K97: Not Available | L97: Not Available | M97: Not Available | N97: @LK-CSW-WDR50 | O97: @LK-DGW-WDR50 | P97: @LK-DYW-WDR50 | Q97: @LK-ISW-WDR50 | R97: @LK-MSW-WDR50 | S97: @LK-NVW-WDR50
A98: WCV | B98: Curved Wall Unit | C98: WCV | D98: Not Available | E98: Not Available | F98: Not Available | G98: Not Available | H98: Not Available | I98: Not Available | J98: Not Available | K98: Not Available | L98: Not Available | M98: Not Available | N98: @LK-CSW-WCV | O98: @LK-DGW-WCV | P98: @LK-DYW-WCV | Q98: @LK-ISW-WCV | R98: @LK-MSW-WCV | S98: @LK-NVW-WCV
A99: WGS5 | B99: Smoked Glass Wall Unit - 500mm | C99: WGS5 | D99: @LK-EMD-WGS5 | E99: @LK-EMY-WGS5 | F99: @LK-EMM-WGS5 | G99: @LK-EMS-WGS5 | H99: @LK-OPD-WGS5 | I99: @LK-OPY-WGS5 | J99: @LK-OPF-WGS5 | K99: @LK-OPM-WGS5 | L99: @LK-OPR-WGS5 | M99: @LK-OPS-WGS5 | N99: Not Available | O99: Not Available | P99: Not Available | Q99: Not Available | R99: Not Available | S99: Not Available
A100: WGS6 | B100: Smoked Glass Wall Unit - 600mm | C100: WGS6 | D100: @LK-EMD-WGS6 | E100: @LK-EMY-WGS6 | F100: @LK-EMM-WGS6 | G100: @LK-EMS-WGS6 | H100: @LK-OPD-WGS6 | I100: @LK-OPY-WGS6 | J100: @LK-OPF-WGS6 | K100: @LK-OPM-WGS6 | L100: @LK-OPR-WGS6 | M100: @LK-OPS-WGS6 | N100: Not Available | O100: Not Available | P100: Not Available | Q100: Not Available | R100: Not Available | S100: Not Available
A101: WGR5 | B101: Reeded Glass Wall Unit - 500mm | C101: WGR5 | D101: @LK-EMD-WGR5 | E101: @LK-EMY-WGR5 | F101: @LK-EMM-WGR5 | G101: @LK-EMS-WGR5 | H101: @LK-OPD-WGR5 | I101: @LK-OPY-WGR5 | J101: @LK-OPF-WGR5 | K101: @LK-OPM-WGR5 | L101: @LK-OPR-WGR5 | M101: @LK-OPS-WGR5 | N101: Not Available | O101: Not Available | P101: Not Available | Q101: Not Available | R101: Not Available | S101: Not Available
A102: WGR6 | B102: Reeded Glass Wall Unit - 600mm | C102: WGR6 | D102: @LK-EMD-WGR6 | E102: @LK-EMY-WGR6 | F102: @LK-EMM-WGR6 | G102: @LK-EMS-WGR6 | H102: @LK-OPD-WGR6 | I102: @LK-OPY-WGR6 | J102: @LK-OPF-WGR6 | K102: @LK-OPM-WGR6 | L102: @LK-OPR-WGR6 | M102: @LK-OPS-WGR6 | N102: Not Available | O102: Not Available | P102: Not Available | Q102: Not Available | R102: Not Available | S102: Not Available
A103: WB62 | B103: 600 285 Bridging Unit | C103: WB62 | D103: @LK-EMD-WB62 | E103: @LK-EMY-WB62 | F103: @LK-EMM-WB62 | G103: @LK-EMS-WB62 | H103: @LK-OPD-WB62 | I103: @LK-OPY-WB62 | J103: @LK-OPF-WB62 | K103: @LK-OPM-WB62 | L103: @LK-OPR-WB62 | M103: @LK-OPS-WB62 | N103: @LK-CSW-WB62 | O103: @LK-DGW-WB62 | P103: @LK-DYW-WB62 | Q103: @LK-ISW-WB62 | R103: @LK-MSW-WB62 | S103: @LK-NVW-WB62
A104: WB82 | B104: 800 285 Bridging Unit | C104: WB82 | D104: @LK-EMD-WB82 | E104: @LK-EMY-WB82 | F104: @LK-EMM-WB82 | G104: @LK-EMS-WB82 | H104: @LK-OPD-WB82 | I104: @LK-OPY-WB82 | J104: @LK-OPF-WB82 | K104: @LK-OPM-WB82 | L104: @LK-OPR-WB82 | M104: @LK-OPS-WB82 | N104: @LK-CSW-WB82 | O104: @LK-DGW-WB82 | P104: @LK-DYW-WB82 | Q104: @LK-ISW-WB82 | R104: @LK-MSW-WB82 | S104: @LK-NVW-WB82
A105: WB92 | B105: 900 285 Bridging Unit | C105: WB92 | D105: @LK-EMD-WB92 | E105: @LK-EMY-WB92 | F105: @LK-EMM-WB92 | G105: @LK-EMS-WB92 | H105: @LK-OPD-WB92 | I105: @LK-OPY-WB92 | J105: @LK-OPF-WB92 | K105: @LK-OPM-WB92 | L105: @LK-OPR-WB92 | M105: @LK-OPS-WB92 | N105: @LK-CSW-WB92 | O105: @LK-DGW-WB92 | P105: @LK-DYW-WB92 | Q105: @LK-ISW-WB92 | R105: @LK-MSW-WB92 | S105: @LK-NVW-WB92
A106: WB12 | B106: 1000 285 Bridging Unit | C106: WB12 | D106: @LK-EMD-WB12 | E106: @LK-EMY-WB12 | F106: @LK-EMM-WB12 | G106: @LK-EMS-WB12 | H106: @LK-OPD-WB12 | I106: @LK-OPY-WB12 | J106: @LK-OPF-WB12 | K106: @LK-OPM-WB12 | L106: @LK-OPR-WB12 | M106: @LK-OPS-WB12 | N106: @LK-CSW-WB12 | O106: @LK-DGW-WB12 | P106: @LK-DYW-WB12 | Q106: @LK-ISW-WB12 | R106: @LK-MSW-WB12 | S106: @LK-NVW-WB12
A107: WB63 | B107: 600 355mm Bridging Unit | C107: WB63 | D107: @LK-EMD-WB63 | E107: @LK-EMY-WB63 | F107: @LK-EMM-WB63 | G107: @LK-EMS-WB63 | H107: @LK-OPD-WB63 | I107: @LK-OPY-WB63 | J107: @LK-OPF-WB63 | K107: @LK-OPM-WB63 | L107: @LK-OPR-WB63 | M107: @LK-OPS-WB63 | N107: @LK-CSW-WB63 | O107: @LK-DGW-WB63 | P107: @LK-DYW-WB63 | Q107: @LK-ISW-WB63 | R107: @LK-MSW-WB63 | S107: @LK-NVW-WB63
A108: WB83 | B108: 800 355mm Bridging Unit | C108: WB83 | D108: Not Available | E108: Not Available | F108: Not Available | G108: Not Available | H108: Not Available | I108: Not Available | J108: Not Available | K108: Not Available | L108: Not Available | M108: Not Available | N108: @LK-CSW-WB83 | O108: @LK-DGW-WB83 | P108: @LK-DYW-WB83 | Q108: @LK-ISW-WB83 | R108: @LK-MSW-WB83 | S108: @LK-NVW-WB83
A109: WB93 | B109: 900 355mm Bridging Unit | C109: WB93 | D109: @LK-EMD-WB93 | E109: @LK-EMY-WB93 | F109: @LK-EMM-WB93 | G109: @LK-EMS-WB93 | H109: @LK-OPD-WB93 | I109: @LK-OPY-WB93 | J109: @LK-OPF-WB93 | K109: @LK-OPM-WB93 | L109: @LK-OPR-WB93 | M109: @LK-OPS-WB93 | N109: @LK-CSW-WB93 | O109: @LK-DGW-WB93 | P109: @LK-DYW-WB93 | Q109: @LK-ISW-WB93 | R109: @LK-MSW-WB93 | S109: @LK-NVW-WB93
A110: WB13 | B110: 1000 355mm Bridging Unit | C110: WB13 | D110: Not Available | E110: Not Available | F110: Not Available | G110: Not Available | H110: Not Available | I110: Not Available | J110: Not Available | K110: Not Available | L110: Not Available | M110: Not Available | N110: @LK-CSW-WB13 | O110: @LK-DGW-WB13 | P110: @LK-DYW-WB13 | Q110: @LK-ISW-WB13 | R110: @LK-MSW-WB13 | S110: @LK-NVW-WB13
A111: AH-F55 | B111: 600 50/50 FF Housing Unit | C111: AH-F55 | D111: @LK-EMD-AH-F55 | E111: @LK-EMY-AH-F55 | F111: @LK-EMM-AH-F55 | G111: @LK-EMS-AH-F55 | H111: @LK-OPD-AH-F55 | I111: @LK-OPY-AH-F55 | J111: @LK-OPF-AH-F55 | K111: @LK-OPM-AH-F55 | L111: @LK-OPR-AH-F55 | M111: @LK-OPS-AH-F55 | N111: @LK-CSW-AH-F55 | O111: @LK-DGW-AH-F55 | P111: @LK-DYW-AH-F55 | Q111: @LK-ISW-AH-F55 | R111: @LK-MSW-AH-F55 | S111: @LK-NVW-AH-F55
A112: AH-F73 | B112: 600 70/30 FF Housing Unit | C112: AH-F73 | D112: @LK-EMD-AH-F73 | E112: @LK-EMY-AH-F73 | F112: @LK-EMM-AH-F73 | G112: @LK-EMS-AH-F73 | H112: @LK-OPD-AH-F73 | I112: @LK-OPY-AH-F73 | J112: @LK-OPF-AH-F73 | K112: @LK-OPM-AH-F73 | L112: @LK-OPR-AH-F73 | M112: @LK-OPS-AH-F73 | N112: @LK-CSW-AH-F73 | O112: @LK-DGW-AH-F73 | P112: @LK-DYW-AH-F73 | Q112: @LK-ISW-AH-F73 | R112: @LK-MSW-AH-F73 | S112: @LK-NVW-AH-F73
A113: AH-DO | B113: 600 Dble Oven Housing | C113: AH-DO | D113: @LK-EMD-AH-DO | E113: @LK-EMY-AH-DO | F113: @LK-EMM-AH-DO | G113: @LK-EMS-AH-DO | H113: @LK-OPD-AH-DO | I113: @LK-OPY-AH-DO | J113: @LK-OPF-AH-DO | K113: @LK-OPM-AH-DO | L113: @LK-OPR-AH-DO | M113: @LK-OPS-AH-DO | N113: @LK-CSW-AH-DO | O113: @LK-DGW-AH-DO | P113: @LK-DYW-AH-DO | Q113: @LK-ISW-AH-DO | R113: @LK-MSW-AH-DO | S113: @LK-NVW-AH-DO
A114: AH-DO2D | B114: 600 Dble Oven & 2 Drws | C114: AH-DO2D | D114: @LK-EMD-AH-DO2D | E114: @LK-EMY-AH-DO2D | F114: @LK-EMM-AH-DO2D | G114: @LK-EMS-AH-DO2D | H114: @LK-OPD-AH-DO2D | I114: @LK-OPY-AH-DO2D | J114: @LK-OPF-AH-DO2D | K114: @LK-OPM-AH-DO2D | L114: @LK-OPR-AH-DO2D | M114: @LK-OPS-AH-DO2D | N114: @LK-CSW-AH-DO2D | O114: @LK-DGW-AH-DO2D | P114: @LK-DYW-AH-DO2D | Q114: @LK-ISW-AH-DO2D | R114: @LK-MSW-AH-DO2D | S114: @LK-NVW-AH-DO2D
A115: AH-DMW | B115: 600 Double Oven & MW unit | C115: AH-DMW | D115: @LK-EMD-AH-DMW | E115: @LK-EMY-AH-DMW | F115: @LK-EMM-AH-DMW | G115: @LK-EMS-AH-DMW | H115: @LK-OPD-AH-DMW | I115: @LK-OPY-AH-DMW | J115: @LK-OPF-AH-DMW | K115: @LK-OPM-AH-DMW | L115: @LK-OPR-AH-DMW | M115: @LK-OPS-AH-DMW | N115: @LK-CSW-AH-DMW | O115: @LK-DGW-AH-DMW | P115: @LK-DYW-AH-DMW | Q115: @LK-ISW-AH-DMW | R115: @LK-MSW-AH-DMW | S115: @LK-NVW-AH-DMW
A116: AH-SO | B116: 600 Single Oven Housing | C116: AH-SO | D116: @LK-EMD-AH-SO | E116: @LK-EMY-AH-SO | F116: @LK-EMM-AH-SO | G116: @LK-EMS-AH-SO | H116: @LK-OPD-AH-SO | I116: @LK-OPY-AH-SO | J116: @LK-OPF-AH-SO | K116: @LK-OPM-AH-SO | L116: @LK-OPR-AH-SO | M116: @LK-OPS-AH-SO | N116: @LK-CSW-AH-SO | O116: @LK-DGW-AH-SO | P116: @LK-DYW-AH-SO | Q116: @LK-ISW-AH-SO | R116: @LK-MSW-AH-SO | S116: @LK-NVW-AH-SO
A117: AH-SO1D | B117: 600 Single Oven + 1 Drw Unit | C117: AH-SO1D | D117: @LK-EMD-AH-SO1D | E117: @LK-EMY-AH-SO1D | F117: @LK-EMM-AH-SO1D | G117: @LK-EMS-AH-SO1D | H117: @LK-OPD-AH-SO1D | I117: @LK-OPY-AH-SO1D | J117: @LK-OPF-AH-SO1D | K117: @LK-OPM-AH-SO1D | L117: @LK-OPR-AH-SO1D | M117: @LK-OPS-AH-SO1D | N117: @LK-CSW-AH-SO1D | O117: @LK-DGW-AH-SO1D | P117: @LK-DYW-AH-SO1D | Q117: @LK-ISW-AH-SO1D | R117: @LK-MSW-AH-SO1D | S117: @LK-NVW-AH-SO1D
A118: AH-SO2D | B118: 600 Single Oven + 2 Drws Unit | C118: AH-SO2D | D118: @LK-EMD-AH-SO2D | E118: @LK-EMY-AH-SO2D | F118: @LK-EMM-AH-SO2D | G118: @LK-EMS-AH-SO2D | H118: @LK-OPD-AH-SO2D | I118: @LK-OPY-AH-SO2D | J118: @LK-OPF-AH-SO2D | K118: @LK-OPM-AH-SO2D | L118: @LK-OPR-AH-SO2D | M118: @LK-OPS-AH-SO2D | N118: @LK-CSW-AH-SO2D | O118: @LK-DGW-AH-SO2D | P118: @LK-DYW-AH-SO2D | Q118: @LK-ISW-AH-SO2D | R118: @LK-MSW-AH-SO2D | S118: @LK-NVW-AH-SO2D
A119: AH-SO3D | B119: 600 Single Oven + 3 Drws Unit | C119: AH-SO3D | D119: @LK-EMD-AH-SO3D | E119: @LK-EMY-AH-SO3D | F119: @LK-EMM-AH-SO3D | G119: @LK-EMS-AH-SO3D | H119: @LK-OPD-AH-SO3D | I119: @LK-OPY-AH-SO3D | J119: @LK-OPF-AH-SO3D | K119: @LK-OPM-AH-SO3D | L119: @LK-OPR-AH-SO3D | M119: @LK-OPS-AH-SO3D | N119: @LK-CSW-AH-SO3D | O119: @LK-DGW-AH-SO3D | P119: @LK-DYW-AH-SO3D | Q119: @LK-ISW-AH-SO3D | R119: @LK-MSW-AH-SO3D | S119: @LK-NVW-AH-SO3D
A120: AH-SMW | B120: 600 Sgle Oven & MW 2 Door unit | C120: AH-SMW | D120: @LK-EMD-AH-SMW | E120: @LK-EMY-AH-SMW | F120: @LK-EMM-AH-SMW | G120: @LK-EMS-AH-SMW | H120: @LK-OPD-AH-SMW | I120: @LK-OPY-AH-SMW | J120: @LK-OPF-AH-SMW | K120: @LK-OPM-AH-SMW | L120: @LK-OPR-AH-SMW | M120: @LK-OPS-AH-SMW | N120: @LK-CSW-AH-SMW | O120: @LK-DGW-AH-SMW | P120: @LK-DYW-AH-SMW | Q120: @LK-ISW-AH-SMW | R120: @LK-MSW-AH-SMW | S120: @LK-NVW-AH-SMW
A121: AH-SM2D | B121: 600 Single Oven & MW 2 Drw unit | C121: AH-SM2D | D121: @LK-EMD-AH-SM2D | E121: @LK-EMY-AH-SM2D | F121: @LK-EMM-AH-SM2D | G121: @LK-EMS-AH-SM2D | H121: @LK-OPD-AH-SM2D | I121: @LK-OPY-AH-SM2D | J121: @LK-OPF-AH-SM2D | K121: @LK-OPM-AH-SM2D | L121: @LK-OPR-AH-SM2D | M121: @LK-OPS-AH-SM2D | N121: @LK-CSW-AH-SM2D | O121: @LK-DGW-AH-SM2D | P121: @LK-DYW-AH-SM2D | Q121: @LK-ISW-AH-SM2D | R121: @LK-MSW-AH-SM2D | S121: @LK-NVW-AH-SM2D
A122: AH-CO | B122: 600 Compact / Microwave Housing | C122: AH-CO | D122: @LK-EMD-AH-CO | E122: @LK-EMY-AH-CO | F122: @LK-EMM-AH-CO | G122: @LK-EMS-AH-CO | H122: @LK-OPD-AH-CO | I122: @LK-OPY-AH-CO | J122: @LK-OPF-AH-CO | K122: @LK-OPM-AH-CO | L122: @LK-OPR-AH-CO | M122: @LK-OPS-AH-CO | N122: @LK-CSW-AH-CO | O122: @LK-DGW-AH-CO | P122: @LK-DYW-AH-CO | Q122: @LK-ISW-AH-CO | R122: @LK-MSW-AH-CO | S122: @LK-NVW-AH-CO
A123: MAH-SO | B123: 600 Single Oven Midi Housing | C123: MAH-SO | D123: Not Available | E123: Not Available | F123: Not Available | G123: Not Available | H123: Not Available | I123: Not Available | J123: Not Available | K123: Not Available | L123: Not Available | M123: Not Available | N123: Not Available | O123: Not Available | P123: Not Available | Q123: Not Available | R123: Not Available | S123: Not Available
A124: MAH-DO | B124: 600 Dble Oven Midi Housing | C124: MAH-DO | D124: Not Available | E124: Not Available | F124: Not Available | G124: Not Available | H124: Not Available | I124: Not Available | J124: Not Available | K124: Not Available | L124: Not Available | M124: Not Available | N124: Not Available | O124: Not Available | P124: Not Available | Q124: Not Available | R124: Not Available | S124: Not Available
A125: MAH-FR | B125: 600 Fridge Midi Housing | C125: MAH-FR | D125: Not Available | E125: Not Available | F125: Not Available | G125: Not Available | H125: Not Available | I125: Not Available | J125: Not Available | K125: Not Available | L125: Not Available | M125: Not Available | N125: Not Available | O125: Not Available | P125: Not Available | Q125: Not Available | R125: Not Available | S125: Not Available
A126: BOH6 | B126: 600 BU Oven Housing | C126: BOH6 | D126: @LK-EMD-BOH6 | E126: @LK-EMY-BOH6 | F126: @LK-EMM-BOH6 | G126: @LK-EMS-BOH6 | H126: @LK-OPD-BOH6 | I126: @LK-OPY-BOH6 | J126: @LK-OPF-BOH6 | K126: @LK-OPM-BOH6 | L126: @LK-OPR-BOH6 | M126: @LK-OPS-BOH6 | N126: @LK-CSW-BOH6 | O126: @LK-DGW-BOH6 | P126: @LK-DYW-BOH6 | Q126: @LK-ISW-BOH6 | R126: @LK-MSW-BOH6 | S126: @LK-NVW-BOH6
A127: BOHD6 | B127: 600 BU Oven Housing with drawer -18mm | C127: BOHD6 | D127: @LK-EMD-BOHD6 | E127: @LK-EMY-BOHD6 | F127: @LK-EMM-BOHD6 | G127: @LK-EMS-BOHD6 | H127: @LK-OPD-BOHD6 | I127: @LK-OPY-BOHD6 | J127: @LK-OPF-BOHD6 | K127: @LK-OPM-BOHD6 | L127: @LK-OPR-BOHD6 | M127: @LK-OPS-BOHD6 | N127: @LK-CSW-BOHD6 | O127: @LK-DGW-BOHD6 | P127: @LK-DYW-BOHD6 | Q127: @LK-ISW-BOHD6 | R127: @LK-MSW-BOHD6 | S127: @LK-NVW-BOHD6
A128: L3 | B128: 300 Larder Unit | C128: L3 | D128: @LK-EMD-L3 | E128: @LK-EMY-L3 | F128: @LK-EMM-L3 | G128: @LK-EMS-L3 | H128: @LK-OPD-L3 | I128: @LK-OPY-L3 | J128: @LK-OPF-L3 | K128: @LK-OPM-L3 | L128: @LK-OPR-L3 | M128: @LK-OPS-L3 | N128: @LK-CSW-L3 | O128: @LK-DGW-L3 | P128: @LK-DYW-L3 | Q128: @LK-ISW-L3 | R128: @LK-MSW-L3 | S128: @LK-NVW-L3
A129: L3SD | B129: 300 Larder - Full Height Door | C129: L3SD | D129: Not Available | E129: Not Available | F129: Not Available | G129: Not Available | H129: Not Available | I129: Not Available | J129: Not Available | K129: Not Available | L129: Not Available | M129: Not Available | N129: Not Available | O129: Not Available | P129: Not Available | Q129: Not Available | R129: Not Available | S129: Not Available
A130: L3SDL | B130: 300 Larder - Full Height Door LH | C130: L3SDL | D130: Not Available | E130: Not Available | F130: Not Available | G130: Not Available | H130: Not Available | I130: Not Available | J130: Not Available | K130: Not Available | L130: Not Available | M130: Not Available | N130: Not Available | O130: Not Available | P130: Not Available | Q130: Not Available | R130: Not Available | S130: Not Available
A131: L3SDR | B131: 300 Larder - Full Height Door RH | C131: L3SDR | D131: Not Available | E131: Not Available | F131: Not Available | G131: Not Available | H131: Not Available | I131: Not Available | J131: Not Available | K131: Not Available | L131: Not Available | M131: Not Available | N131: Not Available | O131: Not Available | P131: Not Available | Q131: Not Available | R131: Not Available | S131: Not Available
A132: L4 | B132: 400 Larder Unit | C132: L4 | D132: Not Available | E132: Not Available | F132: Not Available | G132: Not Available | H132: Not Available | I132: Not Available | J132: Not Available | K132: Not Available | L132: Not Available | M132: Not Available | N132: @LK-CSW-L4 | O132: @LK-DGW-L4 | P132: @LK-DYW-L4 | Q132: @LK-ISW-L4 | R132: @LK-MSW-L4 | S132: @LK-NVW-L4
A133: L4SD | B133: 400 Larder - Full Height Door | C133: L4SD | D133: Not Available | E133: Not Available | F133: Not Available | G133: Not Available | H133: Not Available | I133: Not Available | J133: Not Available | K133: Not Available | L133: Not Available | M133: Not Available | N133: Not Available | O133: Not Available | P133: Not Available | Q133: Not Available | R133: Not Available | S133: Not Available
A134: L4SDL | B134: 400 Larder - Full Height Door LH | C134: L4SDL | D134: Not Available | E134: Not Available | F134: Not Available | G134: Not Available | H134: Not Available | I134: Not Available | J134: Not Available | K134: Not Available | L134: Not Available | M134: Not Available | N134: Not Available | O134: Not Available | P134: Not Available | Q134: Not Available | R134: Not Available | S134: Not Available
A135: L4SDR | B135: 400 Larder - Full Height Door RH | C135: L4SDR | D135: Not Available | E135: Not Available | F135: Not Available | G135: Not Available | H135: Not Available | I135: Not Available | J135: Not Available | K135: Not Available | L135: Not Available | M135: Not Available | N135: Not Available | O135: Not Available | P135: Not Available | Q135: Not Available | R135: Not Available | S135: Not Available
A136: L5 | B136: 500 Larder Unit | C136: L5 | D136: @LK-EMD-L5 | E136: @LK-EMY-L5 | F136: @LK-EMM-L5 | G136: @LK-EMS-L5 | H136: @LK-OPD-L5 | I136: @LK-OPY-L5 | J136: @LK-OPF-L5 | K136: @LK-OPM-L5 | L136: @LK-OPR-L5 | M136: @LK-OPS-L5 | N136: @LK-CSW-L5 | O136: @LK-DGW-L5 | P136: @LK-DYW-L5 | Q136: @LK-ISW-L5 | R136: @LK-MSW-L5 | S136: @LK-NVW-L5
A137: L5SD | B137: 500 Larder - Full Height Door | C137: L5SD | D137: Not Available | E137: Not Available | F137: Not Available | G137: Not Available | H137: Not Available | I137: Not Available | J137: Not Available | K137: Not Available | L137: Not Available | M137: Not Available | N137: Not Available | O137: Not Available | P137: Not Available | Q137: Not Available | R137: Not Available | S137: Not Available
A138: L5SDL | B138: 500 Larder - Full Height Door LH | C138: L5SDL | D138: Not Available | E138: Not Available | F138: Not Available | G138: Not Available | H138: Not Available | I138: Not Available | J138: Not Available | K138: Not Available | L138: Not Available | M138: Not Available | N138: Not Available | O138: Not Available | P138: Not Available | Q138: Not Available | R138: Not Available | S138: Not Available
A139: L5SDR | B139: 500 Larder - Full Height Door RH | C139: L5SDR | D139: Not Available | E139: Not Available | F139: Not Available | G139: Not Available | H139: Not Available | I139: Not Available | J139: Not Available | K139: Not Available | L139: Not Available | M139: Not Available | N139: Not Available | O139: Not Available | P139: Not Available | Q139: Not Available | R139: Not Available | S139: Not Available
A140: L6 | B140: 600 Larder Unit | C140: L6 | D140: @LK-EMD-L6 | E140: @LK-EMY-L6 | F140: @LK-EMM-L6 | G140: @LK-EMS-L6 | H140: @LK-OPD-L6 | I140: @LK-OPY-L6 | J140: @LK-OPF-L6 | K140: @LK-OPM-L6 | L140: @LK-OPR-L6 | M140: @LK-OPS-L6 | N140: @LK-CSW-L6 | O140: @LK-DGW-L6 | P140: @LK-DYW-L6 | Q140: @LK-ISW-L6 | R140: @LK-MSW-L6 | S140: @LK-NVW-L6
A141: L6SD | B141: 600 Larder - Full Height Door | C141: L6SD | D141: Not Available | E141: Not Available | F141: Not Available | G141: Not Available | H141: Not Available | I141: Not Available | J141: Not Available | K141: Not Available | L141: Not Available | M141: Not Available | N141: Not Available | O141: Not Available | P141: Not Available | Q141: Not Available | R141: Not Available | S141: Not Available
A142: L6SDL | B142: 600 Larder - Full Height Door LH | C142: L6SDL | D142: Not Available | E142: Not Available | F142: Not Available | G142: Not Available | H142: Not Available | I142: Not Available | J142: Not Available | K142: Not Available | L142: Not Available | M142: Not Available | N142: Not Available | O142: Not Available | P142: Not Available | Q142: Not Available | R142: Not Available | S142: Not Available
A143: L6SDR | B143: 600 Larder - Full Height Door RH | C143: L6SDR | D143: Not Available | E143: Not Available | F143: Not Available | G143: Not Available | H143: Not Available | I143: Not Available | J143: Not Available | K143: Not Available | L143: Not Available | M143: Not Available | N143: Not Available | O143: Not Available | P143: Not Available | Q143: Not Available | R143: Not Available | S143: Not Available
A144: LP3 | B144: 300 Larder & TAL LARDER Pull Out | C144: LP3 | D144: @LK-EMD-LP3 | E144: @LK-EMY-LP3 | F144: @LK-EMM-LP3 | G144: @LK-EMS-LP3 | H144: @LK-OPD-LP3 | I144: @LK-OPY-LP3 | J144: @LK-OPF-LP3 | K144: @LK-OPM-LP3 | L144: @LK-OPR-LP3 | M144: @LK-OPS-LP3 | N144: @LK-CSW-LP3 | O144: @LK-DGW-LP3 | P144: @LK-DYW-LP3 | Q144: @LK-ISW-LP3 | R144: @LK-MSW-LP3 | S144: @LK-NVW-LP3
A145: LP3SD | B145: 300 Larder & TAL LARDER Pull Out FH Door | C145: LP3SD | D145: Not Available | E145: Not Available | F145: Not Available | G145: Not Available | H145: Not Available | I145: Not Available | J145: Not Available | K145: Not Available | L145: Not Available | M145: Not Available | N145: Not Available | O145: Not Available | P145: Not Available | Q145: Not Available | R145: Not Available | S145: Not Available
A146: LPOD3 | B146: 300 Oak Drawer Larder Pull Out | C146: LPOD3 | D146: Not Available | E146: Not Available | F146: Not Available | G146: Not Available | H146: Not Available | I146: Not Available | J146: Not Available | K146: Not Available | L146: Not Available | M146: Not Available | N146: Not Available | O146: Not Available | P146: Not Available | Q146: Not Available | R146: Not Available | S146: Not Available
A147: LPOD3SD | B147: 300 Oak Drawer Larder Pull Out Full Height Door | C147: LPOD3SD | D147: Not Available | E147: Not Available | F147: Not Available | G147: Not Available | H147: Not Available | I147: Not Available | J147: Not Available | K147: Not Available | L147: Not Available | M147: Not Available | N147: Not Available | O147: Not Available | P147: Not Available | Q147: Not Available | R147: Not Available | S147: Not Available
A148: LPOD4 | B148: 400 Oak Drawer Larder Pull Out | C148: LPOD4 | D148: Not Available | E148: Not Available | F148: Not Available | G148: Not Available | H148: Not Available | I148: Not Available | J148: Not Available | K148: Not Available | L148: Not Available | M148: Not Available | N148: Not Available | O148: Not Available | P148: Not Available | Q148: Not Available | R148: Not Available | S148: Not Available
A149: LPOD4SD | B149: 400 Oak Drawer Larder Pull Out Full Height Door | C149: LPOD4SD | D149: Not Available | E149: Not Available | F149: Not Available | G149: Not Available | H149: Not Available | I149: Not Available | J149: Not Available | K149: Not Available | L149: Not Available | M149: Not Available | N149: Not Available | O149: Not Available | P149: Not Available | Q149: Not Available | R149: Not Available | S149: Not Available
A150: LPOD5 | B150: 500 Oak Drawer Larder Pull Out | C150: LPOD5 | D150: Not Available | E150: Not Available | F150: Not Available | G150: Not Available | H150: Not Available | I150: Not Available | J150: Not Available | K150: Not Available | L150: Not Available | M150: Not Available | N150: Not Available | O150: Not Available | P150: Not Available | Q150: Not Available | R150: Not Available | S150: Not Available
A151: LPOD5SD | B151: 500 Oak Drawer Larder Pull Out Full Height Door | C151: LPOD5SD | D151: Not Available | E151: Not Available | F151: Not Available | G151: Not Available | H151: Not Available | I151: Not Available | J151: Not Available | K151: Not Available | L151: Not Available | M151: Not Available | N151: Not Available | O151: Not Available | P151: Not Available | Q151: Not Available | R151: Not Available | S151: Not Available
A152: LPOD6 | B152: 600 Oak Drawer Larder Pull Out | C152: LPOD6 | D152: Not Available | E152: Not Available | F152: Not Available | G152: Not Available | H152: Not Available | I152: Not Available | J152: Not Available | K152: Not Available | L152: Not Available | M152: Not Available | N152: Not Available | O152: Not Available | P152: Not Available | Q152: Not Available | R152: Not Available | S152: Not Available
A153: LPOD6SD | B153: 600 Oak Drawer Larder Pull Out Full Height Door | C153: LPOD6SD | D153: Not Available | E153: Not Available | F153: Not Available | G153: Not Available | H153: Not Available | I153: Not Available | J153: Not Available | K153: Not Available | L153: Not Available | M153: Not Available | N153: Not Available | O153: Not Available | P153: Not Available | Q153: Not Available | R153: Not Available | S153: Not Available
A154: LT3 | B154: 300 Larder Tower | C154: LT3 | D154: @LK-EMD-LT3 | E154: @LK-EMY-LT3 | F154: @LK-EMM-LT3 | G154: @LK-EMS-LT3 | H154: @LK-OPD-LT3 | I154: @LK-OPY-LT3 | J154: @LK-OPF-LT3 | K154: @LK-OPM-LT3 | L154: @LK-OPR-LT3 | M154: @LK-OPS-LT3 | N154: @LK-CSW-LT3 | O154: @LK-DGW-LT3 | P154: @LK-DYW-LT3 | Q154: @LK-ISW-LT3 | R154: @LK-MSW-LT3 | S154: @LK-NVW-LT3
A155: LT3SD | B155: 300 Larder Tower Full Height Door | C155: LT3SD | D155: Not Available | E155: Not Available | F155: Not Available | G155: Not Available | H155: Not Available | I155: Not Available | J155: Not Available | K155: Not Available | L155: Not Available | M155: Not Available | N155: Not Available | O155: Not Available | P155: Not Available | Q155: Not Available | R155: Not Available | S155: Not Available
A156: LT3SDL | B156: 300 Larder Tower Full Height Door LH | C156: LT3SDL | D156: Not Available | E156: Not Available | F156: Not Available | G156: Not Available | H156: Not Available | I156: Not Available | J156: Not Available | K156: Not Available | L156: Not Available | M156: Not Available | N156: Not Available | O156: Not Available | P156: Not Available | Q156: Not Available | R156: Not Available | S156: Not Available
A157: LT3SDR | B157: 300 Larder Tower Full Height Door RH | C157: LT3SDR | D157: Not Available | E157: Not Available | F157: Not Available | G157: Not Available | H157: Not Available | I157: Not Available | J157: Not Available | K157: Not Available | L157: Not Available | M157: Not Available | N157: Not Available | O157: Not Available | P157: Not Available | Q157: Not Available | R157: Not Available | S157: Not Available
A158: LT5 | B158: 500 Larder Tower | C158: LT5 | D158: @LK-EMD-LT5 | E158: @LK-EMY-LT5 | F158: @LK-EMM-LT5 | G158: @LK-EMS-LT5 | H158: @LK-OPD-LT5 | I158: @LK-OPY-LT5 | J158: @LK-OPF-LT5 | K158: @LK-OPM-LT5 | L158: @LK-OPR-LT5 | M158: @LK-OPS-LT5 | N158: @LK-CSW-LT5 | O158: @LK-DGW-LT5 | P158: @LK-DYW-LT5 | Q158: @LK-ISW-LT5 | R158: @LK-MSW-LT5 | S158: @LK-NVW-LT5
A159: LT5SD | B159: 500 Larder Tower Full Height Door | C159: LT5SD | D159: Not Available | E159: Not Available | F159: Not Available | G159: Not Available | H159: Not Available | I159: Not Available | J159: Not Available | K159: Not Available | L159: Not Available | M159: Not Available | N159: Not Available | O159: Not Available | P159: Not Available | Q159: Not Available | R159: Not Available | S159: Not Available
A160: LT5SDL | B160: 500 Larder Tower Full Height Door LH | C160: LT5SDL | D160: Not Available | E160: Not Available | F160: Not Available | G160: Not Available | H160: Not Available | I160: Not Available | J160: Not Available | K160: Not Available | L160: Not Available | M160: Not Available | N160: Not Available | O160: Not Available | P160: Not Available | Q160: Not Available | R160: Not Available | S160: Not Available
A161: LT5SDR | B161: 500 Larder Tower Full Height Door RH | C161: LT5SDR | D161: Not Available | E161: Not Available | F161: Not Available | G161: Not Available | H161: Not Available | I161: Not Available | J161: Not Available | K161: Not Available | L161: Not Available | M161: Not Available | N161: Not Available | O161: Not Available | P161: Not Available | Q161: Not Available | R161: Not Available | S161: Not Available
A162: LT6 | B162: 600 Larder Tower | C162: LT6 | D162: @LK-EMD-LT6 | E162: @LK-EMY-LT6 | F162: @LK-EMM-LT6 | G162: @LK-EMS-LT6 | H162: @LK-OPD-LT6 | I162: @LK-OPY-LT6 | J162: @LK-OPF-LT6 | K162: @LK-OPM-LT6 | L162: @LK-OPR-LT6 | M162: @LK-OPS-LT6 | N162: @LK-CSW-LT6 | O162: @LK-DGW-LT6 | P162: @LK-DYW-LT6 | Q162: @LK-ISW-LT6 | R162: @LK-MSW-LT6 | S162: @LK-NVW-LT6
A163: LT6SD | B163: 600 Larder Tower Full Height Door | C163: LT6SD | D163: Not Available | E163: Not Available | F163: Not Available | G163: Not Available | H163: Not Available | I163: Not Available | J163: Not Available | K163: Not Available | L163: Not Available | M163: Not Available | N163: Not Available | O163: Not Available | P163: Not Available | Q163: Not Available | R163: Not Available | S163: Not Available
A164: LT6SDL | B164: 600 Larder Tower Full Height Door LH | C164: LT6SDL | D164: Not Available | E164: Not Available | F164: Not Available | G164: Not Available | H164: Not Available | I164: Not Available | J164: Not Available | K164: Not Available | L164: Not Available | M164: Not Available | N164: Not Available | O164: Not Available | P164: Not Available | Q164: Not Available | R164: Not Available | S164: Not Available
A165: LT6SDR | B165: 600 Larder Tower Full Height Door RH | C165: LT6SDR | D165: Not Available | E165: Not Available | F165: Not Available | G165: Not Available | H165: Not Available | I165: Not Available | J165: Not Available | K165: Not Available | L165: Not Available | M165: Not Available | N165: Not Available | O165: Not Available | P165: Not Available | Q165: Not Available | R165: Not Available | S165: Not Available
A166: LP6T | B166: 600 Larder & TAL GATE PRO Pull Out | C166: LP6T | D166: @LK-EMD-LP6T | E166: @LK-EMY-LP6T | F166: @LK-EMM-LP6T | G166: @LK-EMS-LP6T | H166: @LK-OPD-LP6T | I166: @LK-OPY-LP6T | J166: @LK-OPF-LP6T | K166: @LK-OPM-LP6T | L166: @LK-OPR-LP6T | M166: @LK-OPS-LP6T | N166: @LK-CSW-LP6T | O166: @LK-DGW-LP6T | P166: @LK-DYW-LP6T | Q166: @LK-ISW-LP6T | R166: @LK-MSW-LP6T | S166: @LK-NVW-LP6T
A167: LP6TSDL | B167: 600 Larder & TAL GATE PRO P/Out FH Door LH | C167: LP6TSDL | D167: Not Available | E167: Not Available | F167: Not Available | G167: Not Available | H167: Not Available | I167: Not Available | J167: Not Available | K167: Not Available | L167: Not Available | M167: Not Available | N167: Not Available | O167: Not Available | P167: Not Available | Q167: Not Available | R167: Not Available | S167: Not Available
A168: LP6TSDR | B168: 600 Larder & TAL GATE PRO P/Out FH Door RH | C168: LP6TSDR | D168: Not Available | E168: Not Available | F168: Not Available | G168: Not Available | H168: Not Available | I168: Not Available | J168: Not Available | K168: Not Available | L168: Not Available | M168: Not Available | N168: Not Available | O168: Not Available | P168: Not Available | Q168: Not Available | R168: Not Available | S168: Not Available
A169: LP6TSD | B169: 600 Larder & TAL GATE PRO P/Out FH Door | C169: LP6TSD | D169: Not Available | E169: Not Available | F169: Not Available | G169: Not Available | H169: Not Available | I169: Not Available | J169: Not Available | K169: Not Available | L169: Not Available | M169: Not Available | N169: Not Available | O169: Not Available | P169: Not Available | Q169: Not Available | R169: Not Available | S169: Not Available
A170: LP5TS | B170: 500 Larder & TAL GATE Pull Out | C170: LP5TS | D170: @LK-EMD-LP5TS | E170: @LK-EMY-LP5TS | F170: @LK-EMM-LP5TS | G170: @LK-EMS-LP5TS | H170: @LK-OPD-LP5TS | I170: @LK-OPY-LP5TS | J170: @LK-OPF-LP5TS | K170: @LK-OPM-LP5TS | L170: @LK-OPR-LP5TS | M170: @LK-OPS-LP5TS | N170: @LK-CSW-LP5TS | O170: @LK-DGW-LP5TS | P170: @LK-DYW-LP5TS | Q170: @LK-ISW-LP5TS | R170: @LK-MSW-LP5TS | S170: @LK-NVW-LP5TS
A171: LP5TSSD | B171: 500 Larder & TAL GATE P/Out FH Door | C171: LP5TSSD | D171: Not Available | E171: Not Available | F171: Not Available | G171: Not Available | H171: Not Available | I171: Not Available | J171: Not Available | K171: Not Available | L171: Not Available | M171: Not Available | N171: Not Available | O171: Not Available | P171: Not Available | Q171: Not Available | R171: Not Available | S171: Not Available
A172: LP5TSSDL | B172: 500 Larder & TAL GATE P/Out FH Door LH | C172: LP5TSSDL | D172: Not Available | E172: Not Available | F172: Not Available | G172: Not Available | H172: Not Available | I172: Not Available | J172: Not Available | K172: Not Available | L172: Not Available | M172: Not Available | N172: Not Available | O172: Not Available | P172: Not Available | Q172: Not Available | R172: Not Available | S172: Not Available
A173: LP5TSSDR | B173: 500 Larder & TAL GATE P/Out FH Door RH | C173: LP5TSSDR | D173: Not Available | E173: Not Available | F173: Not Available | G173: Not Available | H173: Not Available | I173: Not Available | J173: Not Available | K173: Not Available | L173: Not Available | M173: Not Available | N173: Not Available | O173: Not Available | P173: Not Available | Q173: Not Available | R173: Not Available | S173: Not Available
A174: LP6TS | B174: 600 Larder & TAL GATE Pull Out | C174: LP6TS | D174: @LK-EMD-LP6TS | E174: @LK-EMY-LP6TS | F174: @LK-EMM-LP6TS | G174: @LK-EMS-LP6TS | H174: @LK-OPD-LP6TS | I174: @LK-OPY-LP6TS | J174: @LK-OPF-LP6TS | K174: @LK-OPM-LP6TS | L174: @LK-OPR-LP6TS | M174: @LK-OPS-LP6TS | N174: @LK-CSW-LP6TS | O174: @LK-DGW-LP6TS | P174: @LK-DYW-LP6TS | Q174: @LK-ISW-LP6TS | R174: @LK-MSW-LP6TS | S174: @LK-NVW-LP6TS
A175: LP6TSSD | B175: 600 Larder & TAL GATE P/Out FH Door | C175: LP6TSSD | D175: Not Available | E175: Not Available | F175: Not Available | G175: Not Available | H175: Not Available | I175: Not Available | J175: Not Available | K175: Not Available | L175: Not Available | M175: Not Available | N175: Not Available | O175: Not Available | P175: Not Available | Q175: Not Available | R175: Not Available | S175: Not Available
A176: LP6TSSDL | B176: 600 Larder & TAL GATE P/Out FH Door LH | C176: LP6TSSDL | D176: Not Available | E176: Not Available | F176: Not Available | G176: Not Available | H176: Not Available | I176: Not Available | J176: Not Available | K176: Not Available | L176: Not Available | M176: Not Available | N176: Not Available | O176: Not Available | P176: Not Available | Q176: Not Available | R176: Not Available | S176: Not Available
A177: LP6TSSDR | B177: 600 Larder & TAL GATE P/Out FH Door RH | C177: LP6TSSDR | D177: Not Available | E177: Not Available | F177: Not Available | G177: Not Available | H177: Not Available | I177: Not Available | J177: Not Available | K177: Not Available | L177: Not Available | M177: Not Available | N177: Not Available | O177: Not Available | P177: Not Available | Q177: Not Available | R177: Not Available | S177: Not Available
A178: TLP3 | B178: 300 Tall Larder & TAL LARDER Pull Out | C178: TLP3 | D178: Not Available | E178: Not Available | F178: Not Available | G178: Not Available | H178: Not Available | I178: Not Available | J178: Not Available | K178: Not Available | L178: Not Available | M178: Not Available | N178: @LK-CSW-TLP3 | O178: @LK-DGW-TLP3 | P178: @LK-DYW-TLP3 | Q178: @LK-ISW-TLP3 | R178: @LK-MSW-TLP3 | S178: @LK-NVW-TLP3
A179: TLPOD3 | B179: 300 Tall Oak Drawer Larder Pull Out | C179: TLPOD3 | D179: Not Available | E179: Not Available | F179: Not Available | G179: Not Available | H179: Not Available | I179: Not Available | J179: Not Available | K179: Not Available | L179: Not Available | M179: Not Available | N179: Not Available | O179: Not Available | P179: Not Available | Q179: Not Available | R179: Not Available | S179: Not Available
A180: TLPOD4 | B180: 400 Tall Oak Drawer Larder Pull Out | C180: TLPOD4 | D180: Not Available | E180: Not Available | F180: Not Available | G180: Not Available | H180: Not Available | I180: Not Available | J180: Not Available | K180: Not Available | L180: Not Available | M180: Not Available | N180: Not Available | O180: Not Available | P180: Not Available | Q180: Not Available | R180: Not Available | S180: Not Available
A181: TLPOD5 | B181: 500 Tall Oak Drawer Larder Pull Out | C181: TLPOD5 | D181: Not Available | E181: Not Available | F181: Not Available | G181: Not Available | H181: Not Available | I181: Not Available | J181: Not Available | K181: Not Available | L181: Not Available | M181: Not Available | N181: Not Available | O181: Not Available | P181: Not Available | Q181: Not Available | R181: Not Available | S181: Not Available
A182: TLPOD6 | B182: 600 Tall Oak Drawer Larder Pull Out | C182: TLPOD6 | D182: Not Available | E182: Not Available | F182: Not Available | G182: Not Available | H182: Not Available | I182: Not Available | J182: Not Available | K182: Not Available | L182: Not Available | M182: Not Available | N182: Not Available | O182: Not Available | P182: Not Available | Q182: Not Available | R182: Not Available | S182: Not Available
A183: TLT3 | B183: 300 Tall Larder Tower | C183: TLT3 | D183: Not Available | E183: Not Available | F183: Not Available | G183: Not Available | H183: Not Available | I183: Not Available | J183: Not Available | K183: Not Available | L183: Not Available | M183: Not Available | N183: @LK-CSW-TLT3 | O183: @LK-DGW-TLT3 | P183: @LK-DYW-TLT3 | Q183: @LK-ISW-TLT3 | R183: @LK-MSW-TLT3 | S183: @LK-NVW-TLT3
A184: TLT5 | B184: 500 Tall Larder Tower | C184: TLT5 | D184: Not Available | E184: Not Available | F184: Not Available | G184: Not Available | H184: Not Available | I184: Not Available | J184: Not Available | K184: Not Available | L184: Not Available | M184: Not Available | N184: @LK-CSW-TLT5 | O184: @LK-DGW-TLT5 | P184: @LK-DYW-TLT5 | Q184: @LK-ISW-TLT5 | R184: @LK-MSW-TLT5 | S184: @LK-NVW-TLT5
A185: TLT6 | B185: 600 Tall Larder Tower | C185: TLT6 | D185: Not Available | E185: Not Available | F185: Not Available | G185: Not Available | H185: Not Available | I185: Not Available | J185: Not Available | K185: Not Available | L185: Not Available | M185: Not Available | N185: @LK-CSW-TLT6 | O185: @LK-DGW-TLT6 | P185: @LK-DYW-TLT6 | Q185: @LK-ISW-TLT6 | R185: @LK-MSW-TLT6 | S185: @LK-NVW-TLT6
A186: TLP6T | B186: 600 Tall Larder & TAL GATE PRO Pull Out | C186: TLP6T | D186: Not Available | E186: Not Available | F186: Not Available | G186: Not Available | H186: Not Available | I186: Not Available | J186: Not Available | K186: Not Available | L186: Not Available | M186: Not Available | N186: @LK-CSW-TLP6T | O186: @LK-DGW-TLP6T | P186: @LK-DYW-TLP6T | Q186: @LK-ISW-TLP6T | R186: @LK-MSW-TLP6T | S186: @LK-NVW-TLP6T
A187: TLP5TS | B187: 500 Tall Larder & TAL GATE Pull Out | C187: TLP5TS | D187: Not Available | E187: Not Available | F187: Not Available | G187: Not Available | H187: Not Available | I187: Not Available | J187: Not Available | K187: Not Available | L187: Not Available | M187: Not Available | N187: @LK-CSW-TLP5TS | O187: @LK-DGW-TLP5TS | P187: @LK-DYW-TLP5TS | Q187: @LK-ISW-TLP5TS | R187: @LK-MSW-TLP5TS | S187: @LK-NVW-TLP5TS
A188: TLP6TS | B188: 600 Tall Larder & TAL GATE Pull Out | C188: TLP6TS | D188: Not Available | E188: Not Available | F188: Not Available | G188: Not Available | H188: Not Available | I188: Not Available | J188: Not Available | K188: Not Available | L188: Not Available | M188: Not Available | N188: @LK-CSW-TLP6TS | O188: @LK-DGW-TLP6TS | P188: @LK-DYW-TLP6TS | Q188: @LK-ISW-TLP6TS | R188: @LK-MSW-TLP6TS | S188: @LK-NVW-TLP6TS
A189: TLT3L | B189: 300 Tall Larder Tower LH | C189: TLT3L | D189: Not Available | E189: Not Available | F189: Not Available | G189: Not Available | H189: Not Available | I189: Not Available | J189: Not Available | K189: Not Available | L189: Not Available | M189: Not Available | N189: Not Available | O189: Not Available | P189: Not Available | Q189: Not Available | R189: Not Available | S189: Not Available
A190: TLT5L | B190: 500 Tall Larder Tower LH | C190: TLT5L | D190: Not Available | E190: Not Available | F190: Not Available | G190: Not Available | H190: Not Available | I190: Not Available | J190: Not Available | K190: Not Available | L190: Not Available | M190: Not Available | N190: Not Available | O190: Not Available | P190: Not Available | Q190: Not Available | R190: Not Available | S190: Not Available
A191: TLT6L | B191: 600 Tall Larder Tower LH | C191: TLT6L | D191: Not Available | E191: Not Available | F191: Not Available | G191: Not Available | H191: Not Available | I191: Not Available | J191: Not Available | K191: Not Available | L191: Not Available | M191: Not Available | N191: Not Available | O191: Not Available | P191: Not Available | Q191: Not Available | R191: Not Available | S191: Not Available
A192: TLP6TL | B192: 600 Tall Larder & TAL GATE PRO Pull Out LHH | C192: TLP6TL | D192: Not Available | E192: Not Available | F192: Not Available | G192: Not Available | H192: Not Available | I192: Not Available | J192: Not Available | K192: Not Available | L192: Not Available | M192: Not Available | N192: Not Available | O192: Not Available | P192: Not Available | Q192: Not Available | R192: Not Available | S192: Not Available
A193: TLP5TSL | B193: 500 Tall Larder & TAL GATE Pull Out LHH | C193: TLP5TSL | D193: Not Available | E193: Not Available | F193: Not Available | G193: Not Available | H193: Not Available | I193: Not Available | J193: Not Available | K193: Not Available | L193: Not Available | M193: Not Available | N193: Not Available | O193: Not Available | P193: Not Available | Q193: Not Available | R193: Not Available | S193: Not Available
A194: TLP6TSL | B194: 600 Tall Larder & TAL GATE Pull Out LHH | C194: TLP6TSL | D194: Not Available | E194: Not Available | F194: Not Available | G194: Not Available | H194: Not Available | I194: Not Available | J194: Not Available | K194: Not Available | L194: Not Available | M194: Not Available | N194: Not Available | O194: Not Available | P194: Not Available | Q194: Not Available | R194: Not Available | S194: Not Available
A195: TLT3R | B195: 300 Tall Larder Tower RH | C195: TLT3R | D195: Not Available | E195: Not Available | F195: Not Available | G195: Not Available | H195: Not Available | I195: Not Available | J195: Not Available | K195: Not Available | L195: Not Available | M195: Not Available | N195: Not Available | O195: Not Available | P195: Not Available | Q195: Not Available | R195: Not Available | S195: Not Available
A196: TLT5R | B196: 500 Tall Larder Tower RH | C196: TLT5R | D196: Not Available | E196: Not Available | F196: Not Available | G196: Not Available | H196: Not Available | I196: Not Available | J196: Not Available | K196: Not Available | L196: Not Available | M196: Not Available | N196: Not Available | O196: Not Available | P196: Not Available | Q196: Not Available | R196: Not Available | S196: Not Available
A197: TLT6R | B197: 600 Tall Larder Tower RH | C197: TLT6R | D197: Not Available | E197: Not Available | F197: Not Available | G197: Not Available | H197: Not Available | I197: Not Available | J197: Not Available | K197: Not Available | L197: Not Available | M197: Not Available | N197: Not Available | O197: Not Available | P197: Not Available | Q197: Not Available | R197: Not Available | S197: Not Available
A198: TLP6TR | B198: 600 Tall Larder & TAL GATE PRO Pull Out RHH | C198: TLP6TR | D198: Not Available | E198: Not Available | F198: Not Available | G198: Not Available | H198: Not Available | I198: Not Available | J198: Not Available | K198: Not Available | L198: Not Available | M198: Not Available | N198: Not Available | O198: Not Available | P198: Not Available | Q198: Not Available | R198: Not Available | S198: Not Available
A199: TLP5TSR | B199: 500 Tall Larder & TAL GATE Pull Out RHH | C199: TLP5TSR | D199: Not Available | E199: Not Available | F199: Not Available | G199: Not Available | H199: Not Available | I199: Not Available | J199: Not Available | K199: Not Available | L199: Not Available | M199: Not Available | N199: Not Available | O199: Not Available | P199: Not Available | Q199: Not Available | R199: Not Available | S199: Not Available
A200: TLP6TSR | B200: 600 Tall Larder & TAL GATE Pull Out RHH | C200: TLP6TSR | D200: Not Available | E200: Not Available | F200: Not Available | G200: Not Available | H200: Not Available | I200: Not Available | J200: Not Available | K200: Not Available | L200: Not Available | M200: Not Available | N200: Not Available | O200: Not Available | P200: Not Available | Q200: Not Available | R200: Not Available | S200: Not Available
... 714 more rows

Sheet Prices Furniture (hidden)
A1: Bom Header | B1: Description | C1: Range | D1: Short Code | E1: NEW RRP
A2: @LK-EMD-AD45I | B2: 450 Integrated Dishwasher Fascia | C2: Euro Matt Dove Grey | D2: AD45I | E2: 107 | F2: 450 Integrated Dishwasher Fascia Euro Matt Dove Grey
A3: @LK-EMD-AD60FD | B3: 600 Fridge/Dishwasher Fascia | C3: Euro Matt Dove Grey | D3: AD60FD | E3: 131 | F3: 600 Fridge/Dishwasher Fascia Euro Matt Dove Grey
A4: @LK-EMD-AD60ICH | B4: 600 Integrated Extractor Door | C4: Euro Matt Dove Grey | D4: AD60ICH | E4: 95 | F4: 600 Integrated Extractor Door Euro Matt Dove Grey
A5: @LK-EMD-AD60S | B5: 600 Semi Int Dishwasher Fascia | C5: Euro Matt Dove Grey | D5: AD60S | E5: 129 | F5: 600 Semi Int Dishwasher Fascia Euro Matt Dove Grey
A6: @LK-EMD-AH-CO | B6: 600 Compact / Microwave Housing | C6: Euro Matt Dove Grey | D6: AH-CO | E6: 823 | F6: 600 Compact / Microwave Housing Euro Matt Dove Grey
A7: @LK-EMD-AH-DMW | B7: 600 Double Oven & MW unit | C7: Euro Matt Dove Grey | D7: AH-DMW | E7: 927 | F7: 600 Double Oven & MW unit Euro Matt Dove Grey
A8: @LK-EMD-AH-DO | B8: 600 Dble Oven Housing | C8: Euro Matt Dove Grey | D8: AH-DO | E8: 731 | F8: 600 Dble Oven Housing Euro Matt Dove Grey
A9: @LK-EMD-AH-DO2D | B9: 600 Dble Oven & 2 Drws | C9: Euro Matt Dove Grey | D9: AH-DO2D | E9: 1058 | F9: 600 Dble Oven & 2 Drws Euro Matt Dove Grey
A10: @LK-EMD-AH-F55 | B10: 600 50/50 FF Housing Unit | C10: Euro Matt Dove Grey | D10: AH-F55 | E10: 735 | F10: 600 50/50 FF Housing Unit Euro Matt Dove Grey
A11: @LK-EMD-AH-F73 | B11: 600 70/30 FF Housing Unit | C11: Euro Matt Dove Grey | D11: AH-F73 | E11: 711 | F11: 600 70/30 FF Housing Unit Euro Matt Dove Grey
A12: @LK-EMD-AH-SM2D | B12: 600 Single Oven & MW 2 Drw unit | C12: Euro Matt Dove Grey | D12: AH-SM2D | E12: 1074 | F12: 600 Single Oven & MW 2 Drw unit Euro Matt Dove Grey
A13: @LK-EMD-AH-SMW | B13: 600 Sgle Oven & MW 2 Door unit | C13: Euro Matt Dove Grey | D13: AH-SMW | E13: 786 | F13: 600 Sgle Oven & MW 2 Door unit Euro Matt Dove Grey
A14: @LK-EMD-AH-SO | B14: 600 Single Oven Housing | C14: Euro Matt Dove Grey | D14: AH-SO | E14: 750 | F14: 600 Single Oven Housing Euro Matt Dove Grey
A15: @LK-EMD-AH-SO1D | B15: 600 Single Oven + 1 Drw Unit | C15: Euro Matt Dove Grey | D15: AH-SO1D | E15: 896 | F15: 600 Single Oven + 1 Drw Unit Euro Matt Dove Grey
A16: @LK-EMD-AH-SO2D | B16: 600 Single Oven + 2 Drws Unit | C16: Euro Matt Dove Grey | D16: AH-SO2D | E16: 1112 | F16: 600 Single Oven + 2 Drws Unit Euro Matt Dove Grey
A17: @LK-EMD-AH-SO3D | B17: 600 Single Oven + 3 Drws Unit | C17: Euro Matt Dove Grey | D17: AH-SO3D | E17: 1261 | F17: 600 Single Oven + 3 Drws Unit Euro Matt Dove Grey
A18: @LK-EMD-AH-SOT | B18: 600 Twin Single Oven Housing | C18: Euro Matt Dove Grey | D18: AH-SOT | E18: 876 | F18: 600 Twin Single Oven Housing Euro Matt Dove Grey
A19: @LK-EMD-BC145 | B19: 1000 HL Cnr Base (450 Door) | C19: Euro Matt Dove Grey | D19: BC145 | E19: 397 | F19: 1000 HL Cnr Base (450 Door) Euro Matt Dove Grey
A20: @LK-EMD-BC15 | B20: 1000 HL Cnr Base (500 Door) | C20: Euro Matt Dove Grey | D20: BC15 | E20: 405 | F20: 1000 HL Cnr Base (500 Door) Euro Matt Dove Grey
A21: @LK-EMD-BC16 | B21: 1000 HL Cnr Base (600 Door) | C21: Euro Matt Dove Grey | D21: BC16 | E21: 421 | F21: 1000 HL Cnr Base (600 Door) Euro Matt Dove Grey
A22: @LK-EMD-BC83 | B22: 800 HL Cnr Base (300 Door) | C22: Euro Matt Dove Grey | D22: BC83 | E22: 374 | F22: 800 HL Cnr Base (300 Door) Euro Matt Dove Grey
A23: @LK-EMD-BC84 | B23: 800 HL Cnr Base Unit (400 Door) | C23: Euro Matt Dove Grey | D23: BC84 | E23: 380 | F23: 800 HL Cnr Base Unit (400 Door) Euro Matt Dove Grey
A24: @LK-EMD-BC845 | B24: 800 HL Cnr Base (450 Door) | C24: Euro Matt Dove Grey | D24: BC845 | E24: 392 | F24: 800 HL Cnr Base (450 Door) Euro Matt Dove Grey
A25: @LK-EMD-BC945 | B25: 900 HL Cnr Base (450 Door) | C25: Euro Matt Dove Grey | D25: BC945 | E25: 392 | F25: 900 HL Cnr Base (450 Door) Euro Matt Dove Grey
A26: @LK-EMD-BCL15L | B26: 1000 Cnr Base CORNERSTONE LH - 500 door | C26: Euro Matt Dove Grey | D26: BCL15L | E26: 1270 | F26: 1000 Cnr Base CORNERSTONE LH - 500 door Euro Matt Dove Grey
A27: @LK-EMD-BCL15R | B27: 1000 Cnr Base CORNERSTONE RH - 500 door | C27: Euro Matt Dove Grey | D27: BCL15R | E27: 1270 | F27: 1000 Cnr Base CORNERSTONE RH - 500 door Euro Matt Dove Grey
A28: @LK-EMD-BCL16L | B28: 1000 Cnr Base CORNERSTONE LH - 600 door | C28: Euro Matt Dove Grey | D28: BCL16L | E28: 1349 | F28: 1000 Cnr Base CORNERSTONE LH - 600 door Euro Matt Dove Grey
A29: @LK-EMD-BCL16R | B29: 1000 Cnr Base CORNERSTONE RH - 600 door | C29: Euro Matt Dove Grey | D29: BCL16R | E29: 1349 | F29: 1000 Cnr Base CORNERSTONE RH - 600 door Euro Matt Dove Grey
A30: @LK-EMD-BCL9 | B30: 950 HL Cnr L Base | C30: Euro Matt Dove Grey | D30: BCL9 | E30: 618 | F30: 950 HL Cnr L Base Euro Matt Dove Grey
A31: @LK-EMD-BCO145 | B31: 1000 Corner Base VS COR FLEX - 450 door | C31: Euro Matt Dove Grey | D31: BCO145 | E31: 1407 | F31: 1000 Corner Base VS COR FLEX - 450 door Euro Matt Dove Grey
A32: @LK-EMD-BCO15 | B32: 1000 Corner Base VS COR FLEX - 500 door | C32: Euro Matt Dove Grey | D32: BCO15 | E32: 1415 | F32: 1000 Corner Base VS COR FLEX - 500 door Euro Matt Dove Grey
A33: @LK-EMD-BCO16 | B33: 1000 Corner Base VS COR FLEX - 600 door | C33: Euro Matt Dove Grey | D33: BCO16 | E33: 1431 | F33: 1000 Corner Base VS COR FLEX - 600 door Euro Matt Dove Grey
A34: @LK-EMD-BCO945 | B34: 900 Corner Base VS COR FLEX - 450 door | C34: Euro Matt Dove Grey | D34: BCO945 | E34: 1402 | F34: 900 Corner Base VS COR FLEX - 450 door Euro Matt Dove Grey
A35: @LK-EMD-BD13 | B35: 1000 3 Drw Base Unit | C35: Euro Matt Dove Grey | D35: BD13 | E35: 845 | F35: 1000 3 Drw Base Unit Euro Matt Dove Grey
A36: @LK-EMD-BD53 | B36: 500 3 Drw Base Unit | C36: Euro Matt Dove Grey | D36: BD53 | E36: 714 | F36: 500 3 Drw Base Unit Euro Matt Dove Grey
A37: @LK-EMD-BD54 | B37: 500 4 Drw Base Unit | C37: Euro Matt Dove Grey | D37: BD54 | E37: 846 | F37: 500 4 Drw Base Unit Euro Matt Dove Grey
A38: @LK-EMD-BD62 | B38: 600 2 Pan Drw Unit | C38: Euro Matt Dove Grey | D38: BD62 | E38: 683 | F38: 600 2 Pan Drw Unit Euro Matt Dove Grey
A39: @LK-EMD-BD62I | B39: 600 2 Pan Drw Unit + 1 Internal | C39: Euro Matt Dove Grey | D39: BD62I | E39: 859 | F39: 600 2 Pan Drw Unit + 1 Internal Euro Matt Dove Grey
A40: @LK-EMD-BD63 | B40: 600 3 Drw Base Unit | C40: Euro Matt Dove Grey | D40: BD63 | E40: 806 | F40: 600 3 Drw Base Unit Euro Matt Dove Grey
A41: @LK-EMD-BD635L | B41: 600 Low Single Drawer unit 360 high | C41: Euro Matt Dove Grey | D41: BD635L | E41: 384 | F41: 600 Low Single Drawer unit 360 high Euro Matt Dove Grey
A42: @LK-EMD-BD83 | B42: 800 3 Drw Base Unit | C42: Euro Matt Dove Grey | D42: BD83 | E42: 813 | F42: 800 3 Drw Base Unit Euro Matt Dove Grey
A43: @LK-EMD-BD92 | B43: 900 2 Pan Drw Unit | C43: Euro Matt Dove Grey | D43: BD92 | E43: 700 | F43: 900 2 Pan Drw Unit Euro Matt Dove Grey
A44: @LK-EMD-BD92I | B44: 900 2 Pan Drw Unit + 1 Internal | C44: Euro Matt Dove Grey | D44: BD92I | E44: 901 | F44: 900 2 Pan Drw Unit + 1 Internal Euro Matt Dove Grey
A45: @LK-EMD-BD93 | B45: 900 3 Drw Base Unit | C45: Euro Matt Dove Grey | D45: BD93 | E45: 828 | F45: 900 3 Drw Base Unit Euro Matt Dove Grey
A46: @LK-EMD-BH100 | B46: 1000 HL Base Unit | C46: Euro Matt Dove Grey | D46: BH100 | E46: 439 | F46: 1000 HL Base Unit Euro Matt Dove Grey
A47: @LK-EMD-BH10S | B47: 1000 HL Sink Base Unit (Inc Liner) | C47: Euro Matt Dove Grey | D47: BH10S | E47: 485 | F47: 1000 HL Sink Base Unit (Inc Liner) Euro Matt Dove Grey
A48: @LK-EMD-BH15 | B48: 150 HL Base Unit | C48: Euro Matt Dove Grey | D48: BH15 | E48: 228 | F48: 150 HL Base Unit Euro Matt Dove Grey
A49: @LK-EMD-BH30 | B49: 300 HL Base Unit | C49: Euro Matt Dove Grey | D49: BH30 | E49: 239 | F49: 300 HL Base Unit Euro Matt Dove Grey
A50: @LK-EMD-BH35 | B50: 350 HL Base Unit | C50: Euro Matt Dove Grey | D50: BH35 | E50: 245 | F50: 350 HL Base Unit Euro Matt Dove Grey
A51: @LK-EMD-BH3B | B51: 300 HL Base Unit & Bin | C51: Euro Matt Dove Grey | D51: BH3B | E51: 607 | F51: 300 HL Base Unit & Bin Euro Matt Dove Grey
A52: @LK-EMD-BH40 | B52: 400 HL Base Unit | C52: Euro Matt Dove Grey | D52: BH40 | E52: 249 | F52: 400 HL Base Unit Euro Matt Dove Grey
A53: @LK-EMD-BH45 | B53: 450 HL Base Unit | C53: Euro Matt Dove Grey | D53: BH45 | E53: 272 | F53: 450 HL Base Unit Euro Matt Dove Grey
A54: @LK-EMD-BH45B | B54: 450 HL Base Unit & Bin | C54: Euro Matt Dove Grey | D54: BH45B | E54: 710 | F54: 450 HL Base Unit & Bin Euro Matt Dove Grey
A55: @LK-EMD-BH4B | B55: 400 HL Base Unit & Bin | C55: Euro Matt Dove Grey | D55: BH4B | E55: 682 | F55: 400 HL Base Unit & Bin Euro Matt Dove Grey
A56: @LK-EMD-BH50 | B56: 500 HL Base Unit | C56: Euro Matt Dove Grey | D56: BH50 | E56: 283 | F56: 500 HL Base Unit Euro Matt Dove Grey
A57: @LK-EMD-BH50S | B57: 500 HL Sink Base Unit (Inc Liner) | C57: Euro Matt Dove Grey | D57: BH50S | E57: 313 | F57: 500 HL Sink Base Unit (Inc Liner) Euro Matt Dove Grey
A58: @LK-EMD-BH5B | B58: 500 HL Base Unit & Bin | C58: Euro Matt Dove Grey | D58: BH5B | E58: 727 | F58: 500 HL Base Unit & Bin Euro Matt Dove Grey
A59: @LK-EMD-BH60 | B59: 600 HL Base Unit | C59: Euro Matt Dove Grey | D59: BH60 | E59: 319 | F59: 600 HL Base Unit Euro Matt Dove Grey
A60: @LK-EMD-BH60S | B60: 600 HL Sink Base Unit (Inc Liner) | C60: Euro Matt Dove Grey | D60: BH60S | E60: 365 | F60: 600 HL Sink Base Unit (Inc Liner) Euro Matt Dove Grey
A61: @LK-EMD-BH6B2 | B61: 600 HL Base Unit & Bin (2 Bins) | C61: Euro Matt Dove Grey | D61: BH6B2 | E61: 800 | F61: 600 HL Base Unit & Bin (2 Bins) Euro Matt Dove Grey
A62: @LK-EMD-BH6B4 | B62: 600 HL Base Unit & Bin (4 Bins) | C62: Euro Matt Dove Grey | D62: BH6B4 | E62: 852 | F62: 600 HL Base Unit & Bin (4 Bins) Euro Matt Dove Grey
A63: @LK-EMD-BH70 | B63: 700 HL Base Unit | C63: Euro Matt Dove Grey | D63: BH70 | E63: 388 | F63: 700 HL Base Unit Euro Matt Dove Grey
A64: @LK-EMD-BH80 | B64: 800 HL Base Unit | C64: Euro Matt Dove Grey | D64: BH80 | E64: 394 | F64: 800 HL Base Unit Euro Matt Dove Grey
A65: @LK-EMD-BH80S | B65: 800 HL Sink Base Unit (Inc Liner) | C65: Euro Matt Dove Grey | D65: BH80S | E65: 440 | F65: 800 HL Sink Base Unit (Inc Liner) Euro Matt Dove Grey
A66: @LK-EMD-BH90 | B66: 900 HL Base Unit | C66: Euro Matt Dove Grey | D66: BH90 | E66: 418 | F66: 900 HL Base Unit Euro Matt Dove Grey
A67: @LK-EMD-BH90S | B67: 900 HL Sink Base Unit (Inc Liner) | C67: Euro Matt Dove Grey | D67: BH90S | E67: 464 | F67: 900 HL Sink Base Unit (Inc Liner) Euro Matt Dove Grey
A68: @LK-EMD-BHD3 | B68: 300 Highline Drw Unit 1 Pan 2 Internal | C68: Euro Matt Dove Grey | D68: BHD3 | E68: 628 | F68: 300 Highline Drw Unit 1 Pan 2 Internal Euro Matt Dove Grey
A69: @LK-EMD-BHD4 | B69: 400 Highline Drw Unit 1 Pan 2 Internal | C69: Euro Matt Dove Grey | D69: BHD4 | E69: 677 | F69: 400 Highline Drw Unit 1 Pan 2 Internal Euro Matt Dove Grey
A70: @LK-EMD-BHD5 | B70: 500 Highline Drw Unit 1 Pan 2 Internal | C70: Euro Matt Dove Grey | D70: BHD5 | E70: 740 | F70: 500 Highline Drw Unit 1 Pan 2 Internal Euro Matt Dove Grey
A71: @LK-EMD-BHD6 | B71: 600 Highline Drw Unit 1 Pan 2 Internal | C71: Euro Matt Dove Grey | D71: BHD6 | E71: 796 | F71: 600 Highline Drw Unit 1 Pan 2 Internal Euro Matt Dove Grey
A72: @LK-EMD-BLD9 | B72: 900 Boiler Door | C72: Euro Matt Dove Grey | D72: BLD9 | E72: 133 | F72: 900 Boiler Door Euro Matt Dove Grey
A73: @LK-EMD-BOH6 | B73: 600 BU Oven Housing | C73: Euro Matt Dove Grey | D73: BOH6 | E73: 199 | F73: 600 BU Oven Housing Euro Matt Dove Grey
A74: @LK-EMD-BOHD6 | B74: 600 BU Oven Housing with drawer -18mm | C74: Euro Matt Dove Grey | D74: BOHD6 | E74: 312 | F74: 600 BU Oven Housing with drawer -18mm Euro Matt Dove Grey
A75: @LK-EMD-BP15TY | B75: 150 HL Pull Out Base VS SUB | C75: Euro Matt Dove Grey | D75: BP15TY | E75: 408 | F75: 150 HL Pull Out Base VS SUB Euro Matt Dove Grey
A76: @LK-EMD-BP3TY | B76: 300 HL Pull Out Base VS SUB | C76: Euro Matt Dove Grey | D76: BP3TY | E76: 634 | F76: 300 HL Pull Out Base VS SUB Euro Matt Dove Grey
A77: @LK-EMD-BSU6450 | B77: 600 Belfast Sink Unit (450mm High) | C77: Euro Matt Dove Grey | D77: BSU6450 | E77: 283 | F77: 600 Belfast Sink Unit (450mm High) Euro Matt Dove Grey
A78: @LK-EMD-BSU6495 | B78: 600 Belfast Sink Unit (495mm High) | C78: Euro Matt Dove Grey | D78: BSU6495 | E78: 285 | F78: 600 Belfast Sink Unit (495mm High) Euro Matt Dove Grey
A79: @LK-EMD-CH-MW | B79: Corner Compact Appliance Unit | C79: Euro Matt Dove Grey | D79: CH-MW | E79: 700 | F79: Corner Compact Appliance Unit Euro Matt Dove Grey
A80: @LK-EMD-CH-SO | B80: Corner Single Oven Housing Unit | C80: Euro Matt Dove Grey | D80: CH-SO | E80: 654 | F80: Corner Single Oven Housing Unit Euro Matt Dove Grey
A81: @LK-EMD-CH-ST | B81: Corner Storage Unit | C81: Euro Matt Dove Grey | D81: CH-ST | E81: 880 | F81: Corner Storage Unit Euro Matt Dove Grey
A82: @LK-EMD-L3 | B82: 300 Larder Unit | C82: Euro Matt Dove Grey | D82: L3 | E82: 663 | F82: 300 Larder Unit Euro Matt Dove Grey
A83: @LK-EMD-L5 | B83: 500 Larder Unit | C83: Euro Matt Dove Grey | D83: L5 | E83: 723 | F83: 500 Larder Unit Euro Matt Dove Grey
A84: @LK-EMD-L6 | B84: 600 Larder Unit | C84: Euro Matt Dove Grey | D84: L6 | E84: 794 | F84: 600 Larder Unit Euro Matt Dove Grey
A85: @LK-EMD-LAC | B85: Angled Corner Larder | C85: Euro Matt Dove Grey | D85: LAC | E85: 2084 | F85: Angled Corner Larder Euro Matt Dove Grey
A86: @LK-EMD-LBC15 | B86: 1000mm Blind Corner larder 500 door | C86: Euro Matt Dove Grey | D86: LBC15 | E86: 944 | F86: 1000mm Blind Corner larder 500 door Euro Matt Dove Grey
A87: @LK-EMD-LBC16 | B87: 1000mm Blind Corner larder 600 door | C87: Euro Matt Dove Grey | D87: LBC16 | E87: 970 | F87: 1000mm Blind Corner larder 600 door Euro Matt Dove Grey
A88: @LK-EMD-LBCLM15L | B88: 1000 Cnr Larder CORNERSTONE LH 500 Dr | C88: Euro Matt Dove Grey | D88: LBCLM15L | E88: 2782 | F88: 1000 Cnr Larder CORNERSTONE LH 500 Dr Euro Matt Dove Grey
A89: @LK-EMD-LBCLM15R | B89: 1000 Cnr Larder CORNERSTONE RH 500 Dr | C89: Euro Matt Dove Grey | D89: LBCLM15R | E89: 2782 | F89: 1000 Cnr Larder CORNERSTONE RH 500 Dr Euro Matt Dove Grey
A90: @LK-EMD-LBCLM16L | B90: 1000 Cnr Larder CORNERSTONE LH 600 Dr | C90: Euro Matt Dove Grey | D90: LBCLM16L | E90: 2934 | F90: 1000 Cnr Larder CORNERSTONE LH 600 Dr Euro Matt Dove Grey
A91: @LK-EMD-LBCLM16R | B91: 1000 Cnr Larder CORNERSTONE RH 600 Dr | C91: Euro Matt Dove Grey | D91: LBCLM16R | E91: 2934 | F91: 1000 Cnr Larder CORNERSTONE RH 600 Dr Euro Matt Dove Grey
A92: @LK-EMD-LL10CB | B92: 1000 Combi | C92: Euro Matt Dove Grey | D92: LL10CB | E92: 1245 | F92: 1000 Combi Euro Matt Dove Grey
A93: @LK-EMD-LL10CU | B93: 1000 Cleaning & Utility | C93: Euro Matt Dove Grey | D93: LL10CU | E93: 1235 | F93: 1000 Cleaning & Utility Euro Matt Dove Grey
A94: @LK-EMD-LL10CUS | B94: 1000 Cleaning & Utility Ex Shelves | C94: Euro Matt Dove Grey | D94: LL10CUS | E94: 1334 | F94: 1000 Cleaning & Utility Ex Shelves Euro Matt Dove Grey
A95: @LK-EMD-LL6CU | B95: 600 Cleaning & Utility | C95: Euro Matt Dove Grey | D95: LL6CU | E95: 786 | F95: 600 Cleaning & Utility Euro Matt Dove Grey
A96: @LK-EMD-LL6EA | B96: 600 Easy Access Larder | C96: Euro Matt Dove Grey | D96: LL6EA | E96: 836 | F96: 600 Easy Access Larder Euro Matt Dove Grey
A97: @LK-EMD-LL8LS | B97: 800 Laundry Stacker Larder | C97: Euro Matt Dove Grey | D97: LL8LS | E97: 1364 | F97: 800 Laundry Stacker Larder Euro Matt Dove Grey
A98: @LK-EMD-LP3 | B98: 300 Larder & TAL LARDER Pull Out | C98: Euro Matt Dove Grey | D98: LP3 | E98: 1445 | F98: 300 Larder & TAL LARDER Pull Out Euro Matt Dove Grey
A99: @LK-EMD-LP5T | B99: 500 Larder & TAL GATE PRO Pull Out | C99: Euro Matt Dove Grey | D99: LP5T | E99: 1915 | F99: 500 Larder & TAL GATE PRO Pull Out Euro Matt Dove Grey
A100: @LK-EMD-LP5TS | B100: 500 Larder & TAL GATE Pull Out | C100: Euro Matt Dove Grey | D100: LP5TS | E100: 1657 | F100: 500 Larder & TAL GATE Pull Out Euro Matt Dove Grey
A101: @LK-EMD-LP6T | B101: 600 Larder & TAL GATE PRO Pull Out | C101: Euro Matt Dove Grey | D101: LP6T | E101: 1980 | F101: 600 Larder & TAL GATE PRO Pull Out Euro Matt Dove Grey
A102: @LK-EMD-LP6TS | B102: 600 Larder & TAL GATE Pull Out | C102: Euro Matt Dove Grey | D102: LP6TS | E102: 1781 | F102: 600 Larder & TAL GATE Pull Out Euro Matt Dove Grey
A103: @LK-EMD-LPN12D2DW | B103: 1000mm Pantry 2 Doors 2 Drawers | C103: Euro Matt Dove Grey | D103: LPN12D2DW | E103: 1392 | F103: 1000mm Pantry 2 Doors 2 Drawers Euro Matt Dove Grey
A104: @LK-EMD-LPN12D3DW | B104: 1000mm Pantry 2 Doors 3 Drawers | C104: Euro Matt Dove Grey | D104: LPN12D3DW | E104: 1523 | F104: 1000mm Pantry 2 Doors 3 Drawers Euro Matt Dove Grey
A105: @LK-EMD-LPN14D | B105: 1000mm Pantry 4 Doors | C105: Euro Matt Dove Grey | D105: LPN14D | E105: 1124 | F105: 1000mm Pantry 4 Doors Euro Matt Dove Grey
A106: @LK-EMD-LT3 | B106: 300 Larder Tower | C106: Euro Matt Dove Grey | D106: LT3 | E106: 1764 | F106: 300 Larder Tower Euro Matt Dove Grey
A107: @LK-EMD-LT5 | B107: 500 Larder Tower | C107: Euro Matt Dove Grey | D107: LT5 | E107: 1892 | F107: 500 Larder Tower Euro Matt Dove Grey
A108: @LK-EMD-LT6 | B108: 600 Larder Tower | C108: Euro Matt Dove Grey | D108: LT6 | E108: 2029 | F108: 600 Larder Tower Euro Matt Dove Grey
A109: @LK-EMD-TCH-MW | B109: Tall Corner Compact Appliance Unit | C109: Euro Matt Dove Grey | D109: TCH-MW | E109: 759 | F109: Tall Corner Compact Appliance Unit Euro Matt Dove Grey
A110: @LK-EMD-TCH-SO | B110: Tall Corner Single Oven Housing Unit | C110: Euro Matt Dove Grey | D110: TCH-SO | E110: 846 | F110: Tall Corner Single Oven Housing Unit Euro Matt Dove Grey
A111: @LK-EMD-TCH-ST | B111: Tall Corner Storage Unit | C111: Euro Matt Dove Grey | D111: TCH-ST | E111: 918 | F111: Tall Corner Storage Unit Euro Matt Dove Grey
A112: @LK-EMD-W100 | B112: 1000 Wall Unit | C112: Euro Matt Dove Grey | D112: W100 | E112: 434 | F112: 1000 Wall Unit Euro Matt Dove Grey
A113: @LK-EMD-W30 | B113: 300 Wall Unit | C113: Euro Matt Dove Grey | D113: W30 | E113: 221 | F113: 300 Wall Unit Euro Matt Dove Grey
A114: @LK-EMD-W35 | B114: 350 Wall Cabinet | C114: Euro Matt Dove Grey | D114: W35 | E114: 227 | F114: 350 Wall Cabinet Euro Matt Dove Grey
A115: @LK-EMD-W40 | B115: 400 Wall Unit | C115: Euro Matt Dove Grey | D115: W40 | E115: 235 | F115: 400 Wall Unit Euro Matt Dove Grey
A116: @LK-EMD-W45 | B116: 450 Wall Unit | C116: Euro Matt Dove Grey | D116: W45 | E116: 252 | F116: 450 Wall Unit Euro Matt Dove Grey
A117: @LK-EMD-W50 | B117: 500 Wall Unit | C117: Euro Matt Dove Grey | D117: W50 | E117: 266 | F117: 500 Wall Unit Euro Matt Dove Grey
A118: @LK-EMD-W60 | B118: 600 Wall Unit | C118: Euro Matt Dove Grey | D118: W60 | E118: 290 | F118: 600 Wall Unit Euro Matt Dove Grey
A119: @LK-EMD-W70 | B119: 700 Wall Cabinet | C119: Euro Matt Dove Grey | D119: W70 | E119: 383 | F119: 700 Wall Cabinet Euro Matt Dove Grey
A120: @LK-EMD-W80 | B120: 800 Wall Unit | C120: Euro Matt Dove Grey | D120: W80 | E120: 389 | F120: 800 Wall Unit Euro Matt Dove Grey
A121: @LK-EMD-W90 | B121: 900 Wall Unit | C121: Euro Matt Dove Grey | D121: W90 | E121: 409 | F121: 900 Wall Unit Euro Matt Dove Grey
A122: @LK-EMD-WB12 | B122: 1000 Bridging Unit | C122: Euro Matt Dove Grey | D122: WB12 | E122: 338 | F122: 1000 Bridging Unit Euro Matt Dove Grey
A123: @LK-EMD-WB62 | B123: 600 Bridging Unit | C123: Euro Matt Dove Grey | D123: WB62 | E123: 237 | F123: 600 Bridging Unit Euro Matt Dove Grey
A124: @LK-EMD-WB63 | B124: 600 355mm Bridging Unit | C124: Euro Matt Dove Grey | D124: WB63 | E124: 295 | F124: 600 355mm Bridging Unit Euro Matt Dove Grey
A125: @LK-EMD-WB82 | B125: 800 Bridging Unit | C125: Euro Matt Dove Grey | D125: WB82 | E125: 295 | F125: 800 Bridging Unit Euro Matt Dove Grey
A126: @LK-EMD-WB92 | B126: 900 Bridging Unit | C126: Euro Matt Dove Grey | D126: WB92 | E126: 312 | F126: 900 Bridging Unit Euro Matt Dove Grey
A127: @LK-EMD-WB93 | B127: 900 355mm Bridging Unit | C127: Euro Matt Dove Grey | D127: WB93 | E127: 344 | F127: 900 355mm Bridging Unit Euro Matt Dove Grey
A128: @LK-EMD-WBHU | B128: 600 Boiler Housing | C128: Euro Matt Dove Grey | D128: WBHU | E128: 282 | F128: 600 Boiler Housing Euro Matt Dove Grey
A129: @LK-EMD-WBI60 | B129: 600 Bifold Unit | C129: Euro Matt Dove Grey | D129: WBI60 | E129: 663 | F129: 600 Bifold Unit Euro Matt Dove Grey
A130: @LK-EMD-WBI90 | B130: 900 Bifold Unit | C130: Euro Matt Dove Grey | D130: WBI90 | E130: 695 | F130: 900 Bifold Unit Euro Matt Dove Grey
A131: @LK-EMD-WC6 | B131: 600 Cnr Wall Unit | C131: Euro Matt Dove Grey | D131: WC6 | E131: 309 | F131: 600 Cnr Wall Unit Euro Matt Dove Grey
A132: @LK-EMD-WC9 | B132: 900 Cnr Wall Unit | C132: Euro Matt Dove Grey | D132: WC9 | E132: 371 | F132: 900 Cnr Wall Unit Euro Matt Dove Grey
A133: @LK-EMD-WCL65 | B133: 650 L Cnr Wall Unit | C133: Euro Matt Dove Grey | D133: WCL65 | E133: 553 | F133: 650 L Cnr Wall Unit Euro Matt Dove Grey
A134: @LK-EMD-WGR5 | B134: Reeded Glass Wall Unit - 500mm | C134: Euro Matt Dove Grey | D134: WGR5 | E134: 434 | F134: Reeded Glass Wall Unit - 500mm Euro Matt Dove Grey
A135: @LK-EMD-WGR6 | B135: Reeded Glass Wall Unit - 600mm | C135: Euro Matt Dove Grey | D135: WGR6 | E135: 476 | F135: Reeded Glass Wall Unit - 600mm Euro Matt Dove Grey
A136: @LK-EMD-WGS5 | B136: Smoked Glass Wall Unit - 500mm | C136: Euro Matt Dove Grey | D136: WGS5 | E136: 434 | F136: Smoked Glass Wall Unit - 500mm Euro Matt Dove Grey
A137: @LK-EMD-WGS6 | B137: Smoked Glass Wall Unit - 600mm | C137: Euro Matt Dove Grey | D137: WGS6 | E137: 476 | F137: Smoked Glass Wall Unit - 600mm Euro Matt Dove Grey
A138: @LK-EMD-WM60 | B138: 600 Wall Microwave Unit | C138: Euro Matt Dove Grey | D138: WM60 | E138: 361 | F138: 600 Wall Microwave Unit Euro Matt Dove Grey
A139: LK-A-EMD-BLPEL | B139: Modern Sq Bul Pelmet / Cornice | C139: Euro Matt Dove Grey | D139: BLPEL | E139: 86 | F139: Modern Sq Bul Pelmet / Cornice Euro Matt Dove Grey
A140: LK-A-EMD-CPBC | B140: Curved End post Cap Classic | C140: Euro Matt Dove Grey | D140: CPBC | E140: 116 | F140: Curved End post Cap Classic Euro Matt Dove Grey
A141: LK-A-EMD-CPBM | B141: Curved End post Cap Modern | C141: Euro Matt Dove Grey | D141: CPBM | E141: 109 | F141: Curved End post Cap Modern Euro Matt Dove Grey
A142: LK-A-EMD-CVP | B142: Curved End Post | C142: Euro Matt Dove Grey | D142: CVP | E142: 123 | F142: Curved End Post Euro Matt Dove Grey
A143: LK-A-EMD-ESP | B143: End Support / Plant on Base Panel | C143: Euro Matt Dove Grey | D143: ESP | E143: 135 | F143: End Support / Plant on Base Panel Euro Matt Dove Grey
A144: LK-A-EMD-ET | B144: 22mm Edging - 10m | C144: Euro Matt Dove Grey | D144: ET | E144: 37 | F144: 22mm Edging - 10m Euro Matt Dove Grey
A145: LK-A-EMD-LUP | B145: Large Universal Panel 2.4 x 900mm | C145: Euro Matt Dove Grey | D145: LUP | E145: 391 | F145: Large Universal Panel 2.4 x 900mm Euro Matt Dove Grey
A146: LK-A-EMD-PL | B146: Plinth | C146: Euro Matt Dove Grey | D146: PL | E146: 90 | F146: Plinth Euro Matt Dove Grey
A147: LK-A-EMD-PTEP | B147: Plant on Tall End Panel 2400x630 | C147: Euro Matt Dove Grey | D147: PTEP | E147: 305 | F147: Plant on Tall End Panel 2400x630 Euro Matt Dove Grey
A148: LK-A-EMD-PWEP20 | B148: 2000 x 360 Plant on Wall End Panel | C148: Euro Matt Dove Grey | D148: PWEP20 | E148: 200 | F148: 2000 x 360 Plant on Wall End Panel Euro Matt Dove Grey
A149: LK-A-EMD-PWEP72 | B149: 720 x 360 Plant on Wall End Panel | C149: Euro Matt Dove Grey | D149: PWEP72 | E149: 92 | F149: 720 x 360 Plant on Wall End Panel Euro Matt Dove Grey
A150: LK-A-EMD-SCCRN | B150: Sculptured Cornice | C150: Euro Matt Dove Grey | D150: SCCRN | E150: 113 | F150: Sculptured Cornice Euro Matt Dove Grey
A151: LK-A-EMD-WREP72 | B151: 720 Wall Rep end Panel | C151: Euro Matt Dove Grey | D151: WREP72 | E151: 77 | F151: 720 Wall Rep end Panel Euro Matt Dove Grey
A152: @LK-EMY-AD45I | B152: 450 Integrated Dishwasher Fascia | C152: Euro Matt Dust Grey | D152: AD45I | E152: 107 | F152: 450 Integrated Dishwasher Fascia Euro Matt Dust Grey
A153: @LK-EMY-AD60FD | B153: 600 Fridge/Dishwasher Fascia | C153: Euro Matt Dust Grey | D153: AD60FD | E153: 131 | F153: 600 Fridge/Dishwasher Fascia Euro Matt Dust Grey
A154: @LK-EMY-AD60ICH | B154: 600 Integrated Extractor Door | C154: Euro Matt Dust Grey | D154: AD60ICH | E154: 95 | F154: 600 Integrated Extractor Door Euro Matt Dust Grey
A155: @LK-EMY-AD60S | B155: 600 Semi Int Dishwasher Fascia | C155: Euro Matt Dust Grey | D155: AD60S | E155: 129 | F155: 600 Semi Int Dishwasher Fascia Euro Matt Dust Grey
A156: @LK-EMY-AH-CO | B156: 600 Compact / Microwave Housing | C156: Euro Matt Dust Grey | D156: AH-CO | E156: 823 | F156: 600 Compact / Microwave Housing Euro Matt Dust Grey
A157: @LK-EMY-AH-DMW | B157: 600 Double Oven & MW unit | C157: Euro Matt Dust Grey | D157: AH-DMW | E157: 927 | F157: 600 Double Oven & MW unit Euro Matt Dust Grey
A158: @LK-EMY-AH-DO | B158: 600 Dble Oven Housing | C158: Euro Matt Dust Grey | D158: AH-DO | E158: 731 | F158: 600 Dble Oven Housing Euro Matt Dust Grey
A159: @LK-EMY-AH-DO2D | B159: 600 Dble Oven & 2 Drws | C159: Euro Matt Dust Grey | D159: AH-DO2D | E159: 1058 | F159: 600 Dble Oven & 2 Drws Euro Matt Dust Grey
A160: @LK-EMY-AH-F55 | B160: 600 50/50 FF Housing Unit | C160: Euro Matt Dust Grey | D160: AH-F55 | E160: 735 | F160: 600 50/50 FF Housing Unit Euro Matt Dust Grey
A161: @LK-EMY-AH-F73 | B161: 600 70/30 FF Housing Unit | C161: Euro Matt Dust Grey | D161: AH-F73 | E161: 711 | F161: 600 70/30 FF Housing Unit Euro Matt Dust Grey
A162: @LK-EMY-AH-SM2D | B162: 600 Single Oven & MW 2 Drw unit | C162: Euro Matt Dust Grey | D162: AH-SM2D | E162: 1074 | F162: 600 Single Oven & MW 2 Drw unit Euro Matt Dust Grey
A163: @LK-EMY-AH-SMW | B163: 600 Sgle Oven & MW 2 Door unit | C163: Euro Matt Dust Grey | D163: AH-SMW | E163: 786 | F163: 600 Sgle Oven & MW 2 Door unit Euro Matt Dust Grey
A164: @LK-EMY-AH-SO | B164: 600 Single Oven Housing | C164: Euro Matt Dust Grey | D164: AH-SO | E164: 750 | F164: 600 Single Oven Housing Euro Matt Dust Grey
A165: @LK-EMY-AH-SO1D | B165: 600 Single Oven + 1 Drw Unit | C165: Euro Matt Dust Grey | D165: AH-SO1D | E165: 896 | F165: 600 Single Oven + 1 Drw Unit Euro Matt Dust Grey
A166: @LK-EMY-AH-SO2D | B166: 600 Single Oven + 2 Drws Unit | C166: Euro Matt Dust Grey | D166: AH-SO2D | E166: 1112 | F166: 600 Single Oven + 2 Drws Unit Euro Matt Dust Grey
A167: @LK-EMY-AH-SO3D | B167: 600 Single Oven + 3 Drws Unit | C167: Euro Matt Dust Grey | D167: AH-SO3D | E167: 1261 | F167: 600 Single Oven + 3 Drws Unit Euro Matt Dust Grey
A168: @LK-EMY-AH-SOT | B168: 600 Twin Single Oven Housing | C168: Euro Matt Dust Grey | D168: AH-SOT | E168: 876 | F168: 600 Twin Single Oven Housing Euro Matt Dust Grey
A169: @LK-EMY-BC145 | B169: 1000 HL Cnr Base (450 Door) | C169: Euro Matt Dust Grey | D169: BC145 | E169: 397 | F169: 1000 HL Cnr Base (450 Door) Euro Matt Dust Grey
A170: @LK-EMY-BC15 | B170: 1000 HL Cnr Base (500 Door) | C170: Euro Matt Dust Grey | D170: BC15 | E170: 405 | F170: 1000 HL Cnr Base (500 Door) Euro Matt Dust Grey
A171: @LK-EMY-BC16 | B171: 1000 HL Cnr Base (600 Door) | C171: Euro Matt Dust Grey | D171: BC16 | E171: 421 | F171: 1000 HL Cnr Base (600 Door) Euro Matt Dust Grey
A172: @LK-EMY-BC83 | B172: 800 HL Cnr Base (300 Door) | C172: Euro Matt Dust Grey | D172: BC83 | E172: 374 | F172: 800 HL Cnr Base (300 Door) Euro Matt Dust Grey
A173: @LK-EMY-BC84 | B173: 800 HL Cnr Base Unit (400 Door) | C173: Euro Matt Dust Grey | D173: BC84 | E173: 380 | F173: 800 HL Cnr Base Unit (400 Door) Euro Matt Dust Grey
A174: @LK-EMY-BC845 | B174: 800 HL Cnr Base (450 Door) | C174: Euro Matt Dust Grey | D174: BC845 | E174: 392 | F174: 800 HL Cnr Base (450 Door) Euro Matt Dust Grey
A175: @LK-EMY-BC945 | B175: 900 HL Cnr Base (450 Door) | C175: Euro Matt Dust Grey | D175: BC945 | E175: 390 | F175: 900 HL Cnr Base (450 Door) Euro Matt Dust Grey
A176: @LK-EMY-BCL15L | B176: 1000 Cnr Base CORNERSTONE LH - 500 door | C176: Euro Matt Dust Grey | D176: BCL15L | E176: 1270 | F176: 1000 Cnr Base CORNERSTONE LH - 500 door Euro Matt Dust Grey
A177: @LK-EMY-BCL15R | B177: 1000 Cnr Base CORNERSTONE RH - 500 door | C177: Euro Matt Dust Grey | D177: BCL15R | E177: 1270 | F177: 1000 Cnr Base CORNERSTONE RH - 500 door Euro Matt Dust Grey
A178: @LK-EMY-BCL16L | B178: 1000 Cnr Base CORNERSTONE LH - 600 door | C178: Euro Matt Dust Grey | D178: BCL16L | E178: 1349 | F178: 1000 Cnr Base CORNERSTONE LH - 600 door Euro Matt Dust Grey
A179: @LK-EMY-BCL16R | B179: 1000 Cnr Base CORNERSTONE RH - 600 door | C179: Euro Matt Dust Grey | D179: BCL16R | E179: 1349 | F179: 1000 Cnr Base CORNERSTONE RH - 600 door Euro Matt Dust Grey
A180: @LK-EMY-BCL9 | B180: 950 HL Cnr L Base | C180: Euro Matt Dust Grey | D180: BCL9 | E180: 618 | F180: 950 HL Cnr L Base Euro Matt Dust Grey
A181: @LK-EMY-BCO145 | B181: 1000 Corner Base VS COR FLEX - 450 door | C181: Euro Matt Dust Grey | D181: BCO145 | E181: 1407 | F181: 1000 Corner Base VS COR FLEX - 450 door Euro Matt Dust Grey
A182: @LK-EMY-BCO15 | B182: 1000 Corner Base VS COR FLEX - 500 door | C182: Euro Matt Dust Grey | D182: BCO15 | E182: 1415 | F182: 1000 Corner Base VS COR FLEX - 500 door Euro Matt Dust Grey
A183: @LK-EMY-BCO16 | B183: 1000 Corner Base VS COR FLEX - 600 door | C183: Euro Matt Dust Grey | D183: BCO16 | E183: 1431 | F183: 1000 Corner Base VS COR FLEX - 600 door Euro Matt Dust Grey
A184: @LK-EMY-BCO945 | B184: 900 Corner Base VS COR FLEX - 450 door | C184: Euro Matt Dust Grey | D184: BCO945 | E184: 1400 | F184: 900 Corner Base VS COR FLEX - 450 door Euro Matt Dust Grey
A185: @LK-EMY-BD13 | B185: 1000 3 Drw Base Unit | C185: Euro Matt Dust Grey | D185: BD13 | E185: 845 | F185: 1000 3 Drw Base Unit Euro Matt Dust Grey
A186: @LK-EMY-BD53 | B186: 500 3 Drw Base Unit | C186: Euro Matt Dust Grey | D186: BD53 | E186: 714 | F186: 500 3 Drw Base Unit Euro Matt Dust Grey
A187: @LK-EMY-BD54 | B187: 500 4 Drw Base Unit | C187: Euro Matt Dust Grey | D187: BD54 | E187: 846 | F187: 500 4 Drw Base Unit Euro Matt Dust Grey
A188: @LK-EMY-BD62 | B188: 600 2 Pan Drw Unit | C188: Euro Matt Dust Grey | D188: BD62 | E188: 683 | F188: 600 2 Pan Drw Unit Euro Matt Dust Grey
A189: @LK-EMY-BD62I | B189: 600 2 Pan Drw Unit + 1 Internal | C189: Euro Matt Dust Grey | D189: BD62I | E189: 859 | F189: 600 2 Pan Drw Unit + 1 Internal Euro Matt Dust Grey
A190: @LK-EMY-BD63 | B190: 600 3 Drw Base Unit | C190: Euro Matt Dust Grey | D190: BD63 | E190: 806 | F190: 600 3 Drw Base Unit Euro Matt Dust Grey
A191: @LK-EMY-BD635L | B191: 600 Low Single Drawer unit 360 high | C191: Euro Matt Dust Grey | D191: BD635L | E191: 384 | F191: 600 Low Single Drawer unit 360 high Euro Matt Dust Grey
A192: @LK-EMY-BD83 | B192: 800 3 Drw Base Unit | C192: Euro Matt Dust Grey | D192: BD83 | E192: 813 | F192: 800 3 Drw Base Unit Euro Matt Dust Grey
A193: @LK-EMY-BD92 | B193: 900 2 Pan Drw Unit | C193: Euro Matt Dust Grey | D193: BD92 | E193: 700 | F193: 900 2 Pan Drw Unit Euro Matt Dust Grey
A194: @LK-EMY-BD92I | B194: 900 2 Pan Drw Unit + 1 Internal | C194: Euro Matt Dust Grey | D194: BD92I | E194: 901 | F194: 900 2 Pan Drw Unit + 1 Internal Euro Matt Dust Grey
A195: @LK-EMY-BD93 | B195: 900 3 Drw Base Unit | C195: Euro Matt Dust Grey | D195: BD93 | E195: 828 | F195: 900 3 Drw Base Unit Euro Matt Dust Grey
A196: @LK-EMY-BH100 | B196: 1000 HL Base Unit | C196: Euro Matt Dust Grey | D196: BH100 | E196: 439 | F196: 1000 HL Base Unit Euro Matt Dust Grey
A197: @LK-EMY-BH10S | B197: 1000 HL Sink Base Unit (Inc Liner) | C197: Euro Matt Dust Grey | D197: BH10S | E197: 485 | F197: 1000 HL Sink Base Unit (Inc Liner) Euro Matt Dust Grey
A198: @LK-EMY-BH15 | B198: 150 HL Base Unit | C198: Euro Matt Dust Grey | D198: BH15 | E198: 228 | F198: 150 HL Base Unit Euro Matt Dust Grey
A199: @LK-EMY-BH30 | B199: 300 HL Base Unit | C199: Euro Matt Dust Grey | D199: BH30 | E199: 239 | F199: 300 HL Base Unit Euro Matt Dust Grey
A200: @LK-EMY-BH35 | B200: 350 HL Base Unit | C200: Euro Matt Dust Grey | D200: BH35 | E200: 245 | F200: 350 HL Base Unit Euro Matt Dust Grey
... 1803 more rows

Sheet Lighting Prices (hidden)
A2: @VL-K01-0171NW-3 | B2: Nova Mini 3 Light Kit NW | E2: 45.5 | F2: 54.6
A3: @VL-K01-0171NW-5 | B3: Nova Mini 5 Light Kit NW | E3: 73.5 | F3: 88.2
A4: @VL-K01-0171WW-3 | B4: Nova Mini 3 Light Kit WW | E4: 45.5 | F4: 54.6
A5: @VL-K01-0171WW-5 | B5: Nova Mini 5 Light Kit WW | E5: 73.5 | F5: 88.2
A6: VL-K01-0171NW | B6: Nova Mini LED Ultra Thin Light NW | E6: 12.25 | F6: 14.7
A7: VL-K01-0171WW | B7: Nova Mini LED Ultra Thin Light WW | E7: 12.25 | F7: 14.7
A8: @VL-K01-0120SSNW-3 | B8: Galaxy COB Triangular 3 Light Kit NW | E8: 42 | F8: 50.4
A9: @VL-K01-0120SSNW-5 | B9: Galaxy COB Triangular 5 Light Kit NW | E9: 67.669 | F9: 81.2028
A10: @VL-K01-0120SSWW-3 | B10: Galaxy COB Triangular 3 Light Kit WW | E10: 42 | F10: 50.4
A11: @VL-K01-0120SSWW-5 | B11: Galaxy COB Triangular 5 Light Kit WW | E11: 67.669 | F11: 81.2028
A12: VL-K01-0120SSNW | B12: Galaxy COB LED Triangular Light NW | E12: 11.08333333 | F12: 13.3
A13: VL-K01-0120SSWW | B13: Galaxy COB LED Triangular Light WW | E13: 11.08333333 | F13: 13.3
A14: @VL-K01-0102SSNW-3 | B14: Galaxy COB Round 3 Light Kit NW | E14: 38.5 | F14: 46.2
A15: @VL-K01-0102SSNW-5 | B15: Galaxy COB Round 5 Light Kit NW | E15: 61.831 | F15: 74.1972
A16: @VL-K01-0102SSWW-3 | B16: Galaxy COB Round 3 Light Kit WW | E16: 38.5 | F16: 46.2
A17: @VL-K01-0102SSWW-5 | B17: Galaxy COB Round 5 Light Kit WW | E17: 61.831 | F17: 74.1972
A18: VL-K01-0102SSNW | B18: Galaxy COB LED Round Light NW | E18: 9.916666667 | F18: 11.9
A19: VL-K01-0102SSWW | B19: Galaxy COB LED Round Light WW | E19: 9.916666667 | F19: 11.9
A20: @VL-K01-0190NW-3 | B20: Slim Square Panel 3 Light Kit NW | E20: 50.75 | F20: 60.9
A21: @VL-K01-0190NW-5 | B21: Slim Square Panel 5 Light Kit NW | E21: 76.419 | F21: 91.7028
A22: @VL-K01-0190WW-3 | B22: Slim Square Panel 3 Light Kit WW | E22: 50.75 | F22: 60.9
A23: @VL-K01-0190WW-5 | B23: Slim Square Panel 5 Light Kit WW | E23: 76.419 | F23: 91.7028
A24: VL-K01-0190SLNW | B24: Slim Square Panel Light 100x100 NW | E24: 12.83333333 | F24: 15.4
A25: VL-K01-0190SLWW | B25: Slim Square Panel Light 100x100 WW | E25: 12.83333333 | F25: 15.4
A26: @VL-K01-0191NW-3 | B26: Slim Rectangular Panel 3 Light Kit NW | E26: 66.5 | F26: 79.8
A27: @VL-K01-0191NW-5 | B27: Slim Rectangular Panel 5 Light Kit NW | E27: 98 | F27: 117.6
A28: @VL-K01-0191WW-3 | B28: Slim Rectangular Panel 3 Light Kit WW | E28: 66.5 | F28: 79.8
A29: @VL-K01-0191WW-5 | B29: Slim Rectangular Panel 5 Light Kit WW | E29: 98 | F29: 117.6
A30: VL-K01-0191SLNW | B30: Slim Rectangular Panel Light 200x100 NW | E30: 15.75 | F30: 18.9
A31: VL-K01-0191SLWW | B31: Slim Rectangular Panel Light 200x100 WW | E31: 15.75 | F31: 18.9
A32: VL-R90-0131 | B32: 2 Metre Extension Cable | E32: 2.916666667 | F32: 3.5
A33: VL-K01-0030K4PCNW | B33: Sola Round Plinth 4 Light Kit NW | E33: 22.75 | F33: 27.3
A34: VL-K01-0030K4PCWW | B34: Sola Round Plinth 4 Light Kit WW | E34: 22.75 | F34: 27.3
A35: VL-K01-0030K8PCNW | B35: Sola Round Plinth 8 Light Kit NW | E35: 42 | F35: 50.4
A36: VL-K01-0030K8PCWW | B36: Sola Round Plinth 8 Light Kit WW | E36: 42 | F36: 50.4
A37: VL-K01-0030PNW | B37: Sola Round Plinth Single Light NW | E37: 3.5 | F37: 4.2
A38: VL-K01-0030PWW | B38: Sola Round Plinth Single Light WW | E38: 3.5 | F38: 4.2
A39: VL-K01-0040K4SSNW | B39: Strata Square Plinth 4 Light Kit NW | E39: 25.08333333 | F39: 30.1
A40: VL-K01-0040K4SSWW | B40: Strata Square Plinth 4 Light Kit WW | E40: 25.08333333 | F40: 30.1
A41: VL-K01-0040K8SSNW | B41: Strata Square Plinth 8 Light Kit NW | E41: 42 | F41: 50.4
A42: VL-K01-0040K8SSWW | B42: Strata Square Plinth 8 Light Kit WW | E42: 42 | F42: 50.4
A43: VL-K01-0040SSNW | B43: Strata Square Plinth Single Light NW | E43: 4.083333333 | F43: 4.9
A44: VL-K01-0040SSWW | B44: Strata Square Plinth Single Light WW | E44: 4.083333333 | F44: 4.9
A45: VL-K01-0200NW-462 | B45: Sabre Drawer Light 462mm Natural White | E45: 19.25 | F45: 23.1
A46: VL-K01-0200NW-562 | B46: Sabre Drawer Light 562mm Natural White | E46: 22.16666667 | F46: 26.6
A47: VL-K01-0200NW-762 | B47: Sabre Drawer Light 762mm Natural White | E47: 26.25 | F47: 31.5
A48: VL-K01-0200NW-862 | B48: Sabre Drawer Light 862mm Natural White | E48: 29.16666667 | F48: 35
A49: VL-K01-0200NW-962 | B49: Sabre Drawer Light 962mm Natural White | E49: 32.08333333 | F49: 38.5
A50: VL-K30-1270NW-1M | B50: Dotless Frontview Tape IP65 1 Metre NW | E50: 19.25 | F50: 23.1
A51: VL-K30-1270NW-2M | B51: Dotless Frontview Tape IP65 2 Metre NW | E51: 35 | F51: 42
A52: VL-K30-1270NW-3M | B52: Dotless Frontview Tape IP65 3 Metre NW | E52: 49 | F52: 58.8
A53: VL-K30-1270WW-1M | B53: Dotless Frontview Tape IP65 1 Metre WW | E53: 19.25 | F53: 23.1
A54: VL-K30-1270WW-2M | B54: Dotless Frontview Tape IP65 2 Metre WW | E54: 35 | F54: 42
A55: VL-K30-1270WW-3M | B55: Dotless Frontview Tape IP65 3 Metre WW | E55: 49 | F55: 58.8
A56: VL-K30-1260NW-2M | B56: Dotless Sideview Tape IP65 2 Metre NW | E56: 35 | F56: 42
A57: VL-K30-1260NW-3M | B57: Dotless Sideview Tape IP65 3 Metre NW | E57: 49 | F57: 58.8
A58: VL-K30-1260NW-5M | B58: Dotless Sideview Tape IP65 5 Metre NW | E58: 78.75 | F58: 94.5
A59: VL-K30-1260WW-2M | B59: Dotless Sideview Tape IP65 2 Metre WW | E59: 35 | F59: 42
A60: VL-K30-1260WW-3M | B60: Dotless Sideview Tape IP65 3 Metre WW | E60: 49 | F60: 58.8
A61: VL-K30-1260WW-5M | B61: Dotless Sideview Tape IP65 5 Metre WW | E61: 78.75 | F61: 94.5
A62: VL-K30-5720NW-1M | B62: Callo LED Tape 60 LED 1 Metre NW | E62: 14 | F62: 16.8
A63: VL-K30-5720NW-2M | B63: Callo LED Tape 60 LED 2 Metre NW | E63: 22.75 | F63: 27.3
A64: VL-K30-5720WW-1M | B64: Callo LED Tape 60 LED 1 Metre WW | E64: 14 | F64: 16.8
A65: VL-K30-5720WW-2M | B65: Callo LED Tape 60 LED 2 Metre WW | E65: 22.75 | F65: 27.3
A66: VL-K30-5730NW-1M | B66: Bon LED Tape 120 LED 1 Metre NW | E66: 8.75 | F66: 10.5
A67: VL-K30-5730NW-2M | B67: Bon LED Tape 120 LED 2 Metre NW | E67: 18.08333333 | F67: 21.7
A68: VL-K30-5730WW-1M | B68: Bon LED Tape 120 LED 1 Metre WW | E68: 8.75 | F68: 10.5
A69: VL-K30-5730WW-2M | B69: Bon LED Tape 120 LED 2 Metre WW | E69: 18.08333333 | F69: 21.7
A70: VL-K01-1035K1OP-WR | B70: Smart Surface Profile for LED Tape 1m | E70: 12.25 | F70: 14.7
A71: VL-K01-1035K2OP-WR | B71: Smart Surface Profile for LED Tape 2m | E71: 19.25 | F71: 23.1
A72: VL-K01-1037K1OP-WR | B72: Smart Recessed Profile for LED Tape 1m | E72: 12.25 | F72: 14.7
A73: VL-K01-1037K2OP-WR | B73: Smart Recessed Profile for LED Tape 2m | E73: 19.25 | F73: 23.1
A74: VL-K01-1060K1OP-WR | B74: Smart Corner Profile for LED Tape 1m | E74: 16.91666667 | F74: 20.3
A75: VL-K01-1060K2OP-WR | B75: Smart Corner Profile for LED Tape 2m | E75: 29.16666667 | F75: 35
A76: VL-K30-5725NW | B76: Callo IP65 LED Tape 60 LED 5 Metre NW | E76: 39.08333333 | F76: 46.9
A77: VL-K30-5725WW | B77: Callo IP65 LED Tape 60 LED 5 Metre WW | E77: 39.08333333 | F77: 46.9
A78: VL-K30-5800IPMP | B78: 2m Connector Lead for Callo IP65 Tape | E78: 2.916666667 | F78: 3.5
A79: VL-K30-5810IP | B79: 50mm Link Lead for Callo IP65 Tape | E79: 1.75 | F79: 2.1
A80: VL-K30-5812IP | B80: 1 Metre Link Lead for Callo IP65 Tape | E80: 1.75 | F80: 2.1
A81: VL-K30-5813IP | B81: 2 Metre Link Lead for Callo IP65 Tape | E81: 2.916666667 | F81: 3.5
A82: VL-K30-5815IP | B82: Butt Connector for Callo IP65 Tape | E82: 1.75 | F82: 2.1
A83: VL-K30-2034Z | B83: Single Colour LED Dimming Remote Control | E83: 44.91666667 | F83: 53.9
A84: VL-K30-2037ZU | B84: Single Channel Remote Receiver | E84: 28 | F84: 33.6
A85: VL-K01-1200 UNI | B85: 8W 12V LED Uni Driver - Remote Control | E85: 8.75 | F85: 10.5
A86: VL-K10-1220 UNI | B86: 15W 12V LED Uni Driver - Remote Control | E86: 12.25 | F86: 14.7
A87: VL-K10-1230 UNI | B87: 30W 12V LED Uni Driver - Remote Control | E87: 19.25 | F87: 23.1
A88: VL-K10-1250 UNI | B88: 50W 12V LED Uni Driver - Remote Control | E88: 29.16666667 | F88: 35
A89: VL-N28-0005 | B89: Dimmer Touch Sensor Switch | E89: 8.75 | F89: 10.5
A90: VL-N28-0001D | B90: Double Door IR Sensor Switch | E90: 19.25 | F90: 23.1
A91: VL-N28-0001 | B91: Single Door IR Sensor Switch | E91: 12.25 | F91: 14.7
A92: VL-N28-0004 | B92: Motion IR Sensor Switch | E92: 12.25 | F92: 14.7
A93: VL-K01-1200 | B93: 8W 12V LED Driver 4 Ports | E93: 8.75 | F93: 10.5
A94: VL-K01-1220 | B94: 15W 12V LED Driver 6 Ports | E94: 12.25 | F94: 14.7
A95: VL-K01-1230 | B95: 30W 12V LED Driver 6 Ports | E95: 19.25 | F95: 23.1
A96: VL-K01-1250 | B96: 50W 12V LED Driver 6 Ports | E96: 29.16666667 | F96: 35
A97: VL-R90-0133 | B97: Driver Extender Block - 4 Ports | E97: 2.916666667 | F97: 3.5
A98: VL-N00-0171SS | B98: Pop Up Socket 13A - 3 Sockets 2 USB SS | E98: 54.83333333 | F98: 65.8

Sheet Codes check (hidden)
A1: All codes | B1: In main price list | C1: In lighting
A2: =_xlfn.UNIQUE(_xlfn.VSTACK(Codes!D4:D933,Codes!E4:E933,Codes!F4:F933,Codes!G4:G933,Codes!H4:H933,Codes!I4:I933,Codes!J4:J933,Codes!K4:K933,Codes!L4:L933,Codes!M4:M933,Codes!N4:N933,Codes!O4:O933,Codes!P4:P933,Codes!Q4:Q933,Codes!R4:R933,Codes!S4:S933)) -> @LK-EMD-BP15TY | B2: =_xlfn.XLOOKUP(A2,'Prices Furniture'!A:A,'Prices Furniture'!E:E) -> 408 | C2: =_xlfn.XLOOKUP(A2,'Lighting Prices'!A:A,'Lighting Prices'!E:E) -> 
A3: @LK-EMD-BP3TY | B3: =_xlfn.XLOOKUP(A3,'Prices Furniture'!A:A,'Prices Furniture'!E:E) -> 634 | C3: =_xlfn.XLOOKUP(A3,'Lighting Prices'!A:A,'Lighting Prices'!E:E) -> 
A4: @LK-EMD-BH15 | B4: =_xlfn.XLOOKUP(A4,'Prices Furniture'!A:A,'Prices Furniture'!E:E) -> 228 | C4: =_xlfn.XLOOKUP(A4,'Lighting Prices'!A:A,'Lighting Prices'!E:E) -> 
A5: @LK-EMD-BH30 | B5: =_xlfn.XLOOKUP(A5,'Prices Furniture'!A:A,'Prices Furniture'!E:E) -> 239 | C5: =_xlfn.XLOOKUP(A5,'Lighting Prices'!A:A,'Lighting Prices'!E:E) -> 
A6: @LK-EMD-BH3B | B6: =_xlfn.XLOOKUP(A6,'Prices Furniture'!A:A,'Prices Furniture'!E:E) -> 607 | C6: =_xlfn.XLOOKUP(A6,'Lighting Prices'!A:A,'Lighting Prices'!E:E) -> 
A7: @LK-EMD-BH35 | B7: =_xlfn.XLOOKUP(A7,'Prices Furniture'!A:A,'Prices Furniture'!E:E) -> 245 | C7: =_xlfn.XLOOKUP(A7,'Lighting Prices'!A:A,'Lighting Prices'!E:E) -> 
A8: @LK-EMD-BH40 | B8: =_xlfn.XLOOKUP(A8,'Prices Furniture'!A:A,'Prices Furniture'!E:E) -> 249 | C8: =_xlfn.XLOOKUP(A8,'Lighting Prices'!A:A,'Lighting Prices'!E:E) -> 
A9: @LK-EMD-BH4B | B9: =_xlfn.XLOOKUP(A9,'Prices Furniture'!A:A,'Prices Furniture'!E:E) -> 682 | C9: =_xlfn.XLOOKUP(A9,'Lighting Prices'!A:A,'Lighting Prices'!E:E) -> 
A10: @LK-EMD-BH45 | B10: =_xlfn.XLOOKUP(A10,'Prices Furniture'!A:A,'Prices Furniture'!E:E) -> 272 | C10: =_xlfn.XLOOKUP(A10,'Lighting Prices'!A:A,'Lighting Prices'!E:E) -> 
A11: @LK-EMD-BH45B | B11: =_xlfn.XLOOKUP(A11,'Prices Furniture'!A:A,'Prices Furniture'!E:E) -> 710 | C11: =_xlfn.XLOOKUP(A11,'Lighting Prices'!A:A,'Lighting Prices'!E:E) -> 
A12: @LK-EMD-BH50 | B12: =_xlfn.XLOOKUP(A12,'Prices Furniture'!A:A,'Prices Furniture'!E:E) -> 283 | C12: =_xlfn.XLOOKUP(A12,'Lighting Prices'!A:A,'Lighting Prices'!E:E) -> 
A13: @LK-EMD-BH5B | B13: =_xlfn.XLOOKUP(A13,'Prices Furniture'!A:A,'Prices Furniture'!E:E) -> 727 | C13: =_xlfn.XLOOKUP(A13,'Lighting Prices'!A:A,'Lighting Prices'!E:E) -> 
A14: @LK-EMD-BH50S | B14: =_xlfn.XLOOKUP(A14,'Prices Furniture'!A:A,'Prices Furniture'!E:E) -> 313 | C14: =_xlfn.XLOOKUP(A14,'Lighting Prices'!A:A,'Lighting Prices'!E:E) -> 
A15: @LK-EMD-BH60 | B15: =_xlfn.XLOOKUP(A15,'Prices Furniture'!A:A,'Prices Furniture'!E:E) -> 319 | C15: =_xlfn.XLOOKUP(A15,'Lighting Prices'!A:A,'Lighting Prices'!E:E) -> 
A16: @LK-EMD-BH6B4 | B16: =_xlfn.XLOOKUP(A16,'Prices Furniture'!A:A,'Prices Furniture'!E:E) -> 852 | C16: =_xlfn.XLOOKUP(A16,'Lighting Prices'!A:A,'Lighting Prices'!E:E) -> 
A17: @LK-EMD-BH6B2 | B17: =_xlfn.XLOOKUP(A17,'Prices Furniture'!A:A,'Prices Furniture'!E:E) -> 800 | C17: =_xlfn.XLOOKUP(A17,'Lighting Prices'!A:A,'Lighting Prices'!E:E) -> 
A18: @LK-EMD-BH60S | B18: =_xlfn.XLOOKUP(A18,'Prices Furniture'!A:A,'Prices Furniture'!E:E) -> 365 | C18: =_xlfn.XLOOKUP(A18,'Lighting Prices'!A:A,'Lighting Prices'!E:E) -> 
A19: @LK-EMD-BH70 | B19: =_xlfn.XLOOKUP(A19,'Prices Furniture'!A:A,'Prices Furniture'!E:E) -> 388 | C19: =_xlfn.XLOOKUP(A19,'Lighting Prices'!A:A,'Lighting Prices'!E:E) -> 
A20: @LK-EMD-BH80 | B20: =_xlfn.XLOOKUP(A20,'Prices Furniture'!A:A,'Prices Furniture'!E:E) -> 394 | C20: =_xlfn.XLOOKUP(A20,'Lighting Prices'!A:A,'Lighting Prices'!E:E) -> 
A21: @LK-EMD-BH80S | B21: =_xlfn.XLOOKUP(A21,'Prices Furniture'!A:A,'Prices Furniture'!E:E) -> 440 | C21: =_xlfn.XLOOKUP(A21,'Lighting Prices'!A:A,'Lighting Prices'!E:E) -> 
A22: @LK-EMD-BH90 | B22: =_xlfn.XLOOKUP(A22,'Prices Furniture'!A:A,'Prices Furniture'!E:E) -> 418 | C22: =_xlfn.XLOOKUP(A22,'Lighting Prices'!A:A,'Lighting Prices'!E:E) -> 
A23: @LK-EMD-BH90S | B23: =_xlfn.XLOOKUP(A23,'Prices Furniture'!A:A,'Prices Furniture'!E:E) -> 464 | C23: =_xlfn.XLOOKUP(A23,'Lighting Prices'!A:A,'Lighting Prices'!E:E) -> 
A24: @LK-EMD-BH100 | B24: =_xlfn.XLOOKUP(A24,'Prices Furniture'!A:A,'Prices Furniture'!E:E) -> 439 | C24: =_xlfn.XLOOKUP(A24,'Lighting Prices'!A:A,'Lighting Prices'!E:E) -> 
A25: @LK-EMD-BH10S | B25: =_xlfn.XLOOKUP(A25,'Prices Furniture'!A:A,'Prices Furniture'!E:E) -> 485 | C25: =_xlfn.XLOOKUP(A25,'Lighting Prices'!A:A,'Lighting Prices'!E:E) -> 
A26: @LK-EMD-BC83 | B26: =_xlfn.XLOOKUP(A26,'Prices Furniture'!A:A,'Prices Furniture'!E:E) -> 374 | C26: =_xlfn.XLOOKUP(A26,'Lighting Prices'!A:A,'Lighting Prices'!E:E) -> 
A27: @LK-EMD-BC84 | B27: =_xlfn.XLOOKUP(A27,'Prices Furniture'!A:A,'Prices Furniture'!E:E) -> 380 | C27: =_xlfn.XLOOKUP(A27,'Lighting Prices'!A:A,'Lighting Prices'!E:E) -> 
A28: @LK-EMD-BC845 | B28: =_xlfn.XLOOKUP(A28,'Prices Furniture'!A:A,'Prices Furniture'!E:E) -> 392 | C28: =_xlfn.XLOOKUP(A28,'Lighting Prices'!A:A,'Lighting Prices'!E:E) -> 
A29: @LK-EMD-BC945 | B29: =_xlfn.XLOOKUP(A29,'Prices Furniture'!A:A,'Prices Furniture'!E:E) -> 392 | C29: =_xlfn.XLOOKUP(A29,'Lighting Prices'!A:A,'Lighting Prices'!E:E) -> 
A30: @LK-EMD-BC145 | B30: =_xlfn.XLOOKUP(A30,'Prices Furniture'!A:A,'Prices Furniture'!E:E) -> 397 | C30: =_xlfn.XLOOKUP(A30,'Lighting Prices'!A:A,'Lighting Prices'!E:E) -> 
A31: @LK-EMD-BC15 | B31: =_xlfn.XLOOKUP(A31,'Prices Furniture'!A:A,'Prices Furniture'!E:E) -> 405 | C31: =_xlfn.XLOOKUP(A31,'Lighting Prices'!A:A,'Lighting Prices'!E:E) -> 
A32: @LK-EMD-BC16 | B32: =_xlfn.XLOOKUP(A32,'Prices Furniture'!A:A,'Prices Furniture'!E:E) -> 421 | C32: =_xlfn.XLOOKUP(A32,'Lighting Prices'!A:A,'Lighting Prices'!E:E) -> 
A33: @LK-EMD-BCL15L | B33: =_xlfn.XLOOKUP(A33,'Prices Furniture'!A:A,'Prices Furniture'!E:E) -> 1270 | C33: =_xlfn.XLOOKUP(A33,'Lighting Prices'!A:A,'Lighting Prices'!E:E) -> 
A34: @LK-EMD-BCL15R | B34: =_xlfn.XLOOKUP(A34,'Prices Furniture'!A:A,'Prices Furniture'!E:E) -> 1270 | C34: =_xlfn.XLOOKUP(A34,'Lighting Prices'!A:A,'Lighting Prices'!E:E) -> 
A35: @LK-EMD-BCL16L | B35: =_xlfn.XLOOKUP(A35,'Prices Furniture'!A:A,'Prices Furniture'!E:E) -> 1349 | C35: =_xlfn.XLOOKUP(A35,'Lighting Prices'!A:A,'Lighting Prices'!E:E) -> 
A36: @LK-EMD-BCL16R | B36: =_xlfn.XLOOKUP(A36,'Prices Furniture'!A:A,'Prices Furniture'!E:E) -> 1349 | C36: =_xlfn.XLOOKUP(A36,'Lighting Prices'!A:A,'Lighting Prices'!E:E) -> 
A37: @LK-EMD-BCO945 | B37: =_xlfn.XLOOKUP(A37,'Prices Furniture'!A:A,'Prices Furniture'!E:E) -> 1402 | C37: =_xlfn.XLOOKUP(A37,'Lighting Prices'!A:A,'Lighting Prices'!E:E) -> 
A38: @LK-EMD-BCO145 | B38: =_xlfn.XLOOKUP(A38,'Prices Furniture'!A:A,'Prices Furniture'!E:E) -> 1407 | C38: =_xlfn.XLOOKUP(A38,'Lighting Prices'!A:A,'Lighting Prices'!E:E) -> 
A39: @LK-EMD-BCO15 | B39: =_xlfn.XLOOKUP(A39,'Prices Furniture'!A:A,'Prices Furniture'!E:E) -> 1415 | C39: =_xlfn.XLOOKUP(A39,'Lighting Prices'!A:A,'Lighting Prices'!E:E) -> 
A40: @LK-EMD-BCO16 | B40: =_xlfn.XLOOKUP(A40,'Prices Furniture'!A:A,'Prices Furniture'!E:E) -> 1431 | C40: =_xlfn.XLOOKUP(A40,'Lighting Prices'!A:A,'Lighting Prices'!E:E) -> 
A41: @LK-EMD-BCL9 | B41: =_xlfn.XLOOKUP(A41,'Prices Furniture'!A:A,'Prices Furniture'!E:E) -> 618 | C41: =_xlfn.XLOOKUP(A41,'Lighting Prices'!A:A,'Lighting Prices'!E:E) -> 
A42: Not Available | B42: =_xlfn.XLOOKUP(A42,'Prices Furniture'!A:A,'Prices Furniture'!E:E) ->  | C42: =_xlfn.XLOOKUP(A42,'Lighting Prices'!A:A,'Lighting Prices'!E:E) -> 
A43: @LK-EMD-BSU6495 | B43: =_xlfn.XLOOKUP(A43,'Prices Furniture'!A:A,'Prices Furniture'!E:E) -> 285 | C43: =_xlfn.XLOOKUP(A43,'Lighting Prices'!A:A,'Lighting Prices'!E:E) -> 
A44: @LK-EMD-BSU6450 | B44: =_xlfn.XLOOKUP(A44,'Prices Furniture'!A:A,'Prices Furniture'!E:E) -> 283 | C44: =_xlfn.XLOOKUP(A44,'Lighting Prices'!A:A,'Lighting Prices'!E:E) -> 
A45: @LK-EMD-BD54 | B45: =_xlfn.XLOOKUP(A45,'Prices Furniture'!A:A,'Prices Furniture'!E:E) -> 846 | C45: =_xlfn.XLOOKUP(A45,'Lighting Prices'!A:A,'Lighting Prices'!E:E) -> 
A46: @LK-EMD-BD53 | B46: =_xlfn.XLOOKUP(A46,'Prices Furniture'!A:A,'Prices Furniture'!E:E) -> 714 | C46: =_xlfn.XLOOKUP(A46,'Lighting Prices'!A:A,'Lighting Prices'!E:E) -> 
A47: @LK-EMD-BD63 | B47: =_xlfn.XLOOKUP(A47,'Prices Furniture'!A:A,'Prices Furniture'!E:E) -> 806 | C47: =_xlfn.XLOOKUP(A47,'Lighting Prices'!A:A,'Lighting Prices'!E:E) -> 
A48: @LK-EMD-BD83 | B48: =_xlfn.XLOOKUP(A48,'Prices Furniture'!A:A,'Prices Furniture'!E:E) -> 813 | C48: =_xlfn.XLOOKUP(A48,'Lighting Prices'!A:A,'Lighting Prices'!E:E) -> 
A49: @LK-EMD-BD93 | B49: =_xlfn.XLOOKUP(A49,'Prices Furniture'!A:A,'Prices Furniture'!E:E) -> 828 | C49: =_xlfn.XLOOKUP(A49,'Lighting Prices'!A:A,'Lighting Prices'!E:E) -> 
A50: @LK-EMD-BD13 | B50: =_xlfn.XLOOKUP(A50,'Prices Furniture'!A:A,'Prices Furniture'!E:E) -> 845 | C50: =_xlfn.XLOOKUP(A50,'Lighting Prices'!A:A,'Lighting Prices'!E:E) -> 
A51: @LK-EMD-BD62 | B51: =_xlfn.XLOOKUP(A51,'Prices Furniture'!A:A,'Prices Furniture'!E:E) -> 683 | C51: =_xlfn.XLOOKUP(A51,'Lighting Prices'!A:A,'Lighting Prices'!E:E) -> 
A52: @LK-EMD-BD92 | B52: =_xlfn.XLOOKUP(A52,'Prices Furniture'!A:A,'Prices Furniture'!E:E) -> 700 | C52: =_xlfn.XLOOKUP(A52,'Lighting Prices'!A:A,'Lighting Prices'!E:E) -> 
A53: @LK-EMD-BD62I | B53: =_xlfn.XLOOKUP(A53,'Prices Furniture'!A:A,'Prices Furniture'!E:E) -> 859 | C53: =_xlfn.XLOOKUP(A53,'Lighting Prices'!A:A,'Lighting Prices'!E:E) -> 
A54: @LK-EMD-BD92I | B54: =_xlfn.XLOOKUP(A54,'Prices Furniture'!A:A,'Prices Furniture'!E:E) -> 901 | C54: =_xlfn.XLOOKUP(A54,'Lighting Prices'!A:A,'Lighting Prices'!E:E) -> 
A55: @LK-EMD-BD635L | B55: =_xlfn.XLOOKUP(A55,'Prices Furniture'!A:A,'Prices Furniture'!E:E) -> 384 | C55: =_xlfn.XLOOKUP(A55,'Lighting Prices'!A:A,'Lighting Prices'!E:E) -> 
A56: @LK-EMD-W30 | B56: =_xlfn.XLOOKUP(A56,'Prices Furniture'!A:A,'Prices Furniture'!E:E) -> 221 | C56: =_xlfn.XLOOKUP(A56,'Lighting Prices'!A:A,'Lighting Prices'!E:E) -> 
A57: @LK-EMD-W35 | B57: =_xlfn.XLOOKUP(A57,'Prices Furniture'!A:A,'Prices Furniture'!E:E) -> 227 | C57: =_xlfn.XLOOKUP(A57,'Lighting Prices'!A:A,'Lighting Prices'!E:E) -> 
A58: @LK-EMD-W40 | B58: =_xlfn.XLOOKUP(A58,'Prices Furniture'!A:A,'Prices Furniture'!E:E) -> 235 | C58: =_xlfn.XLOOKUP(A58,'Lighting Prices'!A:A,'Lighting Prices'!E:E) -> 
A59: @LK-EMD-W45 | B59: =_xlfn.XLOOKUP(A59,'Prices Furniture'!A:A,'Prices Furniture'!E:E) -> 252 | C59: =_xlfn.XLOOKUP(A59,'Lighting Prices'!A:A,'Lighting Prices'!E:E) -> 
A60: @LK-EMD-W50 | B60: =_xlfn.XLOOKUP(A60,'Prices Furniture'!A:A,'Prices Furniture'!E:E) -> 266 | C60: =_xlfn.XLOOKUP(A60,'Lighting Prices'!A:A,'Lighting Prices'!E:E) -> 
A61: @LK-EMD-W60 | B61: =_xlfn.XLOOKUP(A61,'Prices Furniture'!A:A,'Prices Furniture'!E:E) -> 290 | C61: =_xlfn.XLOOKUP(A61,'Lighting Prices'!A:A,'Lighting Prices'!E:E) -> 
A62: @LK-EMD-W70 | B62: =_xlfn.XLOOKUP(A62,'Prices Furniture'!A:A,'Prices Furniture'!E:E) -> 383 | C62: =_xlfn.XLOOKUP(A62,'Lighting Prices'!A:A,'Lighting Prices'!E:E) -> 
A63: @LK-EMD-W80 | B63: =_xlfn.XLOOKUP(A63,'Prices Furniture'!A:A,'Prices Furniture'!E:E) -> 389 | C63: =_xlfn.XLOOKUP(A63,'Lighting Prices'!A:A,'Lighting Prices'!E:E) -> 
A64: @LK-EMD-W90 | B64: =_xlfn.XLOOKUP(A64,'Prices Furniture'!A:A,'Prices Furniture'!E:E) -> 409 | C64: =_xlfn.XLOOKUP(A64,'Lighting Prices'!A:A,'Lighting Prices'!E:E) -> 
A65: @LK-EMD-W100 | B65: =_xlfn.XLOOKUP(A65,'Prices Furniture'!A:A,'Prices Furniture'!E:E) -> 434 | C65: =_xlfn.XLOOKUP(A65,'Lighting Prices'!A:A,'Lighting Prices'!E:E) -> 
A66: @LK-EMD-WC6 | B66: =_xlfn.XLOOKUP(A66,'Prices Furniture'!A:A,'Prices Furniture'!E:E) -> 309 | C66: =_xlfn.XLOOKUP(A66,'Lighting Prices'!A:A,'Lighting Prices'!E:E) -> 
A67: @LK-EMD-WC9 | B67: =_xlfn.XLOOKUP(A67,'Prices Furniture'!A:A,'Prices Furniture'!E:E) -> 371 | C67: =_xlfn.XLOOKUP(A67,'Lighting Prices'!A:A,'Lighting Prices'!E:E) -> 
A68: @LK-EMD-WCL65 | B68: =_xlfn.XLOOKUP(A68,'Prices Furniture'!A:A,'Prices Furniture'!E:E) -> 553 | C68: =_xlfn.XLOOKUP(A68,'Lighting Prices'!A:A,'Lighting Prices'!E:E) -> 
A69: @LK-EMD-WM60 | B69: =_xlfn.XLOOKUP(A69,'Prices Furniture'!A:A,'Prices Furniture'!E:E) -> 361 | C69: =_xlfn.XLOOKUP(A69,'Lighting Prices'!A:A,'Lighting Prices'!E:E) -> 
A70: @LK-EMD-WBHU | B70: =_xlfn.XLOOKUP(A70,'Prices Furniture'!A:A,'Prices Furniture'!E:E) -> 282 | C70: =_xlfn.XLOOKUP(A70,'Lighting Prices'!A:A,'Lighting Prices'!E:E) -> 
A71: @LK-EMD-WBI60 | B71: =_xlfn.XLOOKUP(A71,'Prices Furniture'!A:A,'Prices Furniture'!E:E) -> 663 | C71: =_xlfn.XLOOKUP(A71,'Lighting Prices'!A:A,'Lighting Prices'!E:E) -> 
A72: @LK-EMD-WBI90 | B72: =_xlfn.XLOOKUP(A72,'Prices Furniture'!A:A,'Prices Furniture'!E:E) -> 695 | C72: =_xlfn.XLOOKUP(A72,'Lighting Prices'!A:A,'Lighting Prices'!E:E) -> 
A73: @LK-EMD-WGS5 | B73: =_xlfn.XLOOKUP(A73,'Prices Furniture'!A:A,'Prices Furniture'!E:E) -> 434 | C73: =_xlfn.XLOOKUP(A73,'Lighting Prices'!A:A,'Lighting Prices'!E:E) -> 
A74: @LK-EMD-WGS6 | B74: =_xlfn.XLOOKUP(A74,'Prices Furniture'!A:A,'Prices Furniture'!E:E) -> 476 | C74: =_xlfn.XLOOKUP(A74,'Lighting Prices'!A:A,'Lighting Prices'!E:E) -> 
A75: @LK-EMD-WGR5 | B75: =_xlfn.XLOOKUP(A75,'Prices Furniture'!A:A,'Prices Furniture'!E:E) -> 434 | C75: =_xlfn.XLOOKUP(A75,'Lighting Prices'!A:A,'Lighting Prices'!E:E) -> 
A76: @LK-EMD-WGR6 | B76: =_xlfn.XLOOKUP(A76,'Prices Furniture'!A:A,'Prices Furniture'!E:E) -> 476 | C76: =_xlfn.XLOOKUP(A76,'Lighting Prices'!A:A,'Lighting Prices'!E:E) -> 
A77: @LK-EMD-WB62 | B77: =_xlfn.XLOOKUP(A77,'Prices Furniture'!A:A,'Prices Furniture'!E:E) -> 237 | C77: =_xlfn.XLOOKUP(A77,'Lighting Prices'!A:A,'Lighting Prices'!E:E) -> 
A78: @LK-EMD-WB82 | B78: =_xlfn.XLOOKUP(A78,'Prices Furniture'!A:A,'Prices Furniture'!E:E) -> 295 | C78: =_xlfn.XLOOKUP(A78,'Lighting Prices'!A:A,'Lighting Prices'!E:E) -> 
A79: @LK-EMD-WB92 | B79: =_xlfn.XLOOKUP(A79,'Prices Furniture'!A:A,'Prices Furniture'!E:E) -> 312 | C79: =_xlfn.XLOOKUP(A79,'Lighting Prices'!A:A,'Lighting Prices'!E:E) -> 
A80: @LK-EMD-WB12 | B80: =_xlfn.XLOOKUP(A80,'Prices Furniture'!A:A,'Prices Furniture'!E:E) -> 338 | C80: =_xlfn.XLOOKUP(A80,'Lighting Prices'!A:A,'Lighting Prices'!E:E) -> 
A81: @LK-EMD-WB63 | B81: =_xlfn.XLOOKUP(A81,'Prices Furniture'!A:A,'Prices Furniture'!E:E) -> 295 | C81: =_xlfn.XLOOKUP(A81,'Lighting Prices'!A:A,'Lighting Prices'!E:E) -> 
A82: @LK-EMD-WB93 | B82: =_xlfn.XLOOKUP(A82,'Prices Furniture'!A:A,'Prices Furniture'!E:E) -> 344 | C82: =_xlfn.XLOOKUP(A82,'Lighting Prices'!A:A,'Lighting Prices'!E:E) -> 
A83: @LK-EMD-AH-F55 | B83: =_xlfn.XLOOKUP(A83,'Prices Furniture'!A:A,'Prices Furniture'!E:E) -> 735 | C83: =_xlfn.XLOOKUP(A83,'Lighting Prices'!A:A,'Lighting Prices'!E:E) -> 
A84: @LK-EMD-AH-F73 | B84: =_xlfn.XLOOKUP(A84,'Prices Furniture'!A:A,'Prices Furniture'!E:E) -> 711 | C84: =_xlfn.XLOOKUP(A84,'Lighting Prices'!A:A,'Lighting Prices'!E:E) -> 
A85: @LK-EMD-AH-DO | B85: =_xlfn.XLOOKUP(A85,'Prices Furniture'!A:A,'Prices Furniture'!E:E) -> 731 | C85: =_xlfn.XLOOKUP(A85,'Lighting Prices'!A:A,'Lighting Prices'!E:E) -> 
A86: @LK-EMD-AH-DO2D | B86: =_xlfn.XLOOKUP(A86,'Prices Furniture'!A:A,'Prices Furniture'!E:E) -> 1058 | C86: =_xlfn.XLOOKUP(A86,'Lighting Prices'!A:A,'Lighting Prices'!E:E) -> 
A87: @LK-EMD-AH-DMW | B87: =_xlfn.XLOOKUP(A87,'Prices Furniture'!A:A,'Prices Furniture'!E:E) -> 927 | C87: =_xlfn.XLOOKUP(A87,'Lighting Prices'!A:A,'Lighting Prices'!E:E) -> 
A88: @LK-EMD-AH-SO | B88: =_xlfn.XLOOKUP(A88,'Prices Furniture'!A:A,'Prices Furniture'!E:E) -> 750 | C88: =_xlfn.XLOOKUP(A88,'Lighting Prices'!A:A,'Lighting Prices'!E:E) -> 
A89: @LK-EMD-AH-SO1D | B89: =_xlfn.XLOOKUP(A89,'Prices Furniture'!A:A,'Prices Furniture'!E:E) -> 896 | C89: =_xlfn.XLOOKUP(A89,'Lighting Prices'!A:A,'Lighting Prices'!E:E) -> 
A90: @LK-EMD-AH-SO2D | B90: =_xlfn.XLOOKUP(A90,'Prices Furniture'!A:A,'Prices Furniture'!E:E) -> 1112 | C90: =_xlfn.XLOOKUP(A90,'Lighting Prices'!A:A,'Lighting Prices'!E:E) -> 
A91: @LK-EMD-AH-SO3D | B91: =_xlfn.XLOOKUP(A91,'Prices Furniture'!A:A,'Prices Furniture'!E:E) -> 1261 | C91: =_xlfn.XLOOKUP(A91,'Lighting Prices'!A:A,'Lighting Prices'!E:E) -> 
A92: @LK-EMD-AH-SMW | B92: =_xlfn.XLOOKUP(A92,'Prices Furniture'!A:A,'Prices Furniture'!E:E) -> 786 | C92: =_xlfn.XLOOKUP(A92,'Lighting Prices'!A:A,'Lighting Prices'!E:E) -> 
A93: @LK-EMD-AH-SM2D | B93: =_xlfn.XLOOKUP(A93,'Prices Furniture'!A:A,'Prices Furniture'!E:E) -> 1074 | C93: =_xlfn.XLOOKUP(A93,'Lighting Prices'!A:A,'Lighting Prices'!E:E) -> 
A94: @LK-EMD-AH-CO | B94: =_xlfn.XLOOKUP(A94,'Prices Furniture'!A:A,'Prices Furniture'!E:E) -> 823 | C94: =_xlfn.XLOOKUP(A94,'Lighting Prices'!A:A,'Lighting Prices'!E:E) -> 
A95: @LK-EMD-BOH6 | B95: =_xlfn.XLOOKUP(A95,'Prices Furniture'!A:A,'Prices Furniture'!E:E) -> 199 | C95: =_xlfn.XLOOKUP(A95,'Lighting Prices'!A:A,'Lighting Prices'!E:E) -> 
A96: @LK-EMD-BOHD6 | B96: =_xlfn.XLOOKUP(A96,'Prices Furniture'!A:A,'Prices Furniture'!E:E) -> 312 | C96: =_xlfn.XLOOKUP(A96,'Lighting Prices'!A:A,'Lighting Prices'!E:E) -> 
A97: @LK-EMD-L3 | B97: =_xlfn.XLOOKUP(A97,'Prices Furniture'!A:A,'Prices Furniture'!E:E) -> 663 | C97: =_xlfn.XLOOKUP(A97,'Lighting Prices'!A:A,'Lighting Prices'!E:E) -> 
A98: @LK-EMD-L5 | B98: =_xlfn.XLOOKUP(A98,'Prices Furniture'!A:A,'Prices Furniture'!E:E) -> 723 | C98: =_xlfn.XLOOKUP(A98,'Lighting Prices'!A:A,'Lighting Prices'!E:E) -> 
A99: @LK-EMD-L6 | B99: =_xlfn.XLOOKUP(A99,'Prices Furniture'!A:A,'Prices Furniture'!E:E) -> 794 | C99: =_xlfn.XLOOKUP(A99,'Lighting Prices'!A:A,'Lighting Prices'!E:E) -> 
A100: @LK-EMD-LP3 | B100: =_xlfn.XLOOKUP(A100,'Prices Furniture'!A:A,'Prices Furniture'!E:E) -> 1445 | C100: =_xlfn.XLOOKUP(A100,'Lighting Prices'!A:A,'Lighting Prices'!E:E) -> 
A101: @LK-EMD-LT3 | B101: =_xlfn.XLOOKUP(A101,'Prices Furniture'!A:A,'Prices Furniture'!E:E) -> 1764 | C101: =_xlfn.XLOOKUP(A101,'Lighting Prices'!A:A,'Lighting Prices'!E:E) -> 
A102: @LK-EMD-LT5 | B102: =_xlfn.XLOOKUP(A102,'Prices Furniture'!A:A,'Prices Furniture'!E:E) -> 1892 | C102: =_xlfn.XLOOKUP(A102,'Lighting Prices'!A:A,'Lighting Prices'!E:E) -> 
A103: @LK-EMD-LT6 | B103: =_xlfn.XLOOKUP(A103,'Prices Furniture'!A:A,'Prices Furniture'!E:E) -> 2029 | C103: =_xlfn.XLOOKUP(A103,'Lighting Prices'!A:A,'Lighting Prices'!E:E) -> 
A104: @LK-EMD-LP6T | B104: =_xlfn.XLOOKUP(A104,'Prices Furniture'!A:A,'Prices Furniture'!E:E) -> 1980 | C104: =_xlfn.XLOOKUP(A104,'Lighting Prices'!A:A,'Lighting Prices'!E:E) -> 
A105: @LK-EMD-LP5TS | B105: =_xlfn.XLOOKUP(A105,'Prices Furniture'!A:A,'Prices Furniture'!E:E) -> 1657 | C105: =_xlfn.XLOOKUP(A105,'Lighting Prices'!A:A,'Lighting Prices'!E:E) -> 
A106: @LK-EMD-LP6TS | B106: =_xlfn.XLOOKUP(A106,'Prices Furniture'!A:A,'Prices Furniture'!E:E) -> 1781 | C106: =_xlfn.XLOOKUP(A106,'Lighting Prices'!A:A,'Lighting Prices'!E:E) -> 
A107: @LK-EMD-LAC | B107: =_xlfn.XLOOKUP(A107,'Prices Furniture'!A:A,'Prices Furniture'!E:E) -> 2084 | C107: =_xlfn.XLOOKUP(A107,'Lighting Prices'!A:A,'Lighting Prices'!E:E) -> 
A108: @LK-EMD-LPN14D | B108: =_xlfn.XLOOKUP(A108,'Prices Furniture'!A:A,'Prices Furniture'!E:E) -> 1124 | C108: =_xlfn.XLOOKUP(A108,'Lighting Prices'!A:A,'Lighting Prices'!E:E) -> 
A109: @LK-EMD-LPN12D3DW | B109: =_xlfn.XLOOKUP(A109,'Prices Furniture'!A:A,'Prices Furniture'!E:E) -> 1523 | C109: =_xlfn.XLOOKUP(A109,'Lighting Prices'!A:A,'Lighting Prices'!E:E) -> 
A110: @LK-EMD-LPN12D2DW | B110: =_xlfn.XLOOKUP(A110,'Prices Furniture'!A:A,'Prices Furniture'!E:E) -> 1392 | C110: =_xlfn.XLOOKUP(A110,'Lighting Prices'!A:A,'Lighting Prices'!E:E) -> 
A111: @LK-EMD-LBC15 | B111: =_xlfn.XLOOKUP(A111,'Prices Furniture'!A:A,'Prices Furniture'!E:E) -> 944 | C111: =_xlfn.XLOOKUP(A111,'Lighting Prices'!A:A,'Lighting Prices'!E:E) -> 
A112: @LK-EMD-LBC16 | B112: =_xlfn.XLOOKUP(A112,'Prices Furniture'!A:A,'Prices Furniture'!E:E) -> 970 | C112: =_xlfn.XLOOKUP(A112,'Lighting Prices'!A:A,'Lighting Prices'!E:E) -> 
A113: @LK-EMD-LBCLM15L | B113: =_xlfn.XLOOKUP(A113,'Prices Furniture'!A:A,'Prices Furniture'!E:E) -> 2782 | C113: =_xlfn.XLOOKUP(A113,'Lighting Prices'!A:A,'Lighting Prices'!E:E) -> 
A114: @LK-EMD-LBCLM15R | B114: =_xlfn.XLOOKUP(A114,'Prices Furniture'!A:A,'Prices Furniture'!E:E) -> 2782 | C114: =_xlfn.XLOOKUP(A114,'Lighting Prices'!A:A,'Lighting Prices'!E:E) -> 
A115: @LK-EMD-LBCLM16L | B115: =_xlfn.XLOOKUP(A115,'Prices Furniture'!A:A,'Prices Furniture'!E:E) -> 2934 | C115: =_xlfn.XLOOKUP(A115,'Lighting Prices'!A:A,'Lighting Prices'!E:E) -> 
A116: @LK-EMD-LBCLM16R | B116: =_xlfn.XLOOKUP(A116,'Prices Furniture'!A:A,'Prices Furniture'!E:E) -> 2934 | C116: =_xlfn.XLOOKUP(A116,'Lighting Prices'!A:A,'Lighting Prices'!E:E) -> 
A117: @LK-EMD-LL6EA | B117: =_xlfn.XLOOKUP(A117,'Prices Furniture'!A:A,'Prices Furniture'!E:E) -> 836 | C117: =_xlfn.XLOOKUP(A117,'Lighting Prices'!A:A,'Lighting Prices'!E:E) -> 
A118: @LK-EMD-LL6CU | B118: =_xlfn.XLOOKUP(A118,'Prices Furniture'!A:A,'Prices Furniture'!E:E) -> 786 | C118: =_xlfn.XLOOKUP(A118,'Lighting Prices'!A:A,'Lighting Prices'!E:E) -> 
A119: @LK-EMD-LL10CU | B119: =_xlfn.XLOOKUP(A119,'Prices Furniture'!A:A,'Prices Furniture'!E:E) -> 1235 | C119: =_xlfn.XLOOKUP(A119,'Lighting Prices'!A:A,'Lighting Prices'!E:E) -> 
A120: @LK-EMD-LL10CUS | B120: =_xlfn.XLOOKUP(A120,'Prices Furniture'!A:A,'Prices Furniture'!E:E) -> 1334 | C120: =_xlfn.XLOOKUP(A120,'Lighting Prices'!A:A,'Lighting Prices'!E:E) -> 
A121: @LK-EMD-LL10CB | B121: =_xlfn.XLOOKUP(A121,'Prices Furniture'!A:A,'Prices Furniture'!E:E) -> 1245 | C121: =_xlfn.XLOOKUP(A121,'Lighting Prices'!A:A,'Lighting Prices'!E:E) -> 
A122: @LK-EMD-AD60ICH | B122: =_xlfn.XLOOKUP(A122,'Prices Furniture'!A:A,'Prices Furniture'!E:E) -> 95 | C122: =_xlfn.XLOOKUP(A122,'Lighting Prices'!A:A,'Lighting Prices'!E:E) -> 
A123: @LK-EMD-AD60FD | B123: =_xlfn.XLOOKUP(A123,'Prices Furniture'!A:A,'Prices Furniture'!E:E) -> 131 | C123: =_xlfn.XLOOKUP(A123,'Lighting Prices'!A:A,'Lighting Prices'!E:E) -> 
A124: @LK-EMD-AD45I | B124: =_xlfn.XLOOKUP(A124,'Prices Furniture'!A:A,'Prices Furniture'!E:E) -> 107 | C124: =_xlfn.XLOOKUP(A124,'Lighting Prices'!A:A,'Lighting Prices'!E:E) -> 
A125: @LK-EMD-AD60S | B125: =_xlfn.XLOOKUP(A125,'Prices Furniture'!A:A,'Prices Furniture'!E:E) -> 129 | C125: =_xlfn.XLOOKUP(A125,'Lighting Prices'!A:A,'Lighting Prices'!E:E) -> 
A126: @LK-EMD-BLD9 | B126: =_xlfn.XLOOKUP(A126,'Prices Furniture'!A:A,'Prices Furniture'!E:E) -> 133 | C126: =_xlfn.XLOOKUP(A126,'Lighting Prices'!A:A,'Lighting Prices'!E:E) -> 
A127: @LK-EMD-CH-SO | B127: =_xlfn.XLOOKUP(A127,'Prices Furniture'!A:A,'Prices Furniture'!E:E) -> 654 | C127: =_xlfn.XLOOKUP(A127,'Lighting Prices'!A:A,'Lighting Prices'!E:E) -> 
A128: @LK-EMD-CH-MW | B128: =_xlfn.XLOOKUP(A128,'Prices Furniture'!A:A,'Prices Furniture'!E:E) -> 700 | C128: =_xlfn.XLOOKUP(A128,'Lighting Prices'!A:A,'Lighting Prices'!E:E) -> 
A129: @LK-EMD-CH-ST | B129: =_xlfn.XLOOKUP(A129,'Prices Furniture'!A:A,'Prices Furniture'!E:E) -> 880 | C129: =_xlfn.XLOOKUP(A129,'Lighting Prices'!A:A,'Lighting Prices'!E:E) -> 
A130: @LK-EMD-TCH-SO | B130: =_xlfn.XLOOKUP(A130,'Prices Furniture'!A:A,'Prices Furniture'!E:E) -> 846 | C130: =_xlfn.XLOOKUP(A130,'Lighting Prices'!A:A,'Lighting Prices'!E:E) -> 
A131: @LK-EMD-TCH-MW | B131: =_xlfn.XLOOKUP(A131,'Prices Furniture'!A:A,'Prices Furniture'!E:E) -> 759 | C131: =_xlfn.XLOOKUP(A131,'Lighting Prices'!A:A,'Lighting Prices'!E:E) -> 
A132: @LK-EMD-TCH-ST | B132: =_xlfn.XLOOKUP(A132,'Prices Furniture'!A:A,'Prices Furniture'!E:E) -> 918 | C132: =_xlfn.XLOOKUP(A132,'Lighting Prices'!A:A,'Lighting Prices'!E:E) -> 
A133: @LK-EMD-AH-SOT | B133: =_xlfn.XLOOKUP(A133,'Prices Furniture'!A:A,'Prices Furniture'!E:E) -> 876 | C133: =_xlfn.XLOOKUP(A133,'Lighting Prices'!A:A,'Lighting Prices'!E:E) -> 
A134: @LK-EMD-LP5T | B134: =_xlfn.XLOOKUP(A134,'Prices Furniture'!A:A,'Prices Furniture'!E:E) -> 1915 | C134: =_xlfn.XLOOKUP(A134,'Lighting Prices'!A:A,'Lighting Prices'!E:E) -> 
A135: @LK-EMD-LL8LS | B135: =_xlfn.XLOOKUP(A135,'Prices Furniture'!A:A,'Prices Furniture'!E:E) -> 1364 | C135: =_xlfn.XLOOKUP(A135,'Lighting Prices'!A:A,'Lighting Prices'!E:E) -> 
A136: @LK-EMD-BHD3 | B136: =_xlfn.XLOOKUP(A136,'Prices Furniture'!A:A,'Prices Furniture'!E:E) -> 628 | C136: =_xlfn.XLOOKUP(A136,'Lighting Prices'!A:A,'Lighting Prices'!E:E) -> 
A137: @LK-EMD-BHD4 | B137: =_xlfn.XLOOKUP(A137,'Prices Furniture'!A:A,'Prices Furniture'!E:E) -> 677 | C137: =_xlfn.XLOOKUP(A137,'Lighting Prices'!A:A,'Lighting Prices'!E:E) -> 
A138: @LK-EMD-BHD5 | B138: =_xlfn.XLOOKUP(A138,'Prices Furniture'!A:A,'Prices Furniture'!E:E) -> 740 | C138: =_xlfn.XLOOKUP(A138,'Lighting Prices'!A:A,'Lighting Prices'!E:E) -> 
A139: @LK-EMD-BHD6 | B139: =_xlfn.XLOOKUP(A139,'Prices Furniture'!A:A,'Prices Furniture'!E:E) -> 796 | C139: =_xlfn.XLOOKUP(A139,'Lighting Prices'!A:A,'Lighting Prices'!E:E) -> 
A140: 0 | B140: =_xlfn.XLOOKUP(A140,'Prices Furniture'!A:A,'Prices Furniture'!E:E) ->  | C140: =_xlfn.XLOOKUP(A140,'Lighting Prices'!A:A,'Lighting Prices'!E:E) -> 
A141: RIGID BUILD | B141: =_xlfn.XLOOKUP(A141,'Prices Furniture'!A:A,'Prices Furniture'!E:E) -> 18 | C141: =_xlfn.XLOOKUP(A141,'Lighting Prices'!A:A,'Lighting Prices'!E:E) -> 
A142: TALL RIGID BUILD | B142: =_xlfn.XLOOKUP(A142,'Prices Furniture'!A:A,'Prices Furniture'!E:E) -> 36 | C142: =_xlfn.XLOOKUP(A142,'Lighting Prices'!A:A,'Lighting Prices'!E:E) -> 
A143: Oak Std Upgrade | B143: =_xlfn.XLOOKUP(A143,'Prices Furniture'!A:A,'Prices Furniture'!E:E) -> 110 | C143: =_xlfn.XLOOKUP(A143,'Lighting Prices'!A:A,'Lighting Prices'!E:E) -> 
A144: Oak Pan Upgrade | B144: =_xlfn.XLOOKUP(A144,'Prices Furniture'!A:A,'Prices Furniture'!E:E) -> 150 | C144: =_xlfn.XLOOKUP(A144,'Lighting Prices'!A:A,'Lighting Prices'!E:E) -> 
A145: Oak Low Drw Upgrade | B145: =_xlfn.XLOOKUP(A145,'Prices Furniture'!A:A,'Prices Furniture'!E:E) -> 150 | C145: =_xlfn.XLOOKUP(A145,'Lighting Prices'!A:A,'Lighting Prices'!E:E) -> 
A146: Legrabox Std Upgrade | B146: =_xlfn.XLOOKUP(A146,'Prices Furniture'!A:A,'Prices Furniture'!E:E) -> 100 | C146: =_xlfn.XLOOKUP(A146,'Lighting Prices'!A:A,'Lighting Prices'!E:E) -> 
A147: Legrabox Pan Upgrade | B147: =_xlfn.XLOOKUP(A147,'Prices Furniture'!A:A,'Prices Furniture'!E:E) -> 140 | C147: =_xlfn.XLOOKUP(A147,'Lighting Prices'!A:A,'Lighting Prices'!E:E) -> 
A148: Legrabox Low Drw Upgrade | B148: =_xlfn.XLOOKUP(A148,'Prices Furniture'!A:A,'Prices Furniture'!E:E) -> 140 | C148: =_xlfn.XLOOKUP(A148,'Lighting Prices'!A:A,'Lighting Prices'!E:E) -> 
A149: LK-A-ALN-LSCUBE4 | B149: =_xlfn.XLOOKUP(A149,'Prices Furniture'!A:A,'Prices Furniture'!E:E) -> 121 | C149: =_xlfn.XLOOKUP(A149,'Lighting Prices'!A:A,'Lighting Prices'!E:E) -> 
A150: LK-A-GLN-LSCUBE4 | B150: =_xlfn.XLOOKUP(A150,'Prices Furniture'!A:A,'Prices Furniture'!E:E) -> 121 | C150: =_xlfn.XLOOKUP(A150,'Lighting Prices'!A:A,'Lighting Prices'!E:E) -> 
A151: LK-A-LISW-LSCUBE4 | B151: =_xlfn.XLOOKUP(A151,'Prices Furniture'!A:A,'Prices Furniture'!E:E) -> 121 | C151: =_xlfn.XLOOKUP(A151,'Lighting Prices'!A:A,'Lighting Prices'!E:E) -> 
A152: LK-A-STG-LSCUBE4 | B152: =_xlfn.XLOOKUP(A152,'Prices Furniture'!A:A,'Prices Furniture'!E:E) -> 121 | C152: =_xlfn.XLOOKUP(A152,'Lighting Prices'!A:A,'Lighting Prices'!E:E) -> 
A153: LK-A-WHT-LSCUBE4 | B153: =_xlfn.XLOOKUP(A153,'Prices Furniture'!A:A,'Prices Furniture'!E:E) -> 121 | C153: =_xlfn.XLOOKUP(A153,'Lighting Prices'!A:A,'Lighting Prices'!E:E) -> 
A154: LK-A-WAL-LSCUBE4 | B154: =_xlfn.XLOOKUP(A154,'Prices Furniture'!A:A,'Prices Furniture'!E:E) -> 121 | C154: =_xlfn.XLOOKUP(A154,'Lighting Prices'!A:A,'Lighting Prices'!E:E) -> 
A155: LK-A-ALN-LSCUBE5 | B155: =_xlfn.XLOOKUP(A155,'Prices Furniture'!A:A,'Prices Furniture'!E:E) -> 140 | C155: =_xlfn.XLOOKUP(A155,'Lighting Prices'!A:A,'Lighting Prices'!E:E) -> 
A156: LK-A-GLN-LSCUBE5 | B156: =_xlfn.XLOOKUP(A156,'Prices Furniture'!A:A,'Prices Furniture'!E:E) -> 140 | C156: =_xlfn.XLOOKUP(A156,'Lighting Prices'!A:A,'Lighting Prices'!E:E) -> 
A157: LK-A-LISW-LSCUBE5 | B157: =_xlfn.XLOOKUP(A157,'Prices Furniture'!A:A,'Prices Furniture'!E:E) -> 140 | C157: =_xlfn.XLOOKUP(A157,'Lighting Prices'!A:A,'Lighting Prices'!E:E) -> 
A158: LK-A-STG-LSCUBE5 | B158: =_xlfn.XLOOKUP(A158,'Prices Furniture'!A:A,'Prices Furniture'!E:E) -> 140 | C158: =_xlfn.XLOOKUP(A158,'Lighting Prices'!A:A,'Lighting Prices'!E:E) -> 
A159: LK-A-WHT-LSCUBE5 | B159: =_xlfn.XLOOKUP(A159,'Prices Furniture'!A:A,'Prices Furniture'!E:E) -> 140 | C159: =_xlfn.XLOOKUP(A159,'Lighting Prices'!A:A,'Lighting Prices'!E:E) -> 
A160: LK-A-WAL-LSCUBE5 | B160: =_xlfn.XLOOKUP(A160,'Prices Furniture'!A:A,'Prices Furniture'!E:E) -> 140 | C160: =_xlfn.XLOOKUP(A160,'Lighting Prices'!A:A,'Lighting Prices'!E:E) -> 
A161: LK-A-EMD-WREP72 | B161: =_xlfn.XLOOKUP(A161,'Prices Furniture'!A:A,'Prices Furniture'!E:E) -> 77 | C161: =_xlfn.XLOOKUP(A161,'Lighting Prices'!A:A,'Lighting Prices'!E:E) -> 
A162: LK-A-EMD-PWEP72 | B162: =_xlfn.XLOOKUP(A162,'Prices Furniture'!A:A,'Prices Furniture'!E:E) -> 92 | C162: =_xlfn.XLOOKUP(A162,'Lighting Prices'!A:A,'Lighting Prices'!E:E) -> 
A163: LK-A-EMD-PWEP20 | B163: =_xlfn.XLOOKUP(A163,'Prices Furniture'!A:A,'Prices Furniture'!E:E) -> 200 | C163: =_xlfn.XLOOKUP(A163,'Lighting Prices'!A:A,'Lighting Prices'!E:E) -> 
A164: LK-A-EMD-ESP | B164: =_xlfn.XLOOKUP(A164,'Prices Furniture'!A:A,'Prices Furniture'!E:E) -> 135 | C164: =_xlfn.XLOOKUP(A164,'Lighting Prices'!A:A,'Lighting Prices'!E:E) -> 
A165: LK-A-EMD-LUP | B165: =_xlfn.XLOOKUP(A165,'Prices Furniture'!A:A,'Prices Furniture'!E:E) -> 391 | C165: =_xlfn.XLOOKUP(A165,'Lighting Prices'!A:A,'Lighting Prices'!E:E) -> 
A166: LK-A-EMD-PTEP | B166: =_xlfn.XLOOKUP(A166,'Prices Furniture'!A:A,'Prices Furniture'!E:E) -> 305 | C166: =_xlfn.XLOOKUP(A166,'Lighting Prices'!A:A,'Lighting Prices'!E:E) -> 
A167: LK-A-EMD-PL | B167: =_xlfn.XLOOKUP(A167,'Prices Furniture'!A:A,'Prices Furniture'!E:E) -> 90 | C167: =_xlfn.XLOOKUP(A167,'Lighting Prices'!A:A,'Lighting Prices'!E:E) -> 
A168: LK-A-EMD-SCCRN | B168: =_xlfn.XLOOKUP(A168,'Prices Furniture'!A:A,'Prices Furniture'!E:E) -> 113 | C168: =_xlfn.XLOOKUP(A168,'Lighting Prices'!A:A,'Lighting Prices'!E:E) -> 
A169: LK-A-EMD-BLPEL | B169: =_xlfn.XLOOKUP(A169,'Prices Furniture'!A:A,'Prices Furniture'!E:E) -> 86 | C169: =_xlfn.XLOOKUP(A169,'Lighting Prices'!A:A,'Lighting Prices'!E:E) -> 
A170: LK-A-EMD-CVP | B170: =_xlfn.XLOOKUP(A170,'Prices Furniture'!A:A,'Prices Furniture'!E:E) -> 123 | C170: =_xlfn.XLOOKUP(A170,'Lighting Prices'!A:A,'Lighting Prices'!E:E) -> 
A171: LK-A-EMD-CPBM | B171: =_xlfn.XLOOKUP(A171,'Prices Furniture'!A:A,'Prices Furniture'!E:E) -> 109 | C171: =_xlfn.XLOOKUP(A171,'Lighting Prices'!A:A,'Lighting Prices'!E:E) -> 
A172: LK-A-EMD-CPBC | B172: =_xlfn.XLOOKUP(A172,'Prices Furniture'!A:A,'Prices Furniture'!E:E) -> 116 | C172: =_xlfn.XLOOKUP(A172,'Lighting Prices'!A:A,'Lighting Prices'!E:E) -> 
A173: LK-A-EMD-ET | B173: =_xlfn.XLOOKUP(A173,'Prices Furniture'!A:A,'Prices Furniture'!E:E) -> 37 | C173: =_xlfn.XLOOKUP(A173,'Lighting Prices'!A:A,'Lighting Prices'!E:E) -> 
A174: LK-HD-003 | B174: =_xlfn.XLOOKUP(A174,'Prices Furniture'!A:A,'Prices Furniture'!E:E) -> 11 | C174: =_xlfn.XLOOKUP(A174,'Lighting Prices'!A:A,'Lighting Prices'!E:E) -> 
A175: LK-HD-018 | B175: =_xlfn.XLOOKUP(A175,'Prices Furniture'!A:A,'Prices Furniture'!E:E) ->  | C175: =_xlfn.XLOOKUP(A175,'Lighting Prices'!A:A,'Lighting Prices'!E:E) -> 
A176: LK-HD-022 | B176: =_xlfn.XLOOKUP(A176,'Prices Furniture'!A:A,'Prices Furniture'!E:E) ->  | C176: =_xlfn.XLOOKUP(A176,'Lighting Prices'!A:A,'Lighting Prices'!E:E) -> 
A177: LK-HD-1002 | B177: =_xlfn.XLOOKUP(A177,'Prices Furniture'!A:A,'Prices Furniture'!E:E) ->  | C177: =_xlfn.XLOOKUP(A177,'Lighting Prices'!A:A,'Lighting Prices'!E:E) -> 
A178: LK-HD-1003 | B178: =_xlfn.XLOOKUP(A178,'Prices Furniture'!A:A,'Prices Furniture'!E:E) -> 15 | C178: =_xlfn.XLOOKUP(A178,'Lighting Prices'!A:A,'Lighting Prices'!E:E) -> 
A179: LK-HD-1004 | B179: =_xlfn.XLOOKUP(A179,'Prices Furniture'!A:A,'Prices Furniture'!E:E) ->  | C179: =_xlfn.XLOOKUP(A179,'Lighting Prices'!A:A,'Lighting Prices'!E:E) -> 
A180: LK-HD-1005 | B180: =_xlfn.XLOOKUP(A180,'Prices Furniture'!A:A,'Prices Furniture'!E:E) ->  | C180: =_xlfn.XLOOKUP(A180,'Lighting Prices'!A:A,'Lighting Prices'!E:E) -> 
A181: LK-HD-1006 | B181: =_xlfn.XLOOKUP(A181,'Prices Furniture'!A:A,'Prices Furniture'!E:E) ->  | C181: =_xlfn.XLOOKUP(A181,'Lighting Prices'!A:A,'Lighting Prices'!E:E) -> 
A182: LK-HD-1007 | B182: =_xlfn.XLOOKUP(A182,'Prices Furniture'!A:A,'Prices Furniture'!E:E) -> 18 | C182: =_xlfn.XLOOKUP(A182,'Lighting Prices'!A:A,'Lighting Prices'!E:E) -> 
A183: LK-HD-1008 | B183: =_xlfn.XLOOKUP(A183,'Prices Furniture'!A:A,'Prices Furniture'!E:E) ->  | C183: =_xlfn.XLOOKUP(A183,'Lighting Prices'!A:A,'Lighting Prices'!E:E) -> 
A184: LK-HD-1009 | B184: =_xlfn.XLOOKUP(A184,'Prices Furniture'!A:A,'Prices Furniture'!E:E) -> 10 | C184: =_xlfn.XLOOKUP(A184,'Lighting Prices'!A:A,'Lighting Prices'!E:E) -> 
A185: LK-HD-1010 | B185: =_xlfn.XLOOKUP(A185,'Prices Furniture'!A:A,'Prices Furniture'!E:E) ->  | C185: =_xlfn.XLOOKUP(A185,'Lighting Prices'!A:A,'Lighting Prices'!E:E) -> 
A186: LK-HD-1011 | B186: =_xlfn.XLOOKUP(A186,'Prices Furniture'!A:A,'Prices Furniture'!E:E) -> 16 | C186: =_xlfn.XLOOKUP(A186,'Lighting Prices'!A:A,'Lighting Prices'!E:E) -> 
A187: LK-HD-1013 | B187: =_xlfn.XLOOKUP(A187,'Prices Furniture'!A:A,'Prices Furniture'!E:E) -> 16 | C187: =_xlfn.XLOOKUP(A187,'Lighting Prices'!A:A,'Lighting Prices'!E:E) -> 
A188: LK-HD-1015 | B188: =_xlfn.XLOOKUP(A188,'Prices Furniture'!A:A,'Prices Furniture'!E:E) -> 16 | C188: =_xlfn.XLOOKUP(A188,'Lighting Prices'!A:A,'Lighting Prices'!E:E) -> 
A189: LK-HD-1017 | B189: =_xlfn.XLOOKUP(A189,'Prices Furniture'!A:A,'Prices Furniture'!E:E) ->  | C189: =_xlfn.XLOOKUP(A189,'Lighting Prices'!A:A,'Lighting Prices'!E:E) -> 
A190: LK-HD-1018 | B190: =_xlfn.XLOOKUP(A190,'Prices Furniture'!A:A,'Prices Furniture'!E:E) -> 32 | C190: =_xlfn.XLOOKUP(A190,'Lighting Prices'!A:A,'Lighting Prices'!E:E) -> 
A191: LK-HD-1019 | B191: =_xlfn.XLOOKUP(A191,'Prices Furniture'!A:A,'Prices Furniture'!E:E) -> 30 | C191: =_xlfn.XLOOKUP(A191,'Lighting Prices'!A:A,'Lighting Prices'!E:E) -> 
A192: LK-HD-1020 | B192: =_xlfn.XLOOKUP(A192,'Prices Furniture'!A:A,'Prices Furniture'!E:E) -> 23 | C192: =_xlfn.XLOOKUP(A192,'Lighting Prices'!A:A,'Lighting Prices'!E:E) -> 
A193: LK-HD-1022 | B193: =_xlfn.XLOOKUP(A193,'Prices Furniture'!A:A,'Prices Furniture'!E:E) -> 13 | C193: =_xlfn.XLOOKUP(A193,'Lighting Prices'!A:A,'Lighting Prices'!E:E) -> 
A194: LK-HD-1023 | B194: =_xlfn.XLOOKUP(A194,'Prices Furniture'!A:A,'Prices Furniture'!E:E) ->  | C194: =_xlfn.XLOOKUP(A194,'Lighting Prices'!A:A,'Lighting Prices'!E:E) -> 
A195: LK-HD-1024 | B195: =_xlfn.XLOOKUP(A195,'Prices Furniture'!A:A,'Prices Furniture'!E:E) -> 13 | C195: =_xlfn.XLOOKUP(A195,'Lighting Prices'!A:A,'Lighting Prices'!E:E) -> 
A196: LK-HD-1025 | B196: =_xlfn.XLOOKUP(A196,'Prices Furniture'!A:A,'Prices Furniture'!E:E) -> 17 | C196: =_xlfn.XLOOKUP(A196,'Lighting Prices'!A:A,'Lighting Prices'!E:E) -> 
A197: LK-HD-1026 | B197: =_xlfn.XLOOKUP(A197,'Prices Furniture'!A:A,'Prices Furniture'!E:E) -> 17 | C197: =_xlfn.XLOOKUP(A197,'Lighting Prices'!A:A,'Lighting Prices'!E:E) -> 
A198: LK-HD-1027 | B198: =_xlfn.XLOOKUP(A198,'Prices Furniture'!A:A,'Prices Furniture'!E:E) -> 17 | C198: =_xlfn.XLOOKUP(A198,'Lighting Prices'!A:A,'Lighting Prices'!E:E) -> 
A199: LK-HD-1028 | B199: =_xlfn.XLOOKUP(A199,'Prices Furniture'!A:A,'Prices Furniture'!E:E) -> 18 | C199: =_xlfn.XLOOKUP(A199,'Lighting Prices'!A:A,'Lighting Prices'!E:E) -> 
A200: LK-HD-1029 | B200: =_xlfn.XLOOKUP(A200,'Prices Furniture'!A:A,'Prices Furniture'!E:E) ->  | C200: =_xlfn.XLOOKUP(A200,'Lighting Prices'!A:A,'Lighting Prices'!E:E) -> 
... 3167 more rows
